{"text_format":"1","workbook":"xlsx","n_sheets":6,"sheets":["請求書","【始めに入力下さい】　基本情報入力","消費税マスタ","請求書 (手書き用)","その他","請求書(入力例)"],"not_rendered":{"charts":0,"images":2,"macros":1,"external_links":0,"defined_names":23,"comments":5,"pivot_tables":0},"unopened":[],"bounds":{"document_bytes":16777216,"sheet_cells":100000,"rows_first":2000,"rows_last":500,"rows_between":2000,"halvings":0,"cell_chars":16384,"cell_head_chars":4096},"cells_cut":0,"cells_raw":0,"read":"whole","date_system":"1900"}

{"sheet":"請求書","index":0,"n_rows":353,"n_cols":159,"rows_kept":353,"cut":false,"hidden":false,"merged":[[81,6,84,68],[12,9,14,40],[2,5,4,8],[7,6,11,44],[26,55,28,62],[26,66,28,104],[31,6,34,23],[31,24,34,41],[77,77,80,93],[77,94,80,113],[81,94,84,113],[85,94,88,113],[89,94,92,113],[77,73,92,76],[81,89,84,93],[81,84,84,88],[81,77,84,83],[85,77,88,83],[85,84,88,88],[85,89,88,93],[89,77,92,83],[89,84,92,88],[89,89,92,93],[31,54,34,65],[31,66,34,113],[16,55,18,62],[16,66,18,111],[20,55,24,62],[20,66,24,111],[25,6,29,23],[25,24,29,51],[25,105,28,110],[21,6,24,23],[5,140,8,157],[5,158,8,162],[6,105,9,107],[6,108,9,110],[6,111,9,113],[7,47,11,54],[7,55,11,57],[7,58,11,61],[7,62,11,64],[7,65,11,68],[7,69,11,71],[10,81,13,95],[2,47,5,71],[6,81,9,95],[6,96,9,98],[6,99,9,101],[6,102,9,104],[10,96,13,113],[21,24,24,51],[15,6,20,23],[15,24,20,51],[45,82,45,91],[45,92,45,113],[46,6,46,15],[46,16,46,51],[46,52,46,61],[46,62,46,71],[46,72,46,81],[46,82,46,91],[46,92,46,113],[35,6,38,23],[35,24,38,41],[35,54,38,65],[35,66,38,113],[40,46,43,70],[45,6,45,15],[45,16,45,51],[45,52,45,61],[45,62,45,71],[45,72,45,81],[47,92,47,113],[48,6,48,15],[48,16,48,51],[48,52,48,61],[48,62,48,71],[48,72,48,81],[48,82,48,91],[48,92,48,113],[47,6,47,15],[47,16,47,51],[47,52,47,61],[47,62,47,71],[47,72,47,81],[47,82,47,91],[51,6,51,15],[51,16,51,51],[51,52,51,61],[51,62,51,71],[51,72,51,81],[49,6,49,15],[49,16,49,51],[63,6,65,23],[63,24,65,41],[63,42,65,59],[63,60,65,77],[63,78,65,95],[63,96,65,113],[60,6,62,23],[60,24,62,41],[60,42,62,59],[60,60,62,77],[60,78,62,95],[60,96,62,113],[56,92,56,113],[57,6,57,91],[57,92,57,113],[58,6,58,91],[58,92,58,113],[56,6,56,15],[56,16,56,51],[56,52,56,61],[56,62,56,71],[56,72,56,81],[56,82,56,91],[104,54,106,57],[104,58,106,61],[104,62,106,65],[104,92,106,115],[110,5,112,7],[110,43,113,67],[114,111,117,113],[116,6,120,40],[135,82,135,91],[135,92,135,113],[93,6,94,69],[94,73,101,75],[94,84,101,86],[94,103,101,105],[95,6,96,68],[98,6,99,69],[100,6,101,68],[136,6,136,15],[136,16,136,51],[136,52,136,61],[136,62,136,71],[136,72,136,81],[136,82,136,91],[136,92,136,113],[130,43,133,67],[135,6,135,15],[135,16,135,51],[135,52,135,61],[135,62,135,71],[135,72,135,81],[118,81,121,95],[118,96,121,113],[123,6,126,17],[123,18,126,51],[123,54,126,67],[123,68,126,113],[115,43,119,50],[115,51,119,53],[115,54,119,57],[115,58,119,60],[115,61,119,64],[115,65,119,67],[114,81,117,95],[114,96,117,98],[114,99,117,101],[114,102,117,104],[114,105,117,107],[114,108,117,110],[139,92,139,113],[140,6,140,15],[140,16,140,51],[140,52,140,61],[140,62,140,71],[140,72,140,81],[140,82,140,91],[140,92,140,113],[139,6,139,15],[139,16,139,51],[139,52,139,61],[139,62,139,71],[139,72,139,81],[139,82,139,91],[137,92,137,113],[138,6,138,15],[138,16,138,51],[138,52,138,61],[138,62,138,71],[138,72,138,81],[138,82,138,91],[138,92,138,113],[137,6,137,15],[137,16,137,51],[137,52,137,61],[137,62,137,71],[137,72,137,81],[137,82,137,91],[143,92,143,113],[144,6,144,15],[144,16,144,51],[144,52,144,61],[144,62,144,71],[144,72,144,81],[144,82,144,91],[144,92,144,113],[143,6,143,15],[143,16,143,51],[143,52,143,61],[143,62,143,71],[143,72,143,81],[143,82,143,91],[141,92,141,113],[142,6,142,15],[142,16,142,51],[142,52,142,61],[142,62,142,71],[142,72,142,81],[142,82,142,91],[142,92,142,113],[141,6,141,15],[141,16,141,51],[141,52,141,61],[141,62,141,71],[141,72,141,81],[141,82,141,91],[147,92,147,113],[148,6,148,15],[148,16,148,51],[148,52,148,61],[148,62,148,71],[148,72,148,81],[148,82,148,91],[148,92,148,113],[147,6,147,15],[147,16,147,51],[147,52,147,61],[147,62,147,71],[147,72,147,81],[147,82,147,91],[145,92,145,113],[146,6,146,15],[146,16,146,51],[146,52,146,61],[146,62,146,71],[146,72,146,81],[146,82,146,91],[146,92,146,113],[145,6,145,15],[145,16,145,51],[145,52,145,61],[145,62,145,71],[145,72,145,81],[145,82,145,91],[151,92,151,113],[152,6,152,15],[152,16,152,51],[152,52,152,61],[152,62,152,71],[152,72,152,81],[152,82,152,91],[152,92,152,113],[151,6,151,15],[151,16,151,51],[151,52,151,61],[151,62,151,71],[151,72,151,81],[151,82,151,91],[149,92,149,113],[150,6,150,15],[150,16,150,51],[150,52,150,61],[150,62,150,71],[150,72,150,81],[150,82,150,91],[150,92,150,113],[149,6,149,15],[149,16,149,51],[149,52,149,61],[149,62,149,71],[149,72,149,81],[149,82,149,91],[155,92,155,113],[156,6,156,15],[156,16,156,51],[156,52,156,61],[156,62,156,71],[156,72,156,81],[156,82,156,91],[156,92,156,113],[155,6,155,15],[155,16,155,51],[155,52,155,61],[155,62,155,71],[155,72,155,81],[155,82,155,91],[153,92,153,113],[154,6,154,15],[154,16,154,51],[154,52,154,61],[154,62,154,71],[154,72,154,81],[154,82,154,91],[154,92,154,113],[153,6,153,15],[153,16,153,51],[153,52,153,61],[153,62,153,71],[153,72,153,81],[153,82,153,91],[159,92,159,113],[160,6,160,15],[160,16,160,51],[160,52,160,61],[160,62,160,71],[160,72,160,81],[160,82,160,91],[160,92,160,113],[159,6,159,15],[159,16,159,51],[159,52,159,61],[159,62,159,71],[159,72,159,81],[159,82,159,91],[157,92,157,113],[158,6,158,15],[158,16,158,51],[158,52,158,61],[158,62,158,71],[158,72,158,81],[158,82,158,91],[158,92,158,113],[157,6,157,15],[157,16,157,51],[157,52,157,61],[157,62,157,71],[157,72,157,81],[157,82,157,91],[172,5,174,7],[172,43,175,67],[176,81,179,95],[176,96,179,98],[176,99,179,101],[176,102,179,104],[180,96,183,113],[161,92,161,113],[162,6,162,91],[162,92,162,113],[163,92,165,113],[166,54,168,57],[166,58,168,61],[166,62,168,65],[166,92,168,115],[161,6,161,15],[161,16,161,51],[161,52,161,61],[161,62,161,71],[161,72,161,81],[161,82,161,91],[185,6,188,17],[185,18,188,51],[185,54,188,67],[185,68,188,113],[192,43,195,67],[197,6,197,15],[197,16,197,51],[197,52,197,61],[197,62,197,71],[197,72,197,81],[176,105,179,107],[176,108,179,110],[176,111,179,113],[177,43,181,50],[177,51,181,53],[177,54,181,57],[177,58,181,60],[177,61,181,64],[177,65,181,67],[180,81,183,95],[178,6,182,40],[199,92,199,113],[200,6,200,15],[200,16,200,51],[200,52,200,61],[200,62,200,71],[200,72,200,81],[200,82,200,91],[200,92,200,113],[199,6,199,15],[199,16,199,51],[199,52,199,61],[199,62,199,71],[199,72,199,81],[199,82,199,91],[197,82,197,91],[197,92,197,113],[198,6,198,15],[198,16,198,51],[198,52,198,61],[198,62,198,71],[198,72,198,81],[198,82,198,91],[198,92,198,113],[203,92,203,113],[204,6,204,15],[204,16,204,51],[204,52,204,61],[204,62,204,71],[204,72,204,81],[204,82,204,91],[204,92,204,113],[203,6,203,15],[203,16,203,51],[203,52,203,61],[203,62,203,71],[203,72,203,81],[203,82,203,91],[201,92,201,113],[202,6,202,15],[202,16,202,51],[202,52,202,61],[202,62,202,71],[202,72,202,81],[202,82,202,91],[202,92,202,113],[201,6,201,15],[201,16,201,51],[201,52,201,61],[201,62,201,71],[201,72,201,81],[201,82,201,91],[207,92,207,113],[208,6,208,15],[208,16,208,51],[208,52,208,61],[208,62,208,71],[208,72,208,81],[208,82,208,91],[208,92,208,113],[207,6,207,15],[207,16,207,51],[207,52,207,61],[207,62,207,71],[207,72,207,81],[207,82,207,91],[205,92,205,113],[206,6,206,15],[206,16,206,51],[206,52,206,61],[206,62,206,71],[206,72,206,81],[206,82,206,91],[206,92,206,113],[205,6,205,15],[205,16,205,51],[205,52,205,61],[205,62,205,71],[205,72,205,81],[205,82,205,91],[211,92,211,113],[212,6,212,15],[212,16,212,51],[212,52,212,61],[212,62,212,71],[212,72,212,81],[212,82,212,91],[212,92,212,113],[211,6,211,15],[211,16,211,51],[211,52,211,61],[211,62,211,71],[211,72,211,81],[211,82,211,91],[209,92,209,113],[210,6,210,15],[210,16,210,51],[210,52,210,61],[210,62,210,71],[210,72,210,81],[210,82,210,91],[210,92,210,113],[209,6,209,15],[209,16,209,51],[209,52,209,61],[209,62,209,71],[209,72,209,81],[209,82,209,91],[215,92,215,113],[216,6,216,15],[216,16,216,51],[216,52,216,61],[216,62,216,71],[216,72,216,81],[216,82,216,91],[216,92,216,113],[215,6,215,15],[215,16,215,51],[215,52,215,61],[215,62,215,71],[215,72,215,81],[215,82,215,91],[213,92,213,113],[214,6,214,15],[214,16,214,51],[214,52,214,61],[214,62,214,71],[214,72,214,81],[214,82,214,91],[214,92,214,113],[213,6,213,15],[213,16,213,51],[213,52,213,61],[213,62,213,71],[213,72,213,81],[213,82,213,91],[219,92,219,113],[220,6,220,15],[220,16,220,51],[220,52,220,61],[220,62,220,71],[220,72,220,81],[220,82,220,91],[220,92,220,113],[219,6,219,15],[219,16,219,51],[219,52,219,61],[219,62,219,71],[219,72,219,81],[219,82,219,91],[217,92,217,113],[218,6,218,15],[218,16,218,51],[218,52,218,61],[218,62,218,71],[218,72,218,81],[218,82,218,91],[218,92,218,113],[217,6,217,15],[217,16,217,51],[217,52,217,61],[217,62,217,71],[217,72,217,81],[217,82,217,91],[223,92,223,113],[224,6,224,91],[224,92,224,113],[225,92,227,113],[228,54,230,57],[228,58,230,61],[228,62,230,65],[228,92,230,115],[223,6,223,15],[223,16,223,51],[223,52,223,61],[223,62,223,71],[223,72,223,81],[223,82,223,91],[221,92,221,113],[222,6,222,15],[222,16,222,51],[222,52,222,61],[222,62,222,71],[222,72,222,81],[222,82,222,91],[222,92,222,113],[221,6,221,15],[221,16,221,51],[221,52,221,61],[221,62,221,71],[221,72,221,81],[221,82,221,91],[238,105,241,107],[238,108,241,110],[238,111,241,113],[239,43,243,50],[239,51,243,53],[239,54,243,57],[239,58,243,60],[239,61,243,64],[239,65,243,67],[242,81,245,95],[234,5,236,7],[234,43,237,67],[238,81,241,95],[238,96,241,98],[238,99,241,101],[238,102,241,104],[242,96,245,113],[240,6,244,40],[259,82,259,91],[259,92,259,113],[260,6,260,15],[260,16,260,51],[260,52,260,61],[260,62,260,71],[260,72,260,81],[260,82,260,91],[260,92,260,113],[247,6,250,17],[247,18,250,51],[247,54,250,67],[247,68,250,113],[254,43,257,67],[259,6,259,15],[259,16,259,51],[259,52,259,61],[259,62,259,71],[259,72,259,81],[263,92,263,113],[264,6,264,15],[264,16,264,51],[264,52,264,61],[264,62,264,71],[264,72,264,81],[264,82,264,91],[264,92,264,113],[263,6,263,15],[263,16,263,51],[263,52,263,61],[263,62,263,71],[263,72,263,81],[263,82,263,91],[261,92,261,113],[262,6,262,15],[262,16,262,51],[262,52,262,61],[262,62,262,71],[262,72,262,81],[262,82,262,91],[262,92,262,113],[261,6,261,15],[261,16,261,51],[261,52,261,61],[261,62,261,71],[261,72,261,81],[261,82,261,91],[267,92,267,113],[268,6,268,15],[268,16,268,51],[268,52,268,61],[268,62,268,71],[268,72,268,81],[268,82,268,91],[268,92,268,113],[267,6,267,15],[267,16,267,51],[267,52,267,61],[267,62,267,71],[267,72,267,81],[267,82,267,91],[265,92,265,113],[266,6,266,15],[266,16,266,51],[266,52,266,61],[266,62,266,71],[266,72,266,81],[266,82,266,91],[266,92,266,113],[265,6,265,15],[265,16,265,51],[265,52,265,61],[265,62,265,71],[265,72,265,81],[265,82,265,91],[271,92,271,113],[272,6,272,15],[272,16,272,51],[272,52,272,61],[272,62,272,71],[272,72,272,81],[272,82,272,91],[272,92,272,113],[271,6,271,15],[271,16,271,51],[271,52,271,61],[271,62,271,71],[271,72,271,81],[271,82,271,91],[269,92,269,113],[270,6,270,15],[270,16,270,51],[270,52,270,61],[270,62,270,71],[270,72,270,81],[270,82,270,91],[270,92,270,113],[269,6,269,15],[269,16,269,51],[269,52,269,61],[269,62,269,71],[269,72,269,81],[269,82,269,91],[275,92,275,113],[276,6,276,15],[276,16,276,51],[276,52,276,61],[276,62,276,71],[276,72,276,81],[276,82,276,91],[276,92,276,113],[275,6,275,15],[275,16,275,51],[275,52,275,61],[275,62,275,71],[275,72,275,81],[275,82,275,91],[273,92,273,113],[274,6,274,15],[274,16,274,51],[274,52,274,61],[274,62,274,71],[274,72,274,81],[274,82,274,91],[274,92,274,113],[273,6,273,15],[273,16,273,51],[273,52,273,61],[273,62,273,71],[273,72,273,81],[273,82,273,91],[279,92,279,113],[280,6,280,15],[280,16,280,51],[280,52,280,61],[280,62,280,71],[280,72,280,81],[280,82,280,91],[280,92,280,113],[279,6,279,15],[279,16,279,51],[279,52,279,61],[279,62,279,71],[279,72,279,81],[279,82,279,91],[277,92,277,113],[278,6,278,15],[278,16,278,51],[278,52,278,61],[278,62,278,71],[278,72,278,81],[278,82,278,91],[278,92,278,113],[277,6,277,15],[277,16,277,51],[277,52,277,61],[277,62,277,71],[277,72,277,81],[277,82,277,91],[283,92,283,113],[284,6,284,15],[284,16,284,51],[284,52,284,61],[284,62,284,71],[284,72,284,81],[284,82,284,91],[284,92,284,113],[283,6,283,15],[283,16,283,51],[283,52,283,61],[283,62,283,71],[283,72,283,81],[283,82,283,91],[281,92,281,113],[282,6,282,15],[282,16,282,51],[282,52,282,61],[282,62,282,71],[282,72,282,81],[282,82,282,91],[282,92,282,113],[281,6,281,15],[281,16,281,51],[281,52,281,61],[281,62,281,71],[281,72,281,81],[281,82,281,91],[296,5,298,7],[296,43,299,67],[300,81,303,95],[300,96,303,98],[300,99,303,101],[300,102,303,104],[304,96,307,113],[285,92,285,113],[286,6,286,91],[286,92,286,113],[287,92,289,113],[290,54,292,57],[290,58,292,61],[290,62,292,65],[290,92,292,115],[285,6,285,15],[285,16,285,51],[285,52,285,61],[285,62,285,71],[285,72,285,81],[285,82,285,91],[309,6,312,17],[309,18,312,51],[309,54,312,67],[309,68,312,113],[316,43,319,67],[321,6,321,15],[321,16,321,51],[321,52,321,61],[321,62,321,71],[321,72,321,81],[300,105,303,107],[300,108,303,110],[300,111,303,113],[301,43,305,50],[301,51,305,53],[301,54,305,57],[301,58,305,60],[301,61,305,64],[301,65,305,67],[304,81,307,95],[302,6,306,40],[323,92,323,113],[324,6,324,15],[324,16,324,51],[324,52,324,61],[324,62,324,71],[324,72,324,81],[324,82,324,91],[324,92,324,113],[323,6,323,15],[323,16,323,51],[323,52,323,61],[323,62,323,71],[323,72,323,81],[323,82,323,91],[321,82,321,91],[321,92,321,113],[322,6,322,15],[322,16,322,51],[322,52,322,61],[322,62,322,71],[322,72,322,81],[322,82,322,91],[322,92,322,113],[327,92,327,113],[328,6,328,15],[328,16,328,51],[328,52,328,61],[328,62,328,71],[328,72,328,81],[328,82,328,91],[328,92,328,113],[327,6,327,15],[327,16,327,51],[327,52,327,61],[327,62,327,71],[327,72,327,81],[327,82,327,91],[325,92,325,113],[326,6,326,15],[326,16,326,51],[326,52,326,61],[326,62,326,71],[326,72,326,81],[326,82,326,91],[326,92,326,113],[325,6,325,15],[325,16,325,51],[325,52,325,61],[325,62,325,71],[325,72,325,81],[325,82,325,91],[331,92,331,113],[332,6,332,15],[332,16,332,51],[332,52,332,61],[332,62,332,71],[332,72,332,81],[332,82,332,91],[332,92,332,113],[331,6,331,15],[331,16,331,51],[331,52,331,61],[331,62,331,71],[331,72,331,81],[331,82,331,91],[329,92,329,113],[330,6,330,15],[330,16,330,51],[330,52,330,61],[330,62,330,71],[330,72,330,81],[330,82,330,91],[330,92,330,113],[329,6,329,15],[329,16,329,51],[329,52,329,61],[329,62,329,71],[329,72,329,81],[329,82,329,91],[335,92,335,113],[336,6,336,15],[336,16,336,51],[336,52,336,61],[336,62,336,71],[336,72,336,81],[336,82,336,91],[336,92,336,113],[335,6,335,15],[335,16,335,51],[335,52,335,61],[335,62,335,71],[335,72,335,81],[335,82,335,91],[333,92,333,113],[334,6,334,15],[334,16,334,51],[334,52,334,61],[334,62,334,71],[334,72,334,81],[334,82,334,91],[334,92,334,113],[333,6,333,15],[333,16,333,51],[333,52,333,61],[333,62,333,71],[333,72,333,81],[333,82,333,91],[339,92,339,113],[340,6,340,15],[340,16,340,51],[340,52,340,61],[340,62,340,71],[340,72,340,81],[340,82,340,91],[340,92,340,113],[339,6,339,15],[339,16,339,51],[339,52,339,61],[339,62,339,71],[339,72,339,81],[339,82,339,91],[337,92,337,113],[338,6,338,15],[338,16,338,51],[338,52,338,61],[338,62,338,71],[338,72,338,81],[338,82,338,91],[338,92,338,113],[337,6,337,15],[337,16,337,51],[337,52,337,61],[337,62,337,71],[337,72,337,81],[337,82,337,91],[344,16,344,51],[344,52,344,61],[344,62,344,71],[344,72,344,81],[344,82,344,91],[344,92,344,113],[343,6,343,15],[343,16,343,51],[343,52,343,61],[343,62,343,71],[343,72,343,81],[343,82,343,91],[341,92,341,113],[342,6,342,15],[342,16,342,51],[342,52,342,61],[342,62,342,71],[342,72,342,81],[342,82,342,91],[342,92,342,113],[341,6,341,15],[341,16,341,51],[341,52,341,61],[341,62,341,71],[341,72,341,81],[341,82,341,91],[343,92,343,113],[344,6,344,15],[347,92,347,113],[348,6,348,91],[348,92,348,113],[349,92,351,113],[352,54,354,57],[352,58,354,61],[352,62,354,65],[352,92,354,115],[347,6,347,15],[347,16,347,51],[347,52,347,61],[347,62,347,71],[347,72,347,81],[347,82,347,91],[345,92,345,113],[346,6,346,15],[346,16,346,51],[346,52,346,61],[346,62,346,71],[346,72,346,81],[346,82,346,91],[346,92,346,113],[345,6,345,15],[345,16,345,51]],"merged_total":1063,"flags":["merged_cut"]}
[]
[]
[null,null,null,null,null,{"$f":"LEFT('【始めに入力下さい】　基本情報入力'!$C$25)","v":""},null,null,null,null,null,null,null,null,null,null,null,null,null,null,null,null,null,null,null,null,null,null,null,null,null,null,null,null,null,null,null,null,null,null,null,null,null,null,null,null,null,"請 求 書"]
[]
[]
[null,null,null,null,null,null,null,null,null,null,null,null,null,null,null,null,null,null,null,null,null,null,null,null,null,null,null,null,null,null,null,null,null,null,null,null,null,null,null,null,null,null,null,null,null,null,null,null,null,null,null,null,null,null,null,null,null,null,null,null,null,null,null,null,null,null,null,null,null,null,null,null,null,null,null,null,null,null,null,null,null,null,null,null,null,null,null,null,null,null,null,null,null,null,null,null,null,null,null,null,null,null,null,null,null,null,null,null,null,null,null,null,null,null,null,null,null,null,null,null,null,null,null,null,null,null,null,null,null,null,null,null,null,null,null,null,null,null,null,null,"消費税端数処理",null,null,null,null,null,null,null,null,null,null,null,null,null,null,null,null,null,{"$f":"消費税マスタ!$D$3","v":"無"}]
[null,null,null,null,null,null,null,null,null,null,null,null,null,null,null,null,null,null,null,null,null,null,null,null,null,null,null,null,null,null,null,null,null,null,null,null,null,null,null,null,null,null,null,null,null,null,null,null,null,null,null,null,null,null,null,null,null,null,null,null,null,null,null,null,null,null,null,null,null,null,null,null,null,null,null,null,null,null,null,null,null,"取引先コード",null,null,null,null,null,null,null,null,null,null,null,null,null,null,{"$f":"IF('【始めに入力下さい】　基本情報入力'!$C$9=\"\",\"\",MID('【始めに入力下さい】　基本情報入力'!$C$9,1,1))","v":""},null,null,{"$f":"IF('【始めに入力下さい】　基本情報入力'!$C$9=\"\",\"\",MID('【始めに入力下さい】　基本情報入力'!$C$9,2,1))","v":""},null,null,{"$f":"IF('【始めに入力下さい】　基本情報入力'!$C$9=\"\",\"\",MID('【始めに入力下さい】　基本情報入力'!$C$9,3,1))","v":""},null,null,{"$f":"IF('【始めに入力下さい】　基本情報入力'!$C$9=\"\",\"\",MID('【始めに入力下さい】　基本情報入力'!$C$9,4,1))","v":""},null,null,{"$f":"IF('【始めに入力下さい】　基本情報入力'!$C$9=\"\",\"\",MID('【始めに入力下さい】　基本情報入力'!$C$9,5,1))","v":""},null,null,{"$f":"IF('【始めに入力下さい】　基本情報入力'!$C$9=\"\",\"\",MID('【始めに入力下さい】　基本情報入力'!$C$9,6,1))","v":""}]
[null,null,null,null,null,null,"株式会社ミスタービルド埼玉 御中",null,null,null,null,null,null,null,null,null,null,null,null,null,null,null,null,null,null,null,null,null,null,null,null,null,null,null,null,null,null,null,null,null,null,null,null,null,null,null,null,null,null,null,null,null,null,null,null,"年",null,null,null,null,null,null,"月",null,null,null,null,null,null,"日"]
[]
[]
[null,null,null,null,null,null,null,null,null,null,null,null,null,null,null,null,null,null,null,null,null,null,null,null,null,null,null,null,null,null,null,null,null,null,null,null,null,null,null,null,null,null,null,null,null,null,null,null,null,null,null,null,null,null,null,null,null,null,null,null,null,null,null,null,null,null,null,null,null,null,null,null,null,null,null,null,null,null,null,null,null,"登録番号",null,null,null,null,null,null,null,null,null,null,null,null,null,null,{"$f":"IF('【始めに入力下さい】　基本情報入力'!$C$12=\"\",\"\",'【始めに入力下さい】　基本情報入力'!$C$12)","v":""}]
[]
[null,null,null,null,null,null,null,null,null,"下記のとおり御請求申し上げます。"]
[]
[]
[null,null,null,null,null,null,"当月請求額（税込）",null,null,null,null,null,null,null,null,null,null,null,null,null,null,null,null,null,{"$f":"$CS$70","v":1154000}]
[null,null,null,null,null,null,null,null,null,null,null,null,null,null,null,null,null,null,null,null,null,null,null,null,null,null,null,null,null,null,null,null,null,null,null,null,null,null,null,null,null,null,null,null,null,null,null,null,null,null,null,null,null,null,null,"住所",null,null,null,null,null,null,null,null,null,null,{"$f":"IF('【始めに入力下さい】　基本情報入力'!$K$17=\"有\",'【始めに入力下さい】　基本情報入力'!$C$17,\"\")","v":0}]
[]
[]
[]
[null,null,null,null,null,null,null,null,null,null,null,null,null,null,null,null,null,null,null,null,null,null,null,null,null,null,null,null,null,null,null,null,null,null,null,null,null,null,null,null,null,null,null,null,null,null,null,null,null,null,null,null,null,null,null,"会社名\n（氏名）",null,null,null,null,null,null,null,null,null,null,{"$f":"IF('【始めに入力下さい】　基本情報入力'!$K$19=\"有\",'【始めに入力下さい】　基本情報入力'!$C$19,\"\")","v":0}]
[null,null,null,null,null,null,"立替控除額（税込）"]
[]
[]
[]
[null,null,null,null,null,null,"当月請求額（税込）\n（立替控除後）",null,null,null,null,null,null,null,null,null,null,null,null,null,null,null,null,null,{"$f":"$Y$16+$Y$22","v":1154000},null,null,null,null,null,null,null,null,null,null,null,null,null,null,null,null,null,null,null,null,null,null,null,null,null,null,null,null,null,null,null,null,null,null,null,null,null,null,null,null,null,null,null,null,null,null,null,null,null,null,null,null,null,null,null,null,null,null,null,null,null,null,null,null,null,null,null,null,null,null,null,null,null,null,null,null,null,null,null,null,"印"]
[null,null,null,null,null,null,null,null,null,null,null,null,null,null,null,null,null,null,null,null,null,null,null,null,null,null,null,null,null,null,null,null,null,null,null,null,null,null,null,null,null,null,null,null,null,null,null,null,null,null,null,null,null,null,null,"TEL",null,null,null,null,null,null,null,null,null,null,{"$f":"IF('【始めに入力下さい】　基本情報入力'!$K$29=\"有\",CONCATENATE('【始めに入力下さい】　基本情報入力'!$C$29,\" - \",'【始めに入力下さい】　基本情報入力'!$E$29,\" - \",'【始めに入力下さい】　基本情報入力'!$G$29),\"\")","v":" -  - "}]
[]
[]
[]
[]
[null,null,null,null,null,null,"所長名\n（ミスタービルド埼玉）",null,null,null,null,null,null,null,null,null,null,null,null,null,null,null,null,null,null,null,null,null,null,null,null,null,null,null,null,null,null,null,null,null,null,null,null,null,null,null,null,null,null,null,null,null,null,null,"工事件名"]
[]
[]
[]
[null,null,null,null,null,null,"注文番号",null,null,null,null,null,null,null,null,null,null,null,null,null,null,null,null,null,null,null,null,null,null,null,null,null,null,null,null,null,null,null,null,null,null,null,null,null,null,null,null,null,null,null,null,null,null,null,"品目及内容"]
[]
[]
[]
[]
[null,null,null,null,null,null,null,null,null,null,null,null,null,null,null,null,null,null,null,null,null,null,null,null,null,null,null,null,null,null,null,null,null,null,null,null,null,null,null,null,null,null,null,null,null,null,"内訳明細"]
[]
[]
[]
[]
[null,null,null,null,null,null,"日付",null,null,null,null,null,null,null,null,null,"品目規格又は作業内容",null,null,null,null,null,null,null,null,null,null,null,null,null,null,null,null,null,null,null,null,null,null,null,null,null,null,null,null,null,null,null,null,null,null,null,"単位",null,null,null,null,null,null,null,null,null,"数量",null,null,null,null,null,null,null,null,null,"単価",null,null,null,null,null,null,null,null,null,"消費税区分",null,null,null,null,null,null,null,null,null,"税抜金額"]
[null,null,null,null,null,null,"11/30",null,null,null,null,null,null,null,null,null,"出来高調書通り",null,null,null,null,null,null,null,null,null,null,null,null,null,null,null,null,null,null,null,null,null,null,null,null,null,null,null,null,null,null,null,null,null,null,null,"式",null,null,null,null,null,null,null,null,null,1,null,null,null,null,null,null,null,null,null,1000000,null,null,null,null,null,null,null,null,null,"１０％",null,null,null,null,null,null,null,null,null,{"$f":"IF(BU47=\"\",\"\",IF(BK47=\"\",\"数量未入力\",IF(CE47=\"\",\"消費税区分未入力\",ROUNDDOWN(BK47*BU47,0))))","v":1000000}]
[null,null,null,null,null,null,"11/30",null,null,null,null,null,null,null,null,null,"添付明細書通り",null,null,null,null,null,null,null,null,null,null,null,null,null,null,null,null,null,null,null,null,null,null,null,null,null,null,null,null,null,null,null,null,null,null,null,"式",null,null,null,null,null,null,null,null,null,1,null,null,null,null,null,null,null,null,null,50000,null,null,null,null,null,null,null,null,null,"８％(軽)",null,null,null,null,null,null,null,null,null,{"$f":"IF(BU48=\"\",\"\",IF(BK48=\"\",\"数量未入力\",IF(CE48=\"\",\"消費税区分未入力\",ROUNDDOWN(BK48*BU48,0))))","v":50000}]
[null,null,null,null,null,null,null,null,null,null,null,null,null,null,null,null,null,null,null,null,null,null,null,null,null,null,null,null,null,null,null,null,null,null,null,null,null,null,null,null,null,null,null,null,null,null,null,null,null,null,null,null,null,null,null,null,null,null,null,null,null,null,null,null,null,null,null,null,null,null,null,null,null,null,null,null,null,null,null,null,null,null,null,null,null,null,null,null,null,null,null,null,{"$f":"IF(BU49=\"\",\"\",IF(BK49=\"\",\"数量未入力\",IF(CE49=\"\",\"消費税区分未入力\",ROUNDDOWN(BK49*BU49,0))))","v":""}]
[null,null,null,null,null,null,null,null,null,null,null,null,null,null,null,null,null,null,null,null,null,null,null,null,null,null,null,null,null,null,null,null,null,null,null,null,null,null,null,null,null,null,null,null,null,null,null,null,null,null,null,null,null,null,null,null,null,null,null,null,null,null,null,null,null,null,null,null,null,null,null,null,null,null,null,null,null,null,null,null,null,null,null,null,null,null,null,null,null,null,null,null,{"$f":"IF(BU50=\"\",\"\",IF(BK50=\"\",\"数量未入力\",IF(CE50=\"\",\"消費税区分未入力\",ROUNDDOWN(BK50*BU50,0))))","v":""}]
[null,null,null,null,null,null,null,null,null,null,null,null,null,null,null,null,null,null,null,null,null,null,null,null,null,null,null,null,null,null,null,null,null,null,null,null,null,null,null,null,null,null,null,null,null,null,null,null,null,null,null,null,null,null,null,null,null,null,null,null,null,null,null,null,null,null,null,null,null,null,null,null,null,null,null,null,null,null,null,null,null,null,null,null,null,null,null,null,null,null,null,null,{"$f":"IF(BU51=\"\",\"\",IF(BK51=\"\",\"数量未入力\",IF(CE51=\"\",\"消費税区分未入力\",ROUNDDOWN(BK51*BU51,0))))","v":""}]
[null,null,null,null,null,null,null,null,null,null,null,null,null,null,null,null,null,null,null,null,null,null,null,null,null,null,null,null,null,null,null,null,null,null,null,null,null,null,null,null,null,null,null,null,null,null,null,null,null,null,null,null,null,null,null,null,null,null,null,null,null,null,null,null,null,null,null,null,null,null,null,null,null,null,null,null,null,null,null,null,null,null,null,null,null,null,null,null,null,null,null,null,{"$f":"IF(BU52=\"\",\"\",IF(BK52=\"\",\"数量未入力\",IF(CE52=\"\",\"消費税区分未入力\",ROUNDDOWN(BK52*BU52,0))))","v":""}]
[null,null,null,null,null,null,null,null,null,null,null,null,null,null,null,null,null,null,null,null,null,null,null,null,null,null,null,null,null,null,null,null,null,null,null,null,null,null,null,null,null,null,null,null,null,null,null,null,null,null,null,null,null,null,null,null,null,null,null,null,null,null,null,null,null,null,null,null,null,null,null,null,null,null,null,null,null,null,null,null,null,null,null,null,null,null,null,null,null,null,null,null,{"$f":"IF(BU53=\"\",\"\",IF(BK53=\"\",\"数量未入力\",IF(CE53=\"\",\"消費税区分未入力\",ROUNDDOWN(BK53*BU53,0))))","v":""}]
[null,null,null,null,null,null,null,null,null,null,null,null,null,null,null,null,null,null,null,null,null,null,null,null,null,null,null,null,null,null,null,null,null,null,null,null,null,null,null,null,null,null,null,null,null,null,null,null,null,null,null,null,null,null,null,null,null,null,null,null,null,null,null,null,null,null,null,null,null,null,null,null,null,null,null,null,null,null,null,null,null,null,null,null,null,null,null,null,null,null,null,null,""]
[null,null,null,null,null,null,null,null,null,null,null,null,null,null,null,null,null,null,null,null,null,null,null,null,null,null,null,null,null,null,null,null,null,null,null,null,null,null,null,null,null,null,null,null,null,null,null,null,null,null,null,null,null,null,null,null,null,null,null,null,null,null,null,null,null,null,null,null,null,null,null,null,null,null,null,null,null,null,null,null,null,null,null,null,null,null,null,null,null,null,null,null,{"$f":"IF(BU55=\"\",\"\",IF(BK55=\"\",\"数量未入力\",IF(CE55=\"\",\"消費税区分未入力\",ROUNDDOWN(BK55*BU55,0))))","v":""}]
[null,null,null,null,null,null,null,null,null,null,null,null,null,null,null,null,null,null,null,null,null,null,null,null,null,null,null,null,null,null,null,null,null,null,null,null,null,null,null,null,null,null,null,null,null,null,null,null,null,null,null,null,null,null,null,null,null,null,null,null,null,null,null,null,null,null,null,null,null,null,null,null,null,null,null,null,null,null,null,null,null,null,null,null,null,null,null,null,null,null,null,null,{"$f":"IF(BU56=\"\",\"\",IF(BK56=\"\",\"数量未入力\",IF(CE56=\"\",\"消費税区分未入力\",ROUNDDOWN(BK56*BU56,0))))","v":""}]
[null,null,null,null,null,null,null,null,null,null,null,null,null,null,null,null,null,null,null,null,null,null,null,null,null,null,null,null,null,null,null,null,null,null,null,null,null,null,null,null,null,null,null,null,null,null,null,null,null,null,null,null,null,null,null,null,null,null,null,null,null,null,null,null,null,null,null,null,null,null,null,null,null,null,null,null,null,null,null,null,null,null,null,null,null,null,null,null,null,null,null,null,{"$f":"IF(BU57=\"\",\"\",IF(BK57=\"\",\"数量未入力\",IF(CE57=\"\",\"消費税区分未入力\",ROUNDDOWN(BK57*BU57,0))))","v":""}]
[null,null,null,null,null,null,"頁計",null,null,null,null,null,null,null,null,null,null,null,null,null,null,null,null,null,null,null,null,null,null,null,null,null,null,null,null,null,null,null,null,null,null,null,null,null,null,null,null,null,null,null,null,null,null,null,null,null,null,null,null,null,null,null,null,null,null,null,null,null,null,null,null,null,null,null,null,null,null,null,null,null,null,null,null,null,null,null,null,null,null,null,null,null,{"$f":"SUMIF($CE$47:$CN$57,\"<>*税端数*\",$CO$47:$DJ$57)","v":1050000}]
[null,null,null,null,null,null,"総合計",null,null,null,null,null,null,null,null,null,null,null,null,null,null,null,null,null,null,null,null,null,null,null,null,null,null,null,null,null,null,null,null,null,null,null,null,null,null,null,null,null,null,null,null,null,null,null,null,null,null,null,null,null,null,null,null,null,null,null,null,null,null,null,null,null,null,null,null,null,null,null,null,null,null,null,null,null,null,null,null,null,null,null,null,null,{"$f":"SUM($CO$58,$CO$163,$CO$225,$CO$287,$CO$349)","v":1050000}]
[]
[null,null,null,null,null,null,"消費税区分",null,null,null,null,null,null,null,null,null,null,null,null,null,null,null,null,null,"１０％",null,null,null,null,null,null,null,null,null,null,null,null,null,null,null,null,null,"８％（軽）",null,null,null,null,null,null,null,null,null,null,null,null,null,null,null,null,null,"８％",null,null,null,null,null,null,null,null,null,null,null,null,null,null,null,null,null,"対象外",null,null,null,null,null,null,null,null,null,null,null,null,null,null,null,null,null,"総合計"]
[]
[]
[null,null,null,null,null,null,"税抜金額",null,null,null,null,null,null,null,null,null,null,null,null,100000000,null,null,null,null,{"$f":"SUM(SUMIF($CE$47:$CN$57,\"１０％\",$CO$47:$DJ$57),SUMIF($CE$137:$CN$162,\"１０％\",$CO$137:$DJ$162),SUMIF($CE$199:$CN$224,\"１０％\",$CO$199:$DJ$224),SUMIF($CE$261:$CN$286,\"１０％\",$CO$261:$DJ$286),SUMIF($CE$323:$CN$348,\"１０％\",$CO$323:$DJ$348))","v":1000000},null,null,null,null,null,null,null,null,null,null,null,null,null,null,null,null,null,{"$f":"SUM(SUMIF($CE$47:$CN$57,\"８％(軽)\",$CO$47:$DJ$57),SUMIF($CE$137:$CN$162,\"８％(軽)\",$CO$137:$DJ$162),SUMIF($CE$199:$CN$224,\"８％(軽)\",$CO$199:$DJ$224),SUMIF($CE$261:$CN$286,\"８％(軽)\",$CO$261:$DJ$286),SUMIF($CE$323:$CN$348,\"８％(軽)\",$CO$323:$DJ$348))","v":50000},null,null,null,null,null,null,null,null,null,null,null,null,null,null,null,null,null,{"$f":"SUM(SUMIF($CE$47:$CN$57,\"８％\",$CO$47:$DJ$57),SUMIF($CE$137:$CN$162,\"８％\",$CO$137:$DJ$162),SUMIF($CE$199:$CN$224,\"８％\",$CO$199:$DJ$224),SUMIF($CE$261:$CN$286,\"８％\",$CO$261:$DJ$286),SUMIF($CE$323:$CN$348,\"８％\",$CO$323:$DJ$348))","v":0},null,null,null,null,null,null,null,null,null,null,null,null,null,null,null,null,null,{"$f":"SUM(SUMIF($CE$47:$CN$57,\"対象外\",$CO$47:$DJ$57),SUMIF($CE$137:$CN$162,\"対象外\",$CO$137:$DJ$162),SUMIF($CE$199:$CN$224,\"対象外\",$CO$199:$DJ$224),SUMIF($CE$261:$CN$286,\"対象外\",$CO$261:$DJ$286),SUMIF($CE$323:$CN$348,\"対象外\",$CO$323:$DJ$348))","v":0},null,null,null,null,null,null,null,null,null,null,null,null,null,null,null,null,null,{"$f":"SUM(Y64:CR66)","v":1050000}]
[]
[]
[null,null,null,null,null,null,"消費税額",null,null,null,null,null,null,null,null,null,null,null,null,10000000,null,null,null,null,{"$f":"IF(Y64=\"\",\"\",SUM(ROUNDDOWN(Y64*10%,0),SUM(SUMIF($CE$47:$CN$57,\"税端数１０％\",$CO$47:$DJ$57),SUMIF($CE$137:$CN$162,\"税端数１０％\",$CO$137:$DJ$162),SUMIF($CE$199:$CN$224,\"税端数１０％\",$CO$199:$DJ$224),SUMIF($CE$261:$CN$286,\"税端数１０％\",$CO$261:$DJ$286),SUMIF($CE$323:$CN$348,\"税端数１０％\",$CO$323:$DJ$348))))","v":100000},null,null,null,null,null,null,null,null,null,null,null,null,null,null,null,null,null,{"$f":"IF(AQ64=\"\",\"\",SUM(ROUNDDOWN(AQ64*8%,0),SUM(SUMIF($CE$47:$CN$57,\"税端数８％(軽)\",$CO$47:$DJ$57),SUMIF($CE$137:$CN$162,\"税端数８％(軽)\",$CO$137:$DJ$162),SUMIF($CE$199:$CN$224,\"税端数８％(軽)\",$CO$199:$DJ$224),SUMIF($CE$261:$CN$286,\"税端数８％(軽)\",$CO$261:$DJ$286),SUMIF($CE$323:$CN$348,\"税端数８％(軽)\",$CO$323:$DJ$348))))","v":4000},null,null,null,null,null,null,null,null,null,null,null,null,null,null,null,null,null,{"$f":"IF(BI64=\"\",\"\",SUM(ROUNDDOWN(BI64*8%,0),SUM(SUMIF($CE$47:$CN$57,\"税端数８％\",$CO$47:$DJ$57),SUMIF($CE$137:$CN$162,\"税端数８％\",$CO$137:$DJ$162),SUMIF($CE$199:$CN$224,\"税端数８％\",$CO$199:$DJ$224),SUMIF($CE$261:$CN$286,\"税端数８％\",$CO$261:$DJ$286),SUMIF($CE$323:$CN$348,\"税端数８％\",$CO$323:$DJ$348))))","v":0},null,null,null,null,null,null,null,null,null,null,null,null,null,null,null,null,null,{"$f":"IF(CA64=\"\",\"\",ROUNDDOWN(CA64*0,0))","v":0},null,null,null,null,null,null,null,null,null,null,null,null,null,null,null,null,null,{"$f":"SUM(Y67:CR69)","v":104000}]
[]
[]
[null,null,null,null,null,null,"税込金額",null,null,null,null,null,null,null,null,null,null,null,null,110000000,null,null,null,null,{"$f":"IF(Y64=\"\",\"\",SUM(Y64:AP69))","v":1100000},null,null,null,null,null,null,null,null,null,null,null,null,null,null,null,null,null,{"$f":"IF(AQ64=\"\",\"\",SUM(AQ64:BH69))","v":54000},null,null,null,null,null,null,null,null,null,null,null,null,null,null,null,null,null,{"$f":"IF(BI64=\"\",\"\",SUM(BI64:BZ69))","v":0},null,null,null,null,null,null,null,null,null,null,null,null,null,null,null,null,null,{"$f":"IF(CA64=\"\",\"\",SUM(CA64:CR69))","v":0},null,null,null,null,null,null,null,null,null,null,null,null,null,null,null,null,null,{"$f":"IF(CS64=\"\",\"\",SUM(CS64:DJ69))","v":1154000}]
[]
[]
[]
[null,null,null,null,null,null,"【請求書作成　注意事項】",null,null,null,null,null,null,null,null,null,null,null,null,null,null,null,null,null,null,null,null,null,null,null,null,null,null,null,null,null,null,null,null,null,null,null,null,null,null,null,null,null,null,null,null,null,null,null,null,null,null,null,null,null,null,null,null,null,null,null,null,null,null,null,null,null,null,null,null,null,null,null,null,null,null,null,null,null,null,"※担当者記入欄"]
[null,null,null,null,null,null,null,null,null,null,null,null,null,null,null,null,null,null,null,null,null,null,null,null,null,null,null,null,null,null,null,null,null,null,null,null,null,null,null,null,null,null,null,null,null,null,null,null,null,null,null,null,null,null,null,null,null,null,null,null,null,null,null,null,null,null,null,null,null,null,null,null,null,null,null,null,null,null,null,null,null,null,null,null,null,null,null,null,null,null,null,null,null,null,null,null,null,null,null,null,null,null,null,null,null,null,null,"（税抜）"]
[]
[]
[null,null,null,null,null,null,"1.　出来高で請求する場合、【出来高調書】（※1）を必ず添付すること",null,null,null,null,null,null,null,null,null,null,null,null,null,null,null,null,null,null,null,null,null,null,null,null,null,null,null,null,null,null,null,null,null,null,null,null,null,null,null,null,null,null,null,null,null,null,null,null,null,null,null,null,null,null,null,null,null,null,null,null,null,null,null,null,null,null,"工　種",null,null,null,"工種コード",null,null,null,null,null,null,null,null,null,null,null,null,null,null,null,null,"工種が2種以上の場合　　　　　　　　　　　　　　　↓　内訳金額を入力"]
[]
[]
[]
[null,null,null,null,null,null,"2.　本書に明細書添付の上、一式請求可能（消費税区分ごとの請求にすること）"]
[]
[]
[]
[null,null,null,null,null,null,"3.　【交通費】【法定福利費】は税抜きとなるように逆算して入力（100/110）"]
[]
[]
[]
[]
[]
[]
[]
[null,null,null,null,null,null,"2023年（令和5年）10月より消費税課税事業者の場合は登録番号を必ず入力（※2）"]
[null,null,null,null,null,null,null,null,null,null,null,null,null,null,null,null,null,null,null,null,null,null,null,null,null,null,null,null,null,null,null,null,null,null,null,null,null,null,null,null,null,null,null,null,null,null,null,null,null,null,null,null,null,null,null,null,null,null,null,null,null,null,null,null,null,null,null,null,null,null,null,null,null,"承認印",null,null,null,null,null,null,null,null,null,null,"確認印",null,null,null,null,null,null,null,null,null,null,null,null,null,null,null,null,null,null,"担当者印"]
[null,null,null,null,null,null,"2023年（令和5年）10月より内訳１行ごとの消費税計算は不可（※2）"]
[]
[]
[null,null,null,null,null,null,"（※1）弊社ホームページでダウンロード可能"]
[]
[null,null,null,null,null,null,"（※2）適格請求書等保存方式「インボイス制度」　国税庁ホームページ参照"]
[]
[]
[]
[null,null,null,null,null,null,null,null,null,null,null,null,null,null,null,null,null,null,null,null,null,null,null,null,null,null,null,null,null,null,null,null,null,null,null,null,null,null,null,null,null,null,null,null,null,null,null,null,null,null,null,null,null,null,1,null,null,null,"/",null,null,null,{"$f":"SUM(1,IF(COUNTIF(内訳明細2,\"<>\")>0,1),IF(COUNTIF(内訳明細3,\"<>\")>0,1),IF(COUNTIF(内訳明細4,\"<>\")>0,1),IF(COUNTIF(内訳明細5,\"<>\")>0,1))","v":1},null,null,null,null,null,null,null,null,null,null,null,null,null,null,null,null,null,null,null,null,null,null,null,null,null,null,null,null,null,{"$f":"'【始めに入力下さい】　基本情報入力'!$I$3","v":"(株)ミスタービルド埼玉Ver.1.0"}]
[]
[]
[]
[]
[]
[null,null,null,null,null,{"$f":"LEFT('【始めに入力下さい】　基本情報入力'!$C$25)","v":""},null,null,null,null,null,null,null,null,null,null,null,null,null,null,null,null,null,null,null,null,null,null,null,null,null,null,null,null,null,null,null,null,null,null,null,null,null,"請 求 書 ②"]
[]
[]
[]
[null,null,null,null,null,null,null,null,null,null,null,null,null,null,null,null,null,null,null,null,null,null,null,null,null,null,null,null,null,null,null,null,null,null,null,null,null,null,null,null,null,null,null,null,null,null,null,null,null,null,null,null,null,null,null,null,null,null,null,null,null,null,null,null,null,null,null,null,null,null,null,null,null,null,null,null,null,null,null,null,null,"取引先コード",null,null,null,null,null,null,null,null,null,null,null,null,null,null,{"$f":"$CS$7","v":""},null,null,{"$f":"$CV$7","v":""},null,null,{"$f":"$CY$7","v":""},null,null,{"$f":"$DB$7","v":""},null,null,{"$f":"$DE$7","v":""},null,null,{"$f":"$DH$7","v":""}]
[null,null,null,null,null,null,null,null,null,null,null,null,null,null,null,null,null,null,null,null,null,null,null,null,null,null,null,null,null,null,null,null,null,null,null,null,null,null,null,null,null,null,null,{"$f":"IF($AV$8=\"\",\"\",$AV$8)","v":""},null,null,null,null,null,null,null,"年",null,null,{"$f":"IF($BG$8=\"\",\"\",$BG$8)","v":""},null,null,null,"月",null,null,{"$f":"IF($BN$8=\"\",\"\",$BN$8)","v":""},null,null,null,"日"]
[null,null,null,null,null,null,"株式会社ミスタービルド埼玉 御中"]
[]
[null,null,null,null,null,null,null,null,null,null,null,null,null,null,null,null,null,null,null,null,null,null,null,null,null,null,null,null,null,null,null,null,null,null,null,null,null,null,null,null,null,null,null,null,null,null,null,null,null,null,null,null,null,null,null,null,null,null,null,null,null,null,null,null,null,null,null,null,null,null,null,null,null,null,null,null,null,null,null,null,null,"登録番号",null,null,null,null,null,null,null,null,null,null,null,null,null,null,{"$f":"$CS$11","v":""}]
[]
[]
[]
[]
[null,null,null,null,null,null,"工事件名",null,null,null,null,null,null,null,null,null,null,null,{"$f":"IF($BO$32=\"\",\"\",$BO$32)","v":""},null,null,null,null,null,null,null,null,null,null,null,null,null,null,null,null,null,null,null,null,null,null,null,null,null,null,null,null,null,null,null,null,null,null,null,"会社名（氏名）",null,null,null,null,null,null,null,null,null,null,null,null,null,{"$f":"IF('【始めに入力下さい】　基本情報入力'!$C$19=\"\",\"\",'【始めに入力下さい】　基本情報入力'!$C$19)","v":""}]
[]
[]
[]
[]
[]
[]
[null,null,null,null,null,null,null,null,null,null,null,null,null,null,null,null,null,null,null,null,null,null,null,null,null,null,null,null,null,null,null,null,null,null,null,null,null,null,null,null,null,null,null,"内訳明細②"]
[]
[]
[]
[]
[null,null,null,null,null,null,"日付",null,null,null,null,null,null,null,null,null,"品目規格又は作業内容",null,null,null,null,null,null,null,null,null,null,null,null,null,null,null,null,null,null,null,null,null,null,null,null,null,null,null,null,null,null,null,null,null,null,null,"単位",null,null,null,null,null,null,null,null,null,"数量",null,null,null,null,null,null,null,null,null,"単価",null,null,null,null,null,null,null,null,null,"消費税区分",null,null,null,null,null,null,null,null,null,"税抜金額"]
[null,null,null,null,null,null,null,null,null,null,null,null,null,null,null,null,null,null,null,null,null,null,null,null,null,null,null,null,null,null,null,null,null,null,null,null,null,null,null,null,null,null,null,null,null,null,null,null,null,null,null,null,null,null,null,null,null,null,null,null,null,null,null,null,null,null,null,null,null,null,null,null,null,null,null,null,null,null,null,null,null,null,null,null,null,null,null,null,null,null,null,null,{"$f":"IF(BU137=\"\",\"\",IF(BK137=\"\",\"数量未入力\",IF(CE137=\"\",\"消費税区分未入力\",ROUNDDOWN(BK137*BU137,0))))","v":""}]
[null,null,null,null,null,null,null,null,null,null,null,null,null,null,null,null,null,null,null,null,null,null,null,null,null,null,null,null,null,null,null,null,null,null,null,null,null,null,null,null,null,null,null,null,null,null,null,null,null,null,null,null,null,null,null,null,null,null,null,null,null,null,null,null,null,null,null,null,null,null,null,null,null,null,null,null,null,null,null,null,null,null,null,null,null,null,null,null,null,null,null,null,""]
[null,null,null,null,null,null,null,null,null,null,null,null,null,null,null,null,null,null,null,null,null,null,null,null,null,null,null,null,null,null,null,null,null,null,null,null,null,null,null,null,null,null,null,null,null,null,null,null,null,null,null,null,null,null,null,null,null,null,null,null,null,null,null,null,null,null,null,null,null,null,null,null,null,null,null,null,null,null,null,null,null,null,null,null,null,null,null,null,null,null,null,null,""]
[null,null,null,null,null,null,null,null,null,null,null,null,null,null,null,null,null,null,null,null,null,null,null,null,null,null,null,null,null,null,null,null,null,null,null,null,null,null,null,null,null,null,null,null,null,null,null,null,null,null,null,null,null,null,null,null,null,null,null,null,null,null,null,null,null,null,null,null,null,null,null,null,null,null,null,null,null,null,null,null,null,null,null,null,null,null,null,null,null,null,null,null,""]
[null,null,null,null,null,null,null,null,null,null,null,null,null,null,null,null,null,null,null,null,null,null,null,null,null,null,null,null,null,null,null,null,null,null,null,null,null,null,null,null,null,null,null,null,null,null,null,null,null,null,null,null,null,null,null,null,null,null,null,null,null,null,null,null,null,null,null,null,null,null,null,null,null,null,null,null,null,null,null,null,null,null,null,null,null,null,null,null,null,null,null,null,""]
[null,null,null,null,null,null,null,null,null,null,null,null,null,null,null,null,null,null,null,null,null,null,null,null,null,null,null,null,null,null,null,null,null,null,null,null,null,null,null,null,null,null,null,null,null,null,null,null,null,null,null,null,null,null,null,null,null,null,null,null,null,null,null,null,null,null,null,null,null,null,null,null,null,null,null,null,null,null,null,null,null,null,null,null,null,null,null,null,null,null,null,null,""]
[null,null,null,null,null,null,null,null,null,null,null,null,null,null,null,null,null,null,null,null,null,null,null,null,null,null,null,null,null,null,null,null,null,null,null,null,null,null,null,null,null,null,null,null,null,null,null,null,null,null,null,null,null,null,null,null,null,null,null,null,null,null,null,null,null,null,null,null,null,null,null,null,null,null,null,null,null,null,null,null,null,null,null,null,null,null,null,null,null,null,null,null,""]
[null,null,null,null,null,null,null,null,null,null,null,null,null,null,null,null,null,null,null,null,null,null,null,null,null,null,null,null,null,null,null,null,null,null,null,null,null,null,null,null,null,null,null,null,null,null,null,null,null,null,null,null,null,null,null,null,null,null,null,null,null,null,null,null,null,null,null,null,null,null,null,null,null,null,null,null,null,null,null,null,null,null,null,null,null,null,null,null,null,null,null,null,""]
[null,null,null,null,null,null,null,null,null,null,null,null,null,null,null,null,null,null,null,null,null,null,null,null,null,null,null,null,null,null,null,null,null,null,null,null,null,null,null,null,null,null,null,null,null,null,null,null,null,null,null,null,null,null,null,null,null,null,null,null,null,null,null,null,null,null,null,null,null,null,null,null,null,null,null,null,null,null,null,null,null,null,null,null,null,null,null,null,null,null,null,null,""]
[null,null,null,null,null,null,null,null,null,null,null,null,null,null,null,null,null,null,null,null,null,null,null,null,null,null,null,null,null,null,null,null,null,null,null,null,null,null,null,null,null,null,null,null,null,null,null,null,null,null,null,null,null,null,null,null,null,null,null,null,null,null,null,null,null,null,null,null,null,null,null,null,null,null,null,null,null,null,null,null,null,null,null,null,null,null,null,null,null,null,null,null,""]
[null,null,null,null,null,null,null,null,null,null,null,null,null,null,null,null,null,null,null,null,null,null,null,null,null,null,null,null,null,null,null,null,null,null,null,null,null,null,null,null,null,null,null,null,null,null,null,null,null,null,null,null,null,null,null,null,null,null,null,null,null,null,null,null,null,null,null,null,null,null,null,null,null,null,null,null,null,null,null,null,null,null,null,null,null,null,null,null,null,null,null,null,""]
[null,null,null,null,null,null,null,null,null,null,null,null,null,null,null,null,null,null,null,null,null,null,null,null,null,null,null,null,null,null,null,null,null,null,null,null,null,null,null,null,null,null,null,null,null,null,null,null,null,null,null,null,null,null,null,null,null,null,null,null,null,null,null,null,null,null,null,null,null,null,null,null,null,null,null,null,null,null,null,null,null,null,null,null,null,null,null,null,null,null,null,null,""]
[null,null,null,null,null,null,null,null,null,null,null,null,null,null,null,null,null,null,null,null,null,null,null,null,null,null,null,null,null,null,null,null,null,null,null,null,null,null,null,null,null,null,null,null,null,null,null,null,null,null,null,null,null,null,null,null,null,null,null,null,null,null,null,null,null,null,null,null,null,null,null,null,null,null,null,null,null,null,null,null,null,null,null,null,null,null,null,null,null,null,null,null,""]
[null,null,null,null,null,null,null,null,null,null,null,null,null,null,null,null,null,null,null,null,null,null,null,null,null,null,null,null,null,null,null,null,null,null,null,null,null,null,null,null,null,null,null,null,null,null,null,null,null,null,null,null,null,null,null,null,null,null,null,null,null,null,null,null,null,null,null,null,null,null,null,null,null,null,null,null,null,null,null,null,null,null,null,null,null,null,null,null,null,null,null,null,""]
[null,null,null,null,null,null,null,null,null,null,null,null,null,null,null,null,null,null,null,null,null,null,null,null,null,null,null,null,null,null,null,null,null,null,null,null,null,null,null,null,null,null,null,null,null,null,null,null,null,null,null,null,null,null,null,null,null,null,null,null,null,null,null,null,null,null,null,null,null,null,null,null,null,null,null,null,null,null,null,null,null,null,null,null,null,null,null,null,null,null,null,null,""]
[null,null,null,null,null,null,null,null,null,null,null,null,null,null,null,null,null,null,null,null,null,null,null,null,null,null,null,null,null,null,null,null,null,null,null,null,null,null,null,null,null,null,null,null,null,null,null,null,null,null,null,null,null,null,null,null,null,null,null,null,null,null,null,null,null,null,null,null,null,null,null,null,null,null,null,null,null,null,null,null,null,null,null,null,null,null,null,null,null,null,null,null,""]
[null,null,null,null,null,null,null,null,null,null,null,null,null,null,null,null,null,null,null,null,null,null,null,null,null,null,null,null,null,null,null,null,null,null,null,null,null,null,null,null,null,null,null,null,null,null,null,null,null,null,null,null,null,null,null,null,null,null,null,null,null,null,null,null,null,null,null,null,null,null,null,null,null,null,null,null,null,null,null,null,null,null,null,null,null,null,null,null,null,null,null,null,""]
[null,null,null,null,null,null,null,null,null,null,null,null,null,null,null,null,null,null,null,null,null,null,null,null,null,null,null,null,null,null,null,null,null,null,null,null,null,null,null,null,null,null,null,null,null,null,null,null,null,null,null,null,null,null,null,null,null,null,null,null,null,null,null,null,null,null,null,null,null,null,null,null,null,null,null,null,null,null,null,null,null,null,null,null,null,null,null,null,null,null,null,null,""]
[null,null,null,null,null,null,null,null,null,null,null,null,null,null,null,null,null,null,null,null,null,null,null,null,null,null,null,null,null,null,null,null,null,null,null,null,null,null,null,null,null,null,null,null,null,null,null,null,null,null,null,null,null,null,null,null,null,null,null,null,null,null,null,null,null,null,null,null,null,null,null,null,null,null,null,null,null,null,null,null,null,null,null,null,null,null,null,null,null,null,null,null,""]
[null,null,null,null,null,null,null,null,null,null,null,null,null,null,null,null,null,null,null,null,null,null,null,null,null,null,null,null,null,null,null,null,null,null,null,null,null,null,null,null,null,null,null,null,null,null,null,null,null,null,null,null,null,null,null,null,null,null,null,null,null,null,null,null,null,null,null,null,null,null,null,null,null,null,null,null,null,null,null,null,null,null,null,null,null,null,null,null,null,null,null,null,""]
[null,null,null,null,null,null,null,null,null,null,null,null,null,null,null,null,null,null,null,null,null,null,null,null,null,null,null,null,null,null,null,null,null,null,null,null,null,null,null,null,null,null,null,null,null,null,null,null,null,null,null,null,null,null,null,null,null,null,null,null,null,null,null,null,null,null,null,null,null,null,null,null,null,null,null,null,null,null,null,null,null,null,null,null,null,null,null,null,null,null,null,null,""]
[null,null,null,null,null,null,null,null,null,null,null,null,null,null,null,null,null,null,null,null,null,null,null,null,null,null,null,null,null,null,null,null,null,null,null,null,null,null,null,null,null,null,null,null,null,null,null,null,null,null,null,null,null,null,null,null,null,null,null,null,null,null,null,null,null,null,null,null,null,null,null,null,null,null,null,null,null,null,null,null,null,null,null,null,null,null,null,null,null,null,null,null,""]
[null,null,null,null,null,null,null,null,null,null,null,null,null,null,null,null,null,null,null,null,null,null,null,null,null,null,null,null,null,null,null,null,null,null,null,null,null,null,null,null,null,null,null,null,null,null,null,null,null,null,null,null,null,null,null,null,null,null,null,null,null,null,null,null,null,null,null,null,null,null,null,null,null,null,null,null,null,null,null,null,null,null,null,null,null,null,null,null,null,null,null,null,""]
[null,null,null,null,null,null,null,null,null,null,null,null,null,null,null,null,null,null,null,null,null,null,null,null,null,null,null,null,null,null,null,null,null,null,null,null,null,null,null,null,null,null,null,null,null,null,null,null,null,null,null,null,null,null,null,null,null,null,null,null,null,null,null,null,null,null,null,null,null,null,null,null,null,null,null,null,null,null,null,null,null,null,null,null,null,null,null,null,null,null,null,null,""]
[null,null,null,null,null,null,null,null,null,null,null,null,null,null,null,null,null,null,null,null,null,null,null,null,null,null,null,null,null,null,null,null,null,null,null,null,null,null,null,null,null,null,null,null,null,null,null,null,null,null,null,null,null,null,null,null,null,null,null,null,null,null,null,null,null,null,null,null,null,null,null,null,null,null,null,null,null,null,null,null,null,null,null,null,null,null,null,null,null,null,null,null,""]
[null,null,null,null,null,null,null,null,null,null,null,null,null,null,null,null,null,null,null,null,null,null,null,null,null,null,null,null,null,null,null,null,null,null,null,null,null,null,null,null,null,null,null,null,null,null,null,null,null,null,null,null,null,null,null,null,null,null,null,null,null,null,null,null,null,null,null,null,null,null,null,null,null,null,null,null,null,null,null,null,null,null,null,null,null,null,null,null,null,null,null,null,""]
[null,null,null,null,null,null,"頁計",null,null,null,null,null,null,null,null,null,null,null,null,null,null,null,null,null,null,null,null,null,null,null,null,null,null,null,null,null,null,null,null,null,null,null,null,null,null,null,null,null,null,null,null,null,null,null,null,null,null,null,null,null,null,null,null,null,null,null,null,null,null,null,null,null,null,null,null,null,null,null,null,null,null,null,null,null,null,null,null,null,null,null,null,null,{"$f":"SUMIF($CE$137:$CN$162,\"<>*税端数*\",$CO$137:$DJ$162)","v":0}]
[null,null,null,null,null,null,null,null,null,null,null,null,null,null,null,null,null,null,null,null,null,null,null,null,null,null,null,null,null,null,null,null,null,null,null,null,null,null,null,null,null,null,null,null,null,null,null,null,null,null,null,null,null,null,null,null,null,null,null,null,null,null,null,null,null,null,null,null,null,null,null,null,null,null,null,null,null,null,null,null,null,null,null,null,null,null,null,null,null,null,null,null,{"$f":"IF(CO199=\"\",\"\",\"※次頁有\")","v":""}]
[]
[]
[null,null,null,null,null,null,null,null,null,null,null,null,null,null,null,null,null,null,null,null,null,null,null,null,null,null,null,null,null,null,null,null,null,null,null,null,null,null,null,null,null,null,null,null,null,null,null,null,null,null,null,null,null,null,2,null,null,null,"/",null,null,null,{"$f":"SUM(1,IF(COUNTIF(内訳明細2,\"<>\")>0,1),IF(COUNTIF(内訳明細3,\"<>\")>0,1),IF(COUNTIF(内訳明細4,\"<>\")>0,1),IF(COUNTIF(内訳明細5,\"<>\")>0,1))","v":1},null,null,null,null,null,null,null,null,null,null,null,null,null,null,null,null,null,null,null,null,null,null,null,null,null,null,null,null,null,{"$f":"$CO$105","v":"(株)ミスタービルド埼玉Ver.1.0"}]
[]
[]
[]
[]
[]
[null,null,null,null,null,{"$f":"LEFT('【始めに入力下さい】　基本情報入力'!$C$25)","v":""},null,null,null,null,null,null,null,null,null,null,null,null,null,null,null,null,null,null,null,null,null,null,null,null,null,null,null,null,null,null,null,null,null,null,null,null,null,"請 求 書 ③"]
[]
[]
[]
[null,null,null,null,null,null,null,null,null,null,null,null,null,null,null,null,null,null,null,null,null,null,null,null,null,null,null,null,null,null,null,null,null,null,null,null,null,null,null,null,null,null,null,null,null,null,null,null,null,null,null,null,null,null,null,null,null,null,null,null,null,null,null,null,null,null,null,null,null,null,null,null,null,null,null,null,null,null,null,null,null,"取引先コード",null,null,null,null,null,null,null,null,null,null,null,null,null,null,{"$f":"$CS$7","v":""},null,null,{"$f":"$CV$7","v":""},null,null,{"$f":"$CY$7","v":""},null,null,{"$f":"$DB$7","v":""},null,null,{"$f":"$DE$7","v":""},null,null,{"$f":"$DH$7","v":""}]
[null,null,null,null,null,null,null,null,null,null,null,null,null,null,null,null,null,null,null,null,null,null,null,null,null,null,null,null,null,null,null,null,null,null,null,null,null,null,null,null,null,null,null,{"$f":"IF($AV$8=\"\",\"\",$AV$8)","v":""},null,null,null,null,null,null,null,"年",null,null,{"$f":"IF($BG$8=\"\",\"\",$BG$8)","v":""},null,null,null,"月",null,null,{"$f":"IF($BN$8=\"\",\"\",$BN$8)","v":""},null,null,null,"日"]
[null,null,null,null,null,null,"株式会社ミスタービルド埼玉 御中"]
[]
[null,null,null,null,null,null,null,null,null,null,null,null,null,null,null,null,null,null,null,null,null,null,null,null,null,null,null,null,null,null,null,null,null,null,null,null,null,null,null,null,null,null,null,null,null,null,null,null,null,null,null,null,null,null,null,null,null,null,null,null,null,null,null,null,null,null,null,null,null,null,null,null,null,null,null,null,null,null,null,null,null,"登録番号",null,null,null,null,null,null,null,null,null,null,null,null,null,null,{"$f":"$CS$11","v":""}]
[]
[]
[]
[]
[null,null,null,null,null,null,"工事件名",null,null,null,null,null,null,null,null,null,null,null,{"$f":"IF($BO$32=\"\",\"\",$BO$32)","v":""},null,null,null,null,null,null,null,null,null,null,null,null,null,null,null,null,null,null,null,null,null,null,null,null,null,null,null,null,null,null,null,null,null,null,null,"会社名（氏名）",null,null,null,null,null,null,null,null,null,null,null,null,null,{"$f":"IF('【始めに入力下さい】　基本情報入力'!$C$19=\"\",\"\",'【始めに入力下さい】　基本情報入力'!$C$19)","v":""}]
[]
[]
[]
[]
[]
[]
[null,null,null,null,null,null,null,null,null,null,null,null,null,null,null,null,null,null,null,null,null,null,null,null,null,null,null,null,null,null,null,null,null,null,null,null,null,null,null,null,null,null,null,"内訳明細③"]
[]
[]
[]
[]
[null,null,null,null,null,null,"日付",null,null,null,null,null,null,null,null,null,"品目規格又は作業内容",null,null,null,null,null,null,null,null,null,null,null,null,null,null,null,null,null,null,null,null,null,null,null,null,null,null,null,null,null,null,null,null,null,null,null,"単位",null,null,null,null,null,null,null,null,null,"数量",null,null,null,null,null,null,null,null,null,"単価",null,null,null,null,null,null,null,null,null,"消費税区分",null,null,null,null,null,null,null,null,null,"税抜金額"]
[null,null,null,null,null,null,null,null,null,null,null,null,null,null,null,null,null,null,null,null,null,null,null,null,null,null,null,null,null,null,null,null,null,null,null,null,null,null,null,null,null,null,null,null,null,null,null,null,null,null,null,null,null,null,null,null,null,null,null,null,null,null,null,null,null,null,null,null,null,null,null,null,null,null,null,null,null,null,null,null,null,null,null,null,null,null,null,null,null,null,null,null,{"$f":"IF(BU199=\"\",\"\",IF(BK199=\"\",\"数量未入力\",IF(CE199=\"\",\"消費税区分未入力\",ROUNDDOWN(BK199*BU199,0))))","v":""}]
[null,null,null,null,null,null,null,null,null,null,null,null,null,null,null,null,null,null,null,null,null,null,null,null,null,null,null,null,null,null,null,null,null,null,null,null,null,null,null,null,null,null,null,null,null,null,null,null,null,null,null,null,null,null,null,null,null,null,null,null,null,null,null,null,null,null,null,null,null,null,null,null,null,null,null,null,null,null,null,null,null,null,null,null,null,null,null,null,null,null,null,null,""]
[null,null,null,null,null,null,null,null,null,null,null,null,null,null,null,null,null,null,null,null,null,null,null,null,null,null,null,null,null,null,null,null,null,null,null,null,null,null,null,null,null,null,null,null,null,null,null,null,null,null,null,null,null,null,null,null,null,null,null,null,null,null,null,null,null,null,null,null,null,null,null,null,null,null,null,null,null,null,null,null,null,null,null,null,null,null,null,null,null,null,null,null,""]
[null,null,null,null,null,null,null,null,null,null,null,null,null,null,null,null,null,null,null,null,null,null,null,null,null,null,null,null,null,null,null,null,null,null,null,null,null,null,null,null,null,null,null,null,null,null,null,null,null,null,null,null,null,null,null,null,null,null,null,null,null,null,null,null,null,null,null,null,null,null,null,null,null,null,null,null,null,null,null,null,null,null,null,null,null,null,null,null,null,null,null,null,""]
[null,null,null,null,null,null,null,null,null,null,null,null,null,null,null,null,null,null,null,null,null,null,null,null,null,null,null,null,null,null,null,null,null,null,null,null,null,null,null,null,null,null,null,null,null,null,null,null,null,null,null,null,null,null,null,null,null,null,null,null,null,null,null,null,null,null,null,null,null,null,null,null,null,null,null,null,null,null,null,null,null,null,null,null,null,null,null,null,null,null,null,null,""]
[null,null,null,null,null,null,null,null,null,null,null,null,null,null,null,null,null,null,null,null,null,null,null,null,null,null,null,null,null,null,null,null,null,null,null,null,null,null,null,null,null,null,null,null,null,null,null,null,null,null,null,null,null,null,null,null,null,null,null,null,null,null,null,null,null,null,null,null,null,null,null,null,null,null,null,null,null,null,null,null,null,null,null,null,null,null,null,null,null,null,null,null,""]
[null,null,null,null,null,null,null,null,null,null,null,null,null,null,null,null,null,null,null,null,null,null,null,null,null,null,null,null,null,null,null,null,null,null,null,null,null,null,null,null,null,null,null,null,null,null,null,null,null,null,null,null,null,null,null,null,null,null,null,null,null,null,null,null,null,null,null,null,null,null,null,null,null,null,null,null,null,null,null,null,null,null,null,null,null,null,null,null,null,null,null,null,""]
[null,null,null,null,null,null,null,null,null,null,null,null,null,null,null,null,null,null,null,null,null,null,null,null,null,null,null,null,null,null,null,null,null,null,null,null,null,null,null,null,null,null,null,null,null,null,null,null,null,null,null,null,null,null,null,null,null,null,null,null,null,null,null,null,null,null,null,null,null,null,null,null,null,null,null,null,null,null,null,null,null,null,null,null,null,null,null,null,null,null,null,null,""]
[null,null,null,null,null,null,null,null,null,null,null,null,null,null,null,null,null,null,null,null,null,null,null,null,null,null,null,null,null,null,null,null,null,null,null,null,null,null,null,null,null,null,null,null,null,null,null,null,null,null,null,null,null,null,null,null,null,null,null,null,null,null,null,null,null,null,null,null,null,null,null,null,null,null,null,null,null,null,null,null,null,null,null,null,null,null,null,null,null,null,null,null,""]
[null,null,null,null,null,null,null,null,null,null,null,null,null,null,null,null,null,null,null,null,null,null,null,null,null,null,null,null,null,null,null,null,null,null,null,null,null,null,null,null,null,null,null,null,null,null,null,null,null,null,null,null,null,null,null,null,null,null,null,null,null,null,null,null,null,null,null,null,null,null,null,null,null,null,null,null,null,null,null,null,null,null,null,null,null,null,null,null,null,null,null,null,""]
[null,null,null,null,null,null,null,null,null,null,null,null,null,null,null,null,null,null,null,null,null,null,null,null,null,null,null,null,null,null,null,null,null,null,null,null,null,null,null,null,null,null,null,null,null,null,null,null,null,null,null,null,null,null,null,null,null,null,null,null,null,null,null,null,null,null,null,null,null,null,null,null,null,null,null,null,null,null,null,null,null,null,null,null,null,null,null,null,null,null,null,null,""]
[null,null,null,null,null,null,null,null,null,null,null,null,null,null,null,null,null,null,null,null,null,null,null,null,null,null,null,null,null,null,null,null,null,null,null,null,null,null,null,null,null,null,null,null,null,null,null,null,null,null,null,null,null,null,null,null,null,null,null,null,null,null,null,null,null,null,null,null,null,null,null,null,null,null,null,null,null,null,null,null,null,null,null,null,null,null,null,null,null,null,null,null,""]
[null,null,null,null,null,null,null,null,null,null,null,null,null,null,null,null,null,null,null,null,null,null,null,null,null,null,null,null,null,null,null,null,null,null,null,null,null,null,null,null,null,null,null,null,null,null,null,null,null,null,null,null,null,null,null,null,null,null,null,null,null,null,null,null,null,null,null,null,null,null,null,null,null,null,null,null,null,null,null,null,null,null,null,null,null,null,null,null,null,null,null,null,""]
[null,null,null,null,null,null,null,null,null,null,null,null,null,null,null,null,null,null,null,null,null,null,null,null,null,null,null,null,null,null,null,null,null,null,null,null,null,null,null,null,null,null,null,null,null,null,null,null,null,null,null,null,null,null,null,null,null,null,null,null,null,null,null,null,null,null,null,null,null,null,null,null,null,null,null,null,null,null,null,null,null,null,null,null,null,null,null,null,null,null,null,null,""]
[null,null,null,null,null,null,null,null,null,null,null,null,null,null,null,null,null,null,null,null,null,null,null,null,null,null,null,null,null,null,null,null,null,null,null,null,null,null,null,null,null,null,null,null,null,null,null,null,null,null,null,null,null,null,null,null,null,null,null,null,null,null,null,null,null,null,null,null,null,null,null,null,null,null,null,null,null,null,null,null,null,null,null,null,null,null,null,null,null,null,null,null,""]
[null,null,null,null,null,null,null,null,null,null,null,null,null,null,null,null,null,null,null,null,null,null,null,null,null,null,null,null,null,null,null,null,null,null,null,null,null,null,null,null,null,null,null,null,null,null,null,null,null,null,null,null,null,null,null,null,null,null,null,null,null,null,null,null,null,null,null,null,null,null,null,null,null,null,null,null,null,null,null,null,null,null,null,null,null,null,null,null,null,null,null,null,""]
[null,null,null,null,null,null,null,null,null,null,null,null,null,null,null,null,null,null,null,null,null,null,null,null,null,null,null,null,null,null,null,null,null,null,null,null,null,null,null,null,null,null,null,null,null,null,null,null,null,null,null,null,null,null,null,null,null,null,null,null,null,null,null,null,null,null,null,null,null,null,null,null,null,null,null,null,null,null,null,null,null,null,null,null,null,null,null,null,null,null,null,null,""]
[null,null,null,null,null,null,null,null,null,null,null,null,null,null,null,null,null,null,null,null,null,null,null,null,null,null,null,null,null,null,null,null,null,null,null,null,null,null,null,null,null,null,null,null,null,null,null,null,null,null,null,null,null,null,null,null,null,null,null,null,null,null,null,null,null,null,null,null,null,null,null,null,null,null,null,null,null,null,null,null,null,null,null,null,null,null,null,null,null,null,null,null,""]
[null,null,null,null,null,null,null,null,null,null,null,null,null,null,null,null,null,null,null,null,null,null,null,null,null,null,null,null,null,null,null,null,null,null,null,null,null,null,null,null,null,null,null,null,null,null,null,null,null,null,null,null,null,null,null,null,null,null,null,null,null,null,null,null,null,null,null,null,null,null,null,null,null,null,null,null,null,null,null,null,null,null,null,null,null,null,null,null,null,null,null,null,""]
[null,null,null,null,null,null,null,null,null,null,null,null,null,null,null,null,null,null,null,null,null,null,null,null,null,null,null,null,null,null,null,null,null,null,null,null,null,null,null,null,null,null,null,null,null,null,null,null,null,null,null,null,null,null,null,null,null,null,null,null,null,null,null,null,null,null,null,null,null,null,null,null,null,null,null,null,null,null,null,null,null,null,null,null,null,null,null,null,null,null,null,null,""]
[null,null,null,null,null,null,null,null,null,null,null,null,null,null,null,null,null,null,null,null,null,null,null,null,null,null,null,null,null,null,null,null,null,null,null,null,null,null,null,null,null,null,null,null,null,null,null,null,null,null,null,null,null,null,null,null,null,null,null,null,null,null,null,null,null,null,null,null,null,null,null,null,null,null,null,null,null,null,null,null,null,null,null,null,null,null,null,null,null,null,null,null,""]
[null,null,null,null,null,null,null,null,null,null,null,null,null,null,null,null,null,null,null,null,null,null,null,null,null,null,null,null,null,null,null,null,null,null,null,null,null,null,null,null,null,null,null,null,null,null,null,null,null,null,null,null,null,null,null,null,null,null,null,null,null,null,null,null,null,null,null,null,null,null,null,null,null,null,null,null,null,null,null,null,null,null,null,null,null,null,null,null,null,null,null,null,""]
[null,null,null,null,null,null,null,null,null,null,null,null,null,null,null,null,null,null,null,null,null,null,null,null,null,null,null,null,null,null,null,null,null,null,null,null,null,null,null,null,null,null,null,null,null,null,null,null,null,null,null,null,null,null,null,null,null,null,null,null,null,null,null,null,null,null,null,null,null,null,null,null,null,null,null,null,null,null,null,null,null,null,null,null,null,null,null,null,null,null,null,null,""]
[null,null,null,null,null,null,null,null,null,null,null,null,null,null,null,null,null,null,null,null,null,null,null,null,null,null,null,null,null,null,null,null,null,null,null,null,null,null,null,null,null,null,null,null,null,null,null,null,null,null,null,null,null,null,null,null,null,null,null,null,null,null,null,null,null,null,null,null,null,null,null,null,null,null,null,null,null,null,null,null,null,null,null,null,null,null,null,null,null,null,null,null,""]
[null,null,null,null,null,null,null,null,null,null,null,null,null,null,null,null,null,null,null,null,null,null,null,null,null,null,null,null,null,null,null,null,null,null,null,null,null,null,null,null,null,null,null,null,null,null,null,null,null,null,null,null,null,null,null,null,null,null,null,null,null,null,null,null,null,null,null,null,null,null,null,null,null,null,null,null,null,null,null,null,null,null,null,null,null,null,null,null,null,null,null,null,""]
[null,null,null,null,null,null,null,null,null,null,null,null,null,null,null,null,null,null,null,null,null,null,null,null,null,null,null,null,null,null,null,null,null,null,null,null,null,null,null,null,null,null,null,null,null,null,null,null,null,null,null,null,null,null,null,null,null,null,null,null,null,null,null,null,null,null,null,null,null,null,null,null,null,null,null,null,null,null,null,null,null,null,null,null,null,null,null,null,null,null,null,null,""]
[null,null,null,null,null,null,"頁計",null,null,null,null,null,null,null,null,null,null,null,null,null,null,null,null,null,null,null,null,null,null,null,null,null,null,null,null,null,null,null,null,null,null,null,null,null,null,null,null,null,null,null,null,null,null,null,null,null,null,null,null,null,null,null,null,null,null,null,null,null,null,null,null,null,null,null,null,null,null,null,null,null,null,null,null,null,null,null,null,null,null,null,null,null,{"$f":"SUMIF($CE$199:$CN$224,\"<>*税端数*\",$CO$199:$DJ$224)","v":0}]
[null,null,null,null,null,null,null,null,null,null,null,null,null,null,null,null,null,null,null,null,null,null,null,null,null,null,null,null,null,null,null,null,null,null,null,null,null,null,null,null,null,null,null,null,null,null,null,null,null,null,null,null,null,null,null,null,null,null,null,null,null,null,null,null,null,null,null,null,null,null,null,null,null,null,null,null,null,null,null,null,null,null,null,null,null,null,null,null,null,null,null,null,{"$f":"IF(CO261=\"\",\"\",\"※次頁有\")","v":""}]
[]
[]
[null,null,null,null,null,null,null,null,null,null,null,null,null,null,null,null,null,null,null,null,null,null,null,null,null,null,null,null,null,null,null,null,null,null,null,null,null,null,null,null,null,null,null,null,null,null,null,null,null,null,null,null,null,null,3,null,null,null,"/",null,null,null,{"$f":"SUM(1,IF(COUNTIF(内訳明細2,\"<>\")>0,1),IF(COUNTIF(内訳明細3,\"<>\")>0,1),IF(COUNTIF(内訳明細4,\"<>\")>0,1),IF(COUNTIF(内訳明細5,\"<>\")>0,1))","v":1},null,null,null,null,null,null,null,null,null,null,null,null,null,null,null,null,null,null,null,null,null,null,null,null,null,null,null,null,null,{"$f":"$CO$105","v":"(株)ミスタービルド埼玉Ver.1.0"}]
[]
[]
[]
[]
[]
[null,null,null,null,null,{"$f":"LEFT('【始めに入力下さい】　基本情報入力'!$C$25)","v":""},null,null,null,null,null,null,null,null,null,null,null,null,null,null,null,null,null,null,null,null,null,null,null,null,null,null,null,null,null,null,null,null,null,null,null,null,null,"請 求 書 ④"]
[]
[]
[]
[null,null,null,null,null,null,null,null,null,null,null,null,null,null,null,null,null,null,null,null,null,null,null,null,null,null,null,null,null,null,null,null,null,null,null,null,null,null,null,null,null,null,null,null,null,null,null,null,null,null,null,null,null,null,null,null,null,null,null,null,null,null,null,null,null,null,null,null,null,null,null,null,null,null,null,null,null,null,null,null,null,"取引先コード",null,null,null,null,null,null,null,null,null,null,null,null,null,null,{"$f":"$CS$7","v":""},null,null,{"$f":"$CV$7","v":""},null,null,{"$f":"$CY$7","v":""},null,null,{"$f":"$DB$7","v":""},null,null,{"$f":"$DE$7","v":""},null,null,{"$f":"$DH$7","v":""}]
[null,null,null,null,null,null,null,null,null,null,null,null,null,null,null,null,null,null,null,null,null,null,null,null,null,null,null,null,null,null,null,null,null,null,null,null,null,null,null,null,null,null,null,{"$f":"IF($AV$8=\"\",\"\",$AV$8)","v":""},null,null,null,null,null,null,null,"年",null,null,{"$f":"IF($BG$8=\"\",\"\",$BG$8)","v":""},null,null,null,"月",null,null,{"$f":"IF($BN$8=\"\",\"\",$BN$8)","v":""},null,null,null,"日"]
[null,null,null,null,null,null,"株式会社ミスタービルド埼玉 御中"]
[]
[null,null,null,null,null,null,null,null,null,null,null,null,null,null,null,null,null,null,null,null,null,null,null,null,null,null,null,null,null,null,null,null,null,null,null,null,null,null,null,null,null,null,null,null,null,null,null,null,null,null,null,null,null,null,null,null,null,null,null,null,null,null,null,null,null,null,null,null,null,null,null,null,null,null,null,null,null,null,null,null,null,"登録番号",null,null,null,null,null,null,null,null,null,null,null,null,null,null,{"$f":"$CS$11","v":""}]
[]
[]
[]
[]
[null,null,null,null,null,null,"工事件名",null,null,null,null,null,null,null,null,null,null,null,{"$f":"IF($BO$32=\"\",\"\",$BO$32)","v":""},null,null,null,null,null,null,null,null,null,null,null,null,null,null,null,null,null,null,null,null,null,null,null,null,null,null,null,null,null,null,null,null,null,null,null,"会社名（氏名）",null,null,null,null,null,null,null,null,null,null,null,null,null,{"$f":"IF('【始めに入力下さい】　基本情報入力'!$C$19=\"\",\"\",'【始めに入力下さい】　基本情報入力'!$C$19)","v":""}]
[]
[]
[]
[]
[]
[]
[null,null,null,null,null,null,null,null,null,null,null,null,null,null,null,null,null,null,null,null,null,null,null,null,null,null,null,null,null,null,null,null,null,null,null,null,null,null,null,null,null,null,null,"内訳明細④"]
[]
[]
[]
[]
[null,null,null,null,null,null,"日付",null,null,null,null,null,null,null,null,null,"品目規格又は作業内容",null,null,null,null,null,null,null,null,null,null,null,null,null,null,null,null,null,null,null,null,null,null,null,null,null,null,null,null,null,null,null,null,null,null,null,"単位",null,null,null,null,null,null,null,null,null,"数量",null,null,null,null,null,null,null,null,null,"単価",null,null,null,null,null,null,null,null,null,"消費税区分",null,null,null,null,null,null,null,null,null,"税抜金額"]
[null,null,null,null,null,null,null,null,null,null,null,null,null,null,null,null,null,null,null,null,null,null,null,null,null,null,null,null,null,null,null,null,null,null,null,null,null,null,null,null,null,null,null,null,null,null,null,null,null,null,null,null,null,null,null,null,null,null,null,null,null,null,null,null,null,null,null,null,null,null,null,null,null,null,null,null,null,null,null,null,null,null,null,null,null,null,null,null,null,null,null,null,{"$f":"IF(BU261=\"\",\"\",IF(BK261=\"\",\"数量未入力\",IF(CE261=\"\",\"消費税区分未入力\",ROUNDDOWN(BK261*BU261,0))))","v":""}]
[null,null,null,null,null,null,null,null,null,null,null,null,null,null,null,null,null,null,null,null,null,null,null,null,null,null,null,null,null,null,null,null,null,null,null,null,null,null,null,null,null,null,null,null,null,null,null,null,null,null,null,null,null,null,null,null,null,null,null,null,null,null,null,null,null,null,null,null,null,null,null,null,null,null,null,null,null,null,null,null,null,null,null,null,null,null,null,null,null,null,null,null,""]
[null,null,null,null,null,null,null,null,null,null,null,null,null,null,null,null,null,null,null,null,null,null,null,null,null,null,null,null,null,null,null,null,null,null,null,null,null,null,null,null,null,null,null,null,null,null,null,null,null,null,null,null,null,null,null,null,null,null,null,null,null,null,null,null,null,null,null,null,null,null,null,null,null,null,null,null,null,null,null,null,null,null,null,null,null,null,null,null,null,null,null,null,""]
[null,null,null,null,null,null,null,null,null,null,null,null,null,null,null,null,null,null,null,null,null,null,null,null,null,null,null,null,null,null,null,null,null,null,null,null,null,null,null,null,null,null,null,null,null,null,null,null,null,null,null,null,null,null,null,null,null,null,null,null,null,null,null,null,null,null,null,null,null,null,null,null,null,null,null,null,null,null,null,null,null,null,null,null,null,null,null,null,null,null,null,null,""]
[null,null,null,null,null,null,null,null,null,null,null,null,null,null,null,null,null,null,null,null,null,null,null,null,null,null,null,null,null,null,null,null,null,null,null,null,null,null,null,null,null,null,null,null,null,null,null,null,null,null,null,null,null,null,null,null,null,null,null,null,null,null,null,null,null,null,null,null,null,null,null,null,null,null,null,null,null,null,null,null,null,null,null,null,null,null,null,null,null,null,null,null,""]
[null,null,null,null,null,null,null,null,null,null,null,null,null,null,null,null,null,null,null,null,null,null,null,null,null,null,null,null,null,null,null,null,null,null,null,null,null,null,null,null,null,null,null,null,null,null,null,null,null,null,null,null,null,null,null,null,null,null,null,null,null,null,null,null,null,null,null,null,null,null,null,null,null,null,null,null,null,null,null,null,null,null,null,null,null,null,null,null,null,null,null,null,""]
[null,null,null,null,null,null,null,null,null,null,null,null,null,null,null,null,null,null,null,null,null,null,null,null,null,null,null,null,null,null,null,null,null,null,null,null,null,null,null,null,null,null,null,null,null,null,null,null,null,null,null,null,null,null,null,null,null,null,null,null,null,null,null,null,null,null,null,null,null,null,null,null,null,null,null,null,null,null,null,null,null,null,null,null,null,null,null,null,null,null,null,null,""]
[null,null,null,null,null,null,null,null,null,null,null,null,null,null,null,null,null,null,null,null,null,null,null,null,null,null,null,null,null,null,null,null,null,null,null,null,null,null,null,null,null,null,null,null,null,null,null,null,null,null,null,null,null,null,null,null,null,null,null,null,null,null,null,null,null,null,null,null,null,null,null,null,null,null,null,null,null,null,null,null,null,null,null,null,null,null,null,null,null,null,null,null,""]
[null,null,null,null,null,null,null,null,null,null,null,null,null,null,null,null,null,null,null,null,null,null,null,null,null,null,null,null,null,null,null,null,null,null,null,null,null,null,null,null,null,null,null,null,null,null,null,null,null,null,null,null,null,null,null,null,null,null,null,null,null,null,null,null,null,null,null,null,null,null,null,null,null,null,null,null,null,null,null,null,null,null,null,null,null,null,null,null,null,null,null,null,""]
[null,null,null,null,null,null,null,null,null,null,null,null,null,null,null,null,null,null,null,null,null,null,null,null,null,null,null,null,null,null,null,null,null,null,null,null,null,null,null,null,null,null,null,null,null,null,null,null,null,null,null,null,null,null,null,null,null,null,null,null,null,null,null,null,null,null,null,null,null,null,null,null,null,null,null,null,null,null,null,null,null,null,null,null,null,null,null,null,null,null,null,null,""]
[null,null,null,null,null,null,null,null,null,null,null,null,null,null,null,null,null,null,null,null,null,null,null,null,null,null,null,null,null,null,null,null,null,null,null,null,null,null,null,null,null,null,null,null,null,null,null,null,null,null,null,null,null,null,null,null,null,null,null,null,null,null,null,null,null,null,null,null,null,null,null,null,null,null,null,null,null,null,null,null,null,null,null,null,null,null,null,null,null,null,null,null,""]
[null,null,null,null,null,null,null,null,null,null,null,null,null,null,null,null,null,null,null,null,null,null,null,null,null,null,null,null,null,null,null,null,null,null,null,null,null,null,null,null,null,null,null,null,null,null,null,null,null,null,null,null,null,null,null,null,null,null,null,null,null,null,null,null,null,null,null,null,null,null,null,null,null,null,null,null,null,null,null,null,null,null,null,null,null,null,null,null,null,null,null,null,""]
[null,null,null,null,null,null,null,null,null,null,null,null,null,null,null,null,null,null,null,null,null,null,null,null,null,null,null,null,null,null,null,null,null,null,null,null,null,null,null,null,null,null,null,null,null,null,null,null,null,null,null,null,null,null,null,null,null,null,null,null,null,null,null,null,null,null,null,null,null,null,null,null,null,null,null,null,null,null,null,null,null,null,null,null,null,null,null,null,null,null,null,null,""]
[null,null,null,null,null,null,null,null,null,null,null,null,null,null,null,null,null,null,null,null,null,null,null,null,null,null,null,null,null,null,null,null,null,null,null,null,null,null,null,null,null,null,null,null,null,null,null,null,null,null,null,null,null,null,null,null,null,null,null,null,null,null,null,null,null,null,null,null,null,null,null,null,null,null,null,null,null,null,null,null,null,null,null,null,null,null,null,null,null,null,null,null,""]
[null,null,null,null,null,null,null,null,null,null,null,null,null,null,null,null,null,null,null,null,null,null,null,null,null,null,null,null,null,null,null,null,null,null,null,null,null,null,null,null,null,null,null,null,null,null,null,null,null,null,null,null,null,null,null,null,null,null,null,null,null,null,null,null,null,null,null,null,null,null,null,null,null,null,null,null,null,null,null,null,null,null,null,null,null,null,null,null,null,null,null,null,""]
[null,null,null,null,null,null,null,null,null,null,null,null,null,null,null,null,null,null,null,null,null,null,null,null,null,null,null,null,null,null,null,null,null,null,null,null,null,null,null,null,null,null,null,null,null,null,null,null,null,null,null,null,null,null,null,null,null,null,null,null,null,null,null,null,null,null,null,null,null,null,null,null,null,null,null,null,null,null,null,null,null,null,null,null,null,null,null,null,null,null,null,null,""]
[null,null,null,null,null,null,null,null,null,null,null,null,null,null,null,null,null,null,null,null,null,null,null,null,null,null,null,null,null,null,null,null,null,null,null,null,null,null,null,null,null,null,null,null,null,null,null,null,null,null,null,null,null,null,null,null,null,null,null,null,null,null,null,null,null,null,null,null,null,null,null,null,null,null,null,null,null,null,null,null,null,null,null,null,null,null,null,null,null,null,null,null,""]
[null,null,null,null,null,null,null,null,null,null,null,null,null,null,null,null,null,null,null,null,null,null,null,null,null,null,null,null,null,null,null,null,null,null,null,null,null,null,null,null,null,null,null,null,null,null,null,null,null,null,null,null,null,null,null,null,null,null,null,null,null,null,null,null,null,null,null,null,null,null,null,null,null,null,null,null,null,null,null,null,null,null,null,null,null,null,null,null,null,null,null,null,""]
[null,null,null,null,null,null,null,null,null,null,null,null,null,null,null,null,null,null,null,null,null,null,null,null,null,null,null,null,null,null,null,null,null,null,null,null,null,null,null,null,null,null,null,null,null,null,null,null,null,null,null,null,null,null,null,null,null,null,null,null,null,null,null,null,null,null,null,null,null,null,null,null,null,null,null,null,null,null,null,null,null,null,null,null,null,null,null,null,null,null,null,null,""]
[null,null,null,null,null,null,null,null,null,null,null,null,null,null,null,null,null,null,null,null,null,null,null,null,null,null,null,null,null,null,null,null,null,null,null,null,null,null,null,null,null,null,null,null,null,null,null,null,null,null,null,null,null,null,null,null,null,null,null,null,null,null,null,null,null,null,null,null,null,null,null,null,null,null,null,null,null,null,null,null,null,null,null,null,null,null,null,null,null,null,null,null,""]
[null,null,null,null,null,null,null,null,null,null,null,null,null,null,null,null,null,null,null,null,null,null,null,null,null,null,null,null,null,null,null,null,null,null,null,null,null,null,null,null,null,null,null,null,null,null,null,null,null,null,null,null,null,null,null,null,null,null,null,null,null,null,null,null,null,null,null,null,null,null,null,null,null,null,null,null,null,null,null,null,null,null,null,null,null,null,null,null,null,null,null,null,""]
[null,null,null,null,null,null,null,null,null,null,null,null,null,null,null,null,null,null,null,null,null,null,null,null,null,null,null,null,null,null,null,null,null,null,null,null,null,null,null,null,null,null,null,null,null,null,null,null,null,null,null,null,null,null,null,null,null,null,null,null,null,null,null,null,null,null,null,null,null,null,null,null,null,null,null,null,null,null,null,null,null,null,null,null,null,null,null,null,null,null,null,null,""]
[null,null,null,null,null,null,null,null,null,null,null,null,null,null,null,null,null,null,null,null,null,null,null,null,null,null,null,null,null,null,null,null,null,null,null,null,null,null,null,null,null,null,null,null,null,null,null,null,null,null,null,null,null,null,null,null,null,null,null,null,null,null,null,null,null,null,null,null,null,null,null,null,null,null,null,null,null,null,null,null,null,null,null,null,null,null,null,null,null,null,null,null,""]
[null,null,null,null,null,null,null,null,null,null,null,null,null,null,null,null,null,null,null,null,null,null,null,null,null,null,null,null,null,null,null,null,null,null,null,null,null,null,null,null,null,null,null,null,null,null,null,null,null,null,null,null,null,null,null,null,null,null,null,null,null,null,null,null,null,null,null,null,null,null,null,null,null,null,null,null,null,null,null,null,null,null,null,null,null,null,null,null,null,null,null,null,""]
[null,null,null,null,null,null,null,null,null,null,null,null,null,null,null,null,null,null,null,null,null,null,null,null,null,null,null,null,null,null,null,null,null,null,null,null,null,null,null,null,null,null,null,null,null,null,null,null,null,null,null,null,null,null,null,null,null,null,null,null,null,null,null,null,null,null,null,null,null,null,null,null,null,null,null,null,null,null,null,null,null,null,null,null,null,null,null,null,null,null,null,null,""]
[null,null,null,null,null,null,null,null,null,null,null,null,null,null,null,null,null,null,null,null,null,null,null,null,null,null,null,null,null,null,null,null,null,null,null,null,null,null,null,null,null,null,null,null,null,null,null,null,null,null,null,null,null,null,null,null,null,null,null,null,null,null,null,null,null,null,null,null,null,null,null,null,null,null,null,null,null,null,null,null,null,null,null,null,null,null,null,null,null,null,null,null,""]
[null,null,null,null,null,null,"頁計",null,null,null,null,null,null,null,null,null,null,null,null,null,null,null,null,null,null,null,null,null,null,null,null,null,null,null,null,null,null,null,null,null,null,null,null,null,null,null,null,null,null,null,null,null,null,null,null,null,null,null,null,null,null,null,null,null,null,null,null,null,null,null,null,null,null,null,null,null,null,null,null,null,null,null,null,null,null,null,null,null,null,null,null,null,{"$f":"SUMIF($CE$261:$CN$286,\"<>*税端数*\",$CO$261:$DJ$286)","v":0}]
[null,null,null,null,null,null,null,null,null,null,null,null,null,null,null,null,null,null,null,null,null,null,null,null,null,null,null,null,null,null,null,null,null,null,null,null,null,null,null,null,null,null,null,null,null,null,null,null,null,null,null,null,null,null,null,null,null,null,null,null,null,null,null,null,null,null,null,null,null,null,null,null,null,null,null,null,null,null,null,null,null,null,null,null,null,null,null,null,null,null,null,null,{"$f":"IF(CO323=\"\",\"\",\"※次頁有\")","v":""}]
[]
[]
[null,null,null,null,null,null,null,null,null,null,null,null,null,null,null,null,null,null,null,null,null,null,null,null,null,null,null,null,null,null,null,null,null,null,null,null,null,null,null,null,null,null,null,null,null,null,null,null,null,null,null,null,null,null,4,null,null,null,"/",null,null,null,{"$f":"SUM(1,IF(COUNTIF(内訳明細2,\"<>\")>0,1),IF(COUNTIF(内訳明細3,\"<>\")>0,1),IF(COUNTIF(内訳明細4,\"<>\")>0,1),IF(COUNTIF(内訳明細5,\"<>\")>0,1))","v":1},null,null,null,null,null,null,null,null,null,null,null,null,null,null,null,null,null,null,null,null,null,null,null,null,null,null,null,null,null,{"$f":"$CO$105","v":"(株)ミスタービルド埼玉Ver.1.0"}]
[]
[]
[]
[]
[]
[null,null,null,null,null,{"$f":"LEFT('【始めに入力下さい】　基本情報入力'!$C$25)","v":""},null,null,null,null,null,null,null,null,null,null,null,null,null,null,null,null,null,null,null,null,null,null,null,null,null,null,null,null,null,null,null,null,null,null,null,null,null,"請 求 書 ⑤"]
[]
[]
[]
[null,null,null,null,null,null,null,null,null,null,null,null,null,null,null,null,null,null,null,null,null,null,null,null,null,null,null,null,null,null,null,null,null,null,null,null,null,null,null,null,null,null,null,null,null,null,null,null,null,null,null,null,null,null,null,null,null,null,null,null,null,null,null,null,null,null,null,null,null,null,null,null,null,null,null,null,null,null,null,null,null,"取引先コード",null,null,null,null,null,null,null,null,null,null,null,null,null,null,{"$f":"$CS$7","v":""},null,null,{"$f":"$CV$7","v":""},null,null,{"$f":"$CY$7","v":""},null,null,{"$f":"$DB$7","v":""},null,null,{"$f":"$DE$7","v":""},null,null,{"$f":"$DH$7","v":""}]
[null,null,null,null,null,null,null,null,null,null,null,null,null,null,null,null,null,null,null,null,null,null,null,null,null,null,null,null,null,null,null,null,null,null,null,null,null,null,null,null,null,null,null,{"$f":"IF($AV$8=\"\",\"\",$AV$8)","v":""},null,null,null,null,null,null,null,"年",null,null,{"$f":"IF($BG$8=\"\",\"\",$BG$8)","v":""},null,null,null,"月",null,null,{"$f":"IF($BN$8=\"\",\"\",$BN$8)","v":""},null,null,null,"日"]
[null,null,null,null,null,null,"株式会社ミスタービルド埼玉 御中"]
[]
[null,null,null,null,null,null,null,null,null,null,null,null,null,null,null,null,null,null,null,null,null,null,null,null,null,null,null,null,null,null,null,null,null,null,null,null,null,null,null,null,null,null,null,null,null,null,null,null,null,null,null,null,null,null,null,null,null,null,null,null,null,null,null,null,null,null,null,null,null,null,null,null,null,null,null,null,null,null,null,null,null,"登録番号",null,null,null,null,null,null,null,null,null,null,null,null,null,null,{"$f":"$CS$11","v":""}]
[]
[]
[]
[]
[null,null,null,null,null,null,"工事件名",null,null,null,null,null,null,null,null,null,null,null,{"$f":"IF($BO$32=\"\",\"\",$BO$32)","v":""},null,null,null,null,null,null,null,null,null,null,null,null,null,null,null,null,null,null,null,null,null,null,null,null,null,null,null,null,null,null,null,null,null,null,null,"会社名（氏名）",null,null,null,null,null,null,null,null,null,null,null,null,null,{"$f":"IF('【始めに入力下さい】　基本情報入力'!$C$19=\"\",\"\",'【始めに入力下さい】　基本情報入力'!$C$19)","v":""}]
[]
[]
[]
[]
[]
[]
[null,null,null,null,null,null,null,null,null,null,null,null,null,null,null,null,null,null,null,null,null,null,null,null,null,null,null,null,null,null,null,null,null,null,null,null,null,null,null,null,null,null,null,"内訳明細⑤"]
[]
[]
[]
[]
[null,null,null,null,null,null,"日付",null,null,null,null,null,null,null,null,null,"品目規格又は作業内容",null,null,null,null,null,null,null,null,null,null,null,null,null,null,null,null,null,null,null,null,null,null,null,null,null,null,null,null,null,null,null,null,null,null,null,"単位",null,null,null,null,null,null,null,null,null,"数量",null,null,null,null,null,null,null,null,null,"単価",null,null,null,null,null,null,null,null,null,"消費税区分",null,null,null,null,null,null,null,null,null,"税抜金額"]
[null,null,null,null,null,null,null,null,null,null,null,null,null,null,null,null,null,null,null,null,null,null,null,null,null,null,null,null,null,null,null,null,null,null,null,null,null,null,null,null,null,null,null,null,null,null,null,null,null,null,null,null,null,null,null,null,null,null,null,null,null,null,null,null,null,null,null,null,null,null,null,null,null,null,null,null,null,null,null,null,null,null,null,null,null,null,null,null,null,null,null,null,{"$f":"IF(BU323=\"\",\"\",IF(BK323=\"\",\"数量未入力\",IF(CE323=\"\",\"消費税区分未入力\",ROUNDDOWN(BK323*BU323,0))))","v":""}]
[null,null,null,null,null,null,null,null,null,null,null,null,null,null,null,null,null,null,null,null,null,null,null,null,null,null,null,null,null,null,null,null,null,null,null,null,null,null,null,null,null,null,null,null,null,null,null,null,null,null,null,null,null,null,null,null,null,null,null,null,null,null,null,null,null,null,null,null,null,null,null,null,null,null,null,null,null,null,null,null,null,null,null,null,null,null,null,null,null,null,null,null,""]
[null,null,null,null,null,null,null,null,null,null,null,null,null,null,null,null,null,null,null,null,null,null,null,null,null,null,null,null,null,null,null,null,null,null,null,null,null,null,null,null,null,null,null,null,null,null,null,null,null,null,null,null,null,null,null,null,null,null,null,null,null,null,null,null,null,null,null,null,null,null,null,null,null,null,null,null,null,null,null,null,null,null,null,null,null,null,null,null,null,null,null,null,""]
[null,null,null,null,null,null,null,null,null,null,null,null,null,null,null,null,null,null,null,null,null,null,null,null,null,null,null,null,null,null,null,null,null,null,null,null,null,null,null,null,null,null,null,null,null,null,null,null,null,null,null,null,null,null,null,null,null,null,null,null,null,null,null,null,null,null,null,null,null,null,null,null,null,null,null,null,null,null,null,null,null,null,null,null,null,null,null,null,null,null,null,null,""]
[null,null,null,null,null,null,null,null,null,null,null,null,null,null,null,null,null,null,null,null,null,null,null,null,null,null,null,null,null,null,null,null,null,null,null,null,null,null,null,null,null,null,null,null,null,null,null,null,null,null,null,null,null,null,null,null,null,null,null,null,null,null,null,null,null,null,null,null,null,null,null,null,null,null,null,null,null,null,null,null,null,null,null,null,null,null,null,null,null,null,null,null,""]
[null,null,null,null,null,null,null,null,null,null,null,null,null,null,null,null,null,null,null,null,null,null,null,null,null,null,null,null,null,null,null,null,null,null,null,null,null,null,null,null,null,null,null,null,null,null,null,null,null,null,null,null,null,null,null,null,null,null,null,null,null,null,null,null,null,null,null,null,null,null,null,null,null,null,null,null,null,null,null,null,null,null,null,null,null,null,null,null,null,null,null,null,""]
[null,null,null,null,null,null,null,null,null,null,null,null,null,null,null,null,null,null,null,null,null,null,null,null,null,null,null,null,null,null,null,null,null,null,null,null,null,null,null,null,null,null,null,null,null,null,null,null,null,null,null,null,null,null,null,null,null,null,null,null,null,null,null,null,null,null,null,null,null,null,null,null,null,null,null,null,null,null,null,null,null,null,null,null,null,null,null,null,null,null,null,null,""]
[null,null,null,null,null,null,null,null,null,null,null,null,null,null,null,null,null,null,null,null,null,null,null,null,null,null,null,null,null,null,null,null,null,null,null,null,null,null,null,null,null,null,null,null,null,null,null,null,null,null,null,null,null,null,null,null,null,null,null,null,null,null,null,null,null,null,null,null,null,null,null,null,null,null,null,null,null,null,null,null,null,null,null,null,null,null,null,null,null,null,null,null,""]
[null,null,null,null,null,null,null,null,null,null,null,null,null,null,null,null,null,null,null,null,null,null,null,null,null,null,null,null,null,null,null,null,null,null,null,null,null,null,null,null,null,null,null,null,null,null,null,null,null,null,null,null,null,null,null,null,null,null,null,null,null,null,null,null,null,null,null,null,null,null,null,null,null,null,null,null,null,null,null,null,null,null,null,null,null,null,null,null,null,null,null,null,""]
[null,null,null,null,null,null,null,null,null,null,null,null,null,null,null,null,null,null,null,null,null,null,null,null,null,null,null,null,null,null,null,null,null,null,null,null,null,null,null,null,null,null,null,null,null,null,null,null,null,null,null,null,null,null,null,null,null,null,null,null,null,null,null,null,null,null,null,null,null,null,null,null,null,null,null,null,null,null,null,null,null,null,null,null,null,null,null,null,null,null,null,null,""]
[null,null,null,null,null,null,null,null,null,null,null,null,null,null,null,null,null,null,null,null,null,null,null,null,null,null,null,null,null,null,null,null,null,null,null,null,null,null,null,null,null,null,null,null,null,null,null,null,null,null,null,null,null,null,null,null,null,null,null,null,null,null,null,null,null,null,null,null,null,null,null,null,null,null,null,null,null,null,null,null,null,null,null,null,null,null,null,null,null,null,null,null,""]
[null,null,null,null,null,null,null,null,null,null,null,null,null,null,null,null,null,null,null,null,null,null,null,null,null,null,null,null,null,null,null,null,null,null,null,null,null,null,null,null,null,null,null,null,null,null,null,null,null,null,null,null,null,null,null,null,null,null,null,null,null,null,null,null,null,null,null,null,null,null,null,null,null,null,null,null,null,null,null,null,null,null,null,null,null,null,null,null,null,null,null,null,""]
[null,null,null,null,null,null,null,null,null,null,null,null,null,null,null,null,null,null,null,null,null,null,null,null,null,null,null,null,null,null,null,null,null,null,null,null,null,null,null,null,null,null,null,null,null,null,null,null,null,null,null,null,null,null,null,null,null,null,null,null,null,null,null,null,null,null,null,null,null,null,null,null,null,null,null,null,null,null,null,null,null,null,null,null,null,null,null,null,null,null,null,null,""]
[null,null,null,null,null,null,null,null,null,null,null,null,null,null,null,null,null,null,null,null,null,null,null,null,null,null,null,null,null,null,null,null,null,null,null,null,null,null,null,null,null,null,null,null,null,null,null,null,null,null,null,null,null,null,null,null,null,null,null,null,null,null,null,null,null,null,null,null,null,null,null,null,null,null,null,null,null,null,null,null,null,null,null,null,null,null,null,null,null,null,null,null,""]
[null,null,null,null,null,null,null,null,null,null,null,null,null,null,null,null,null,null,null,null,null,null,null,null,null,null,null,null,null,null,null,null,null,null,null,null,null,null,null,null,null,null,null,null,null,null,null,null,null,null,null,null,null,null,null,null,null,null,null,null,null,null,null,null,null,null,null,null,null,null,null,null,null,null,null,null,null,null,null,null,null,null,null,null,null,null,null,null,null,null,null,null,""]
[null,null,null,null,null,null,null,null,null,null,null,null,null,null,null,null,null,null,null,null,null,null,null,null,null,null,null,null,null,null,null,null,null,null,null,null,null,null,null,null,null,null,null,null,null,null,null,null,null,null,null,null,null,null,null,null,null,null,null,null,null,null,null,null,null,null,null,null,null,null,null,null,null,null,null,null,null,null,null,null,null,null,null,null,null,null,null,null,null,null,null,null,""]
[null,null,null,null,null,null,null,null,null,null,null,null,null,null,null,null,null,null,null,null,null,null,null,null,null,null,null,null,null,null,null,null,null,null,null,null,null,null,null,null,null,null,null,null,null,null,null,null,null,null,null,null,null,null,null,null,null,null,null,null,null,null,null,null,null,null,null,null,null,null,null,null,null,null,null,null,null,null,null,null,null,null,null,null,null,null,null,null,null,null,null,null,""]
[null,null,null,null,null,null,null,null,null,null,null,null,null,null,null,null,null,null,null,null,null,null,null,null,null,null,null,null,null,null,null,null,null,null,null,null,null,null,null,null,null,null,null,null,null,null,null,null,null,null,null,null,null,null,null,null,null,null,null,null,null,null,null,null,null,null,null,null,null,null,null,null,null,null,null,null,null,null,null,null,null,null,null,null,null,null,null,null,null,null,null,null,""]
[null,null,null,null,null,null,null,null,null,null,null,null,null,null,null,null,null,null,null,null,null,null,null,null,null,null,null,null,null,null,null,null,null,null,null,null,null,null,null,null,null,null,null,null,null,null,null,null,null,null,null,null,null,null,null,null,null,null,null,null,null,null,null,null,null,null,null,null,null,null,null,null,null,null,null,null,null,null,null,null,null,null,null,null,null,null,null,null,null,null,null,null,""]
[null,null,null,null,null,null,null,null,null,null,null,null,null,null,null,null,null,null,null,null,null,null,null,null,null,null,null,null,null,null,null,null,null,null,null,null,null,null,null,null,null,null,null,null,null,null,null,null,null,null,null,null,null,null,null,null,null,null,null,null,null,null,null,null,null,null,null,null,null,null,null,null,null,null,null,null,null,null,null,null,null,null,null,null,null,null,null,null,null,null,null,null,""]
[null,null,null,null,null,null,null,null,null,null,null,null,null,null,null,null,null,null,null,null,null,null,null,null,null,null,null,null,null,null,null,null,null,null,null,null,null,null,null,null,null,null,null,null,null,null,null,null,null,null,null,null,null,null,null,null,null,null,null,null,null,null,null,null,null,null,null,null,null,null,null,null,null,null,null,null,null,null,null,null,null,null,null,null,null,null,null,null,null,null,null,null,""]
[null,null,null,null,null,null,null,null,null,null,null,null,null,null,null,null,null,null,null,null,null,null,null,null,null,null,null,null,null,null,null,null,null,null,null,null,null,null,null,null,null,null,null,null,null,null,null,null,null,null,null,null,null,null,null,null,null,null,null,null,null,null,null,null,null,null,null,null,null,null,null,null,null,null,null,null,null,null,null,null,null,null,null,null,null,null,null,null,null,null,null,null,""]
[null,null,null,null,null,null,null,null,null,null,null,null,null,null,null,null,null,null,null,null,null,null,null,null,null,null,null,null,null,null,null,null,null,null,null,null,null,null,null,null,null,null,null,null,null,null,null,null,null,null,null,null,null,null,null,null,null,null,null,null,null,null,null,null,null,null,null,null,null,null,null,null,null,null,null,null,null,null,null,null,null,null,null,null,null,null,null,null,null,null,null,null,""]
[null,null,null,null,null,null,null,null,null,null,null,null,null,null,null,null,null,null,null,null,null,null,null,null,null,null,null,null,null,null,null,null,null,null,null,null,null,null,null,null,null,null,null,null,null,null,null,null,null,null,null,null,null,null,null,null,null,null,null,null,null,null,null,null,null,null,null,null,null,null,null,null,null,null,null,null,null,null,null,null,null,null,null,null,null,null,null,null,null,null,null,null,""]
[null,null,null,null,null,null,null,null,null,null,null,null,null,null,null,null,null,null,null,null,null,null,null,null,null,null,null,null,null,null,null,null,null,null,null,null,null,null,null,null,null,null,null,null,null,null,null,null,null,null,null,null,null,null,null,null,null,null,null,null,null,null,null,null,null,null,null,null,null,null,null,null,null,null,null,null,null,null,null,null,null,null,null,null,null,null,null,null,null,null,null,null,""]
[null,null,null,null,null,null,null,null,null,null,null,null,null,null,null,null,null,null,null,null,null,null,null,null,null,null,null,null,null,null,null,null,null,null,null,null,null,null,null,null,null,null,null,null,null,null,null,null,null,null,null,null,null,null,null,null,null,null,null,null,null,null,null,null,null,null,null,null,null,null,null,null,null,null,null,null,null,null,null,null,null,null,null,null,null,null,null,null,null,null,null,null,""]
[null,null,null,null,null,null,"頁計",null,null,null,null,null,null,null,null,null,null,null,null,null,null,null,null,null,null,null,null,null,null,null,null,null,null,null,null,null,null,null,null,null,null,null,null,null,null,null,null,null,null,null,null,null,null,null,null,null,null,null,null,null,null,null,null,null,null,null,null,null,null,null,null,null,null,null,null,null,null,null,null,null,null,null,null,null,null,null,null,null,null,null,null,null,{"$f":"SUMIF($CE$323:$CN$348,\"<>*税端数*\",$CO$323:$DJ$348)","v":0}]
[]
[]
[]
[null,null,null,null,null,null,null,null,null,null,null,null,null,null,null,null,null,null,null,null,null,null,null,null,null,null,null,null,null,null,null,null,null,null,null,null,null,null,null,null,null,null,null,null,null,null,null,null,null,null,null,null,null,null,5,null,null,null,"/",null,null,null,{"$f":"SUM(1,IF(COUNTIF(内訳明細2,\"<>\")>0,1),IF(COUNTIF(内訳明細3,\"<>\")>0,1),IF(COUNTIF(内訳明細4,\"<>\")>0,1),IF(COUNTIF(内訳明細5,\"<>\")>0,1))","v":1},null,null,null,null,null,null,null,null,null,null,null,null,null,null,null,null,null,null,null,null,null,null,null,null,null,null,null,null,null,{"$f":"$CO$105","v":"(株)ミスタービルド埼玉Ver.1.0"}]

{"sheet":"【始めに入力下さい】　基本情報入力","index":1,"n_rows":33,"n_cols":11,"rows_kept":33,"cut":false,"hidden":false,"merged":[[33,1,33,10],[0,0,0,10],[2,8,2,10],[16,2,16,7],[18,2,18,7],[24,2,24,7],[11,2,11,7],[8,2,8,7],[4,1,4,10],[5,1,5,10],[9,1,9,10],[12,1,12,10],[13,1,13,10],[14,1,14,10],[19,1,19,10],[20,1,20,10],[21,1,21,10],[22,1,22,10],[31,1,31,10],[32,1,32,10],[25,1,25,10],[26,1,26,10]]}
["基 本 情 報 入 力"]
[]
[null,null,null,null,null,null,null,null,"(株)ミスタービルド埼玉Ver.1.0"]
[]
[null,"以下の項目をすべて入力してください。"]
[null,"ただし、登録番号の入力は2023年（令和5年）10月末締分請求書からになります。"]
[]
[]
[null,"取引先コード（6桁）"]
[null,"注文書・注文請書に記載の番号を入力してください。"]
[]
[null,"登録番号（14桁）"]
[null,"2023年（令和5年）10月末締分請求書より、\n"]
[null,"消費税課税事業者の場合は必ず入力してください。"]
[null,"制度に関する詳細は、国税庁のホームページをご参照ください。"]
[]
[null,"住所",null,null,null,null,null,null,null,"請求書への表示","有"]
[]
[null,"会社名（氏名）",null,null,null,null,null,null,null,"請求書への表示","有"]
[null,"法人格は略称を使用しないで入力してください。"]
[null,"＜例＞○□建設(株)の場合　・・・　○□建設　株式会社"]
[null,"なお、請求書への表示を「無」にした場合でも、"]
[null,"2枚目以降にはこちらに入力した内容が表示されます。"]
[]
[null,"会社名（氏名）ヨミガナ"]
[null,"法人格を除いた全角カタカナで入力してください。"]
[null,"＜例＞○□建設(株)の場合　・・・　マルシカクケンセツ"]
[]
[null,"電話番号（TEL)",null,"-",null,"-",null,null,null,"請求書への表示","有"]
[]
[]
[null,"上記項目の入力がすべて終わりましたら「請求書」シートに移動し、"]
[null,"色付きの項目のみを入力して請求書の出力を行ってください。"]

{"sheet":"消費税マスタ","index":2,"n_rows":24,"n_cols":5,"rows_kept":24,"cut":false,"hidden":false,"merged":[[13,1,13,8],[2,1,2,2],[0,0,0,8],[3,1,3,8],[4,1,4,8],[10,1,10,8],[9,1,9,2],[11,1,11,8],[12,1,12,8],[5,1,5,8],[6,1,6,8],[7,1,7,8]]}
["消 費 税 マ ス タ"]
[]
[null,"消費税端数処理",null,"無"]
[null,"原則、「無」から変更しないでください。"]
[null,"「有」にすることで請求書シートの消費税区分で「税端数」を選択できるようになります。"]
[null,"当該行の「品目規格又は作業内容」には「消費税額端数調整」と入力してください。"]
[null,"「税端数」で入力した金額は内訳明細の頁計・総合計には集計されず、"]
[null,"「消費税率別内訳」の消費税額に直接加減算されます。"]
[]
[null,"※注意事項"]
[null,"2023年（令和5年）10月末締分請求書より、適格請求書等保存方式が適用され、"]
[null,"内訳明細1行毎の消費税計算は税法上認められなくなります。"]
[null,"当該月請求分から「税端数」は絶対に使用しないでください。"]
[null,"（請求書の差替えをお願いする可能性があります。予めご了承ください。）"]
[]
[]
[null,null,"無",null,"有"]
[null,null,"１０％",null,"１０％"]
[null,null,"８％(軽)",null,"８％(軽)"]
[null,null,"８％",null,"８％"]
[null,null,"対象外",null,"対象外"]
[null,null,null,null,"税端数１０％"]
[null,null,null,null,"税端数８％(軽)"]
[null,null,null,null,"税端数８％"]

{"sheet":"請求書 (手書き用)","index":3,"n_rows":167,"n_cols":108,"rows_kept":167,"cut":false,"hidden":false,"merged":[[94,84,101,86],[94,103,101,105],[94,73,101,75],[81,6,84,68],[95,6,96,68],[98,6,99,69],[100,6,101,68],[161,92,161,113],[162,6,162,91],[162,92,162,113],[163,92,165,113],[166,54,168,57],[166,58,168,61],[166,62,168,65],[166,92,168,115],[161,6,161,15],[161,16,161,51],[161,52,161,61],[161,62,161,71],[161,72,161,81],[161,82,161,91],[159,92,159,113],[160,6,160,15],[160,16,160,51],[160,52,160,61],[160,62,160,71],[160,72,160,81],[160,82,160,91],[160,92,160,113],[159,6,159,15],[159,16,159,51],[159,52,159,61],[159,62,159,71],[159,72,159,81],[159,82,159,91],[157,92,157,113],[158,6,158,15],[158,16,158,51],[158,52,158,61],[158,62,158,71],[158,72,158,81],[158,82,158,91],[158,92,158,113],[157,6,157,15],[157,16,157,51],[157,52,157,61],[157,62,157,71],[157,72,157,81],[157,82,157,91],[155,92,155,113],[156,6,156,15],[156,16,156,51],[156,52,156,61],[156,62,156,71],[156,72,156,81],[156,82,156,91],[156,92,156,113],[155,6,155,15],[155,16,155,51],[155,52,155,61],[155,62,155,71],[155,72,155,81],[155,82,155,91],[153,92,153,113],[154,6,154,15],[154,16,154,51],[154,52,154,61],[154,62,154,71],[154,72,154,81],[154,82,154,91],[154,92,154,113],[153,6,153,15],[153,16,153,51],[153,52,153,61],[153,62,153,71],[153,72,153,81],[153,82,153,91],[151,92,151,113],[152,6,152,15],[152,16,152,51],[152,52,152,61],[152,62,152,71],[152,72,152,81],[152,82,152,91],[152,92,152,113],[151,6,151,15],[151,16,151,51],[151,52,151,61],[151,62,151,71],[151,72,151,81],[151,82,151,91],[149,92,149,113],[150,6,150,15],[150,16,150,51],[150,52,150,61],[150,62,150,71],[150,72,150,81],[150,82,150,91],[150,92,150,113],[149,6,149,15],[149,16,149,51],[149,52,149,61],[149,62,149,71],[149,72,149,81],[149,82,149,91],[147,92,147,113],[148,6,148,15],[148,16,148,51],[148,52,148,61],[148,62,148,71],[148,72,148,81],[148,82,148,91],[148,92,148,113],[147,6,147,15],[147,16,147,51],[147,52,147,61],[147,62,147,71],[147,72,147,81],[147,82,147,91],[145,92,145,113],[146,6,146,15],[146,16,146,51],[146,52,146,61],[146,62,146,71],[146,72,146,81],[146,82,146,91],[146,92,146,113],[145,6,145,15],[145,16,145,51],[145,52,145,61],[145,62,145,71],[145,72,145,81],[145,82,145,91],[143,92,143,113],[144,6,144,15],[144,16,144,51],[144,52,144,61],[144,62,144,71],[144,72,144,81],[144,82,144,91],[144,92,144,113],[143,6,143,15],[143,16,143,51],[143,52,143,61],[143,62,143,71],[143,72,143,81],[143,82,143,91],[141,92,141,113],[142,6,142,15],[142,16,142,51],[142,52,142,61],[142,62,142,71],[142,72,142,81],[142,82,142,91],[142,92,142,113],[141,6,141,15],[141,16,141,51],[141,52,141,61],[141,62,141,71],[141,72,141,81],[141,82,141,91],[139,92,139,113],[140,6,140,15],[140,16,140,51],[140,52,140,61],[140,62,140,71],[140,72,140,81],[140,82,140,91],[140,92,140,113],[139,6,139,15],[139,16,139,51],[139,52,139,61],[139,62,139,71],[139,72,139,81],[139,82,139,91],[137,92,137,113],[138,6,138,15],[138,16,138,51],[138,52,138,61],[138,62,138,71],[138,72,138,81],[138,82,138,91],[138,92,138,113],[137,6,137,15],[137,16,137,51],[137,52,137,61],[137,62,137,71],[137,72,137,81],[137,82,137,91],[130,43,133,67],[135,6,135,15],[135,16,135,51],[135,52,135,61],[135,62,135,71],[135,72,135,81],[135,82,135,91],[135,92,135,113],[136,6,136,15],[136,16,136,51],[136,52,136,61],[136,62,136,71],[136,72,136,81],[136,82,136,91],[136,92,136,113],[115,54,119,57],[115,58,119,60],[115,61,119,64],[115,65,119,67],[118,81,121,95],[123,6,126,17],[123,18,126,51],[123,54,126,67],[123,68,126,113],[93,6,94,69],[110,5,112,7],[110,43,113,67],[114,81,117,95],[114,96,117,98],[114,99,117,101],[114,102,117,104],[116,6,120,40],[118,96,121,113],[104,54,106,57],[104,58,106,61],[104,62,106,65],[104,92,106,115],[114,105,117,107],[114,108,117,110],[114,111,117,113],[115,43,119,50],[115,51,119,53],[81,89,84,93],[81,94,84,113],[85,6,88,69],[85,77,88,83],[85,84,88,88],[85,89,88,93],[85,94,88,113],[73,6,76,69],[73,85,75,102],[74,107,76,113],[77,6,80,69],[77,73,92,76],[77,77,80,93],[77,94,80,113],[81,77,84,83],[81,84,84,88],[89,77,92,83],[89,84,92,88],[89,89,92,93],[89,94,92,113],[69,6,71,23],[69,24,71,41],[69,42,71,59],[69,60,71,77],[69,78,71,95],[69,96,71,113],[66,6,68,23],[66,24,68,41],[66,42,68,59],[66,60,68,77],[66,78,68,95],[66,96,68,113],[63,6,65,23],[63,24,65,41],[63,42,65,59],[63,60,65,77],[63,78,65,95],[63,96,65,113],[57,6,57,91],[57,92,57,113],[58,6,58,91],[58,92,58,113],[60,6,62,23],[60,24,62,41],[60,42,62,59],[60,60,62,77],[60,78,62,95],[60,96,62,113],[55,92,55,113],[56,6,56,15],[56,16,56,51],[56,52,56,61],[56,62,56,71],[56,72,56,81],[56,82,56,91],[56,92,56,113],[55,6,55,15],[55,16,55,51],[55,52,55,61],[55,62,55,71],[55,72,55,81],[55,82,55,91],[53,92,53,113],[54,6,54,15],[54,16,54,51],[54,52,54,61],[54,62,54,71],[54,72,54,81],[54,82,54,91],[54,92,54,113],[53,6,53,15],[53,16,53,51],[53,52,53,61],[53,62,53,71],[53,72,53,81],[53,82,53,91],[51,92,51,113],[52,6,52,15],[52,16,52,51],[52,52,52,61],[52,62,52,71],[52,72,52,81],[52,82,52,91],[52,92,52,113],[51,6,51,15],[51,16,51,51],[51,52,51,61],[51,62,51,71],[51,72,51,81],[51,82,51,91],[49,92,49,113],[50,6,50,15],[50,16,50,51],[50,52,50,61],[50,62,50,71],[50,72,50,81],[50,82,50,91],[50,92,50,113],[49,6,49,15],[49,16,49,51],[49,52,49,61],[49,62,49,71],[49,72,49,81],[49,82,49,91],[47,92,47,113],[48,6,48,15],[48,16,48,51],[48,52,48,61],[48,62,48,71],[48,72,48,81],[48,82,48,91],[48,92,48,113],[47,6,47,15],[47,16,47,51],[47,52,47,61],[47,62,47,71],[47,72,47,81],[47,82,47,91],[45,6,45,15],[45,16,45,51],[45,52,45,61],[45,62,45,71],[45,72,45,81],[45,82,45,91],[45,92,45,113],[46,6,46,15],[46,16,46,51],[46,52,46,61],[46,62,46,71],[46,72,46,81],[46,82,46,91],[46,92,46,113],[31,6,34,23],[31,24,34,41],[31,54,34,65],[31,66,34,113],[35,6,38,23],[35,24,38,41],[35,54,38,65],[35,66,38,113],[40,46,43,70],[15,6,20,23],[15,24,20,51],[16,55,18,62],[16,66,18,111],[20,55,24,62],[20,66,24,111],[21,6,24,23],[21,24,24,51],[25,6,29,23],[25,24,29,51],[25,105,28,110],[26,55,28,62],[26,66,28,104],[2,5,4,8],[2,47,5,71],[6,81,9,95],[6,96,9,98],[6,99,9,101],[6,102,9,104],[6,105,9,107],[6,108,9,110],[6,111,9,113],[7,6,11,44],[7,47,11,54],[7,55,11,57],[7,58,11,61],[7,62,11,64],[7,65,11,68],[7,69,11,71],[10,81,13,95],[10,96,13,113],[12,9,14,40]]}
[]
[]
[null,null,null,null,null,{"$f":"LEFT('【始めに入力下さい】　基本情報入力'!$C$25)","v":""},null,null,null,null,null,null,null,null,null,null,null,null,null,null,null,null,null,null,null,null,null,null,null,null,null,null,null,null,null,null,null,null,null,null,null,null,null,null,null,null,null,"請 求 書"]
[]
[]
[]
[null,null,null,null,null,null,null,null,null,null,null,null,null,null,null,null,null,null,null,null,null,null,null,null,null,null,null,null,null,null,null,null,null,null,null,null,null,null,null,null,null,null,null,null,null,null,null,null,null,null,null,null,null,null,null,null,null,null,null,null,null,null,null,null,null,null,null,null,null,null,null,null,null,null,null,null,null,null,null,null,null,"取引先コード"]
[null,null,null,null,null,null,"株式会社ミスタービルド埼玉 御中",null,null,null,null,null,null,null,null,null,null,null,null,null,null,null,null,null,null,null,null,null,null,null,null,null,null,null,null,null,null,null,null,null,null,null,null,null,null,null,null,null,null,null,null,null,null,null,null,"年",null,null,null,null,null,null,"月",null,null,null,null,null,null,"日"]
[]
[]
[null,null,null,null,null,null,null,null,null,null,null,null,null,null,null,null,null,null,null,null,null,null,null,null,null,null,null,null,null,null,null,null,null,null,null,null,null,null,null,null,null,null,null,null,null,null,null,null,null,null,null,null,null,null,null,null,null,null,null,null,null,null,null,null,null,null,null,null,null,null,null,null,null,null,null,null,null,null,null,null,null,"登録番号"]
[]
[null,null,null,null,null,null,null,null,null,"下記のとおり御請求申し上げます。"]
[]
[]
[null,null,null,null,null,null,"当月請求額（税込）"]
[null,null,null,null,null,null,null,null,null,null,null,null,null,null,null,null,null,null,null,null,null,null,null,null,null,null,null,null,null,null,null,null,null,null,null,null,null,null,null,null,null,null,null,null,null,null,null,null,null,null,null,null,null,null,null,"住所"]
[]
[]
[]
[null,null,null,null,null,null,null,null,null,null,null,null,null,null,null,null,null,null,null,null,null,null,null,null,null,null,null,null,null,null,null,null,null,null,null,null,null,null,null,null,null,null,null,null,null,null,null,null,null,null,null,null,null,null,null,"会社名\n（氏名）"]
[null,null,null,null,null,null,"立替控除額（税込）"]
[]
[]
[]
[null,null,null,null,null,null,"当月請求額（税込）\n（立替控除後）",null,null,null,null,null,null,null,null,null,null,null,null,null,null,null,null,null,null,null,null,null,null,null,null,null,null,null,null,null,null,null,null,null,null,null,null,null,null,null,null,null,null,null,null,null,null,null,null,null,null,null,null,null,null,null,null,null,null,null,null,null,null,null,null,null,null,null,null,null,null,null,null,null,null,null,null,null,null,null,null,null,null,null,null,null,null,null,null,null,null,null,null,null,null,null,null,null,null,"印"]
[null,null,null,null,null,null,null,null,null,null,null,null,null,null,null,null,null,null,null,null,null,null,null,null,null,null,null,null,null,null,null,null,null,null,null,null,null,null,null,null,null,null,null,null,null,null,null,null,null,null,null,null,null,null,null,"TEL"]
[]
[]
[]
[]
[null,null,null,null,null,null,"所長名\n（ミスタービルド埼玉）",null,null,null,null,null,null,null,null,null,null,null,null,null,null,null,null,null,null,null,null,null,null,null,null,null,null,null,null,null,null,null,null,null,null,null,null,null,null,null,null,null,null,null,null,null,null,null,"工事件名"]
[]
[]
[]
[null,null,null,null,null,null,"注文番号",null,null,null,null,null,null,null,null,null,null,null,null,null,null,null,null,null,null,null,null,null,null,null,null,null,null,null,null,null,null,null,null,null,null,null,null,null,null,null,null,null,null,null,null,null,null,null,"品目及内容"]
[]
[]
[]
[]
[null,null,null,null,null,null,null,null,null,null,null,null,null,null,null,null,null,null,null,null,null,null,null,null,null,null,null,null,null,null,null,null,null,null,null,null,null,null,null,null,null,null,null,null,null,null,"内訳明細"]
[]
[]
[]
[]
[null,null,null,null,null,null,"日付",null,null,null,null,null,null,null,null,null,"品目規格又は作業内容",null,null,null,null,null,null,null,null,null,null,null,null,null,null,null,null,null,null,null,null,null,null,null,null,null,null,null,null,null,null,null,null,null,null,null,"単位",null,null,null,null,null,null,null,null,null,"数量",null,null,null,null,null,null,null,null,null,"単価",null,null,null,null,null,null,null,null,null,"消費税区分",null,null,null,null,null,null,null,null,null,"税抜金額"]
[]
[]
[]
[]
[]
[]
[]
[]
[]
[]
[]
[null,null,null,null,null,null,"頁計"]
[null,null,null,null,null,null,"総合計"]
[]
[null,null,null,null,null,null,"消費税区分",null,null,null,null,null,null,null,null,null,null,null,null,null,null,null,null,null,"１０％",null,null,null,null,null,null,null,null,null,null,null,null,null,null,null,null,null,"８％（軽）",null,null,null,null,null,null,null,null,null,null,null,null,null,null,null,null,null,"８％",null,null,null,null,null,null,null,null,null,null,null,null,null,null,null,null,null,"対象外",null,null,null,null,null,null,null,null,null,null,null,null,null,null,null,null,null,"総合計"]
[]
[]
[null,null,null,null,null,null,"税抜金額",null,null,null,null,null,null,null,null,null,null,null,null,100000000]
[]
[]
[null,null,null,null,null,null,"消費税額",null,null,null,null,null,null,null,null,null,null,null,null,10000000]
[]
[]
[null,null,null,null,null,null,"税込金額",null,null,null,null,null,null,null,null,null,null,null,null,110000000]
[]
[]
[]
[null,null,null,null,null,null,"【請求書作成　注意事項】",null,null,null,null,null,null,null,null,null,null,null,null,null,null,null,null,null,null,null,null,null,null,null,null,null,null,null,null,null,null,null,null,null,null,null,null,null,null,null,null,null,null,null,null,null,null,null,null,null,null,null,null,null,null,null,null,null,null,null,null,null,null,null,null,null,null,null,null,null,null,null,null,null,null,null,null,null,null,"※担当者記入欄"]
[null,null,null,null,null,null,null,null,null,null,null,null,null,null,null,null,null,null,null,null,null,null,null,null,null,null,null,null,null,null,null,null,null,null,null,null,null,null,null,null,null,null,null,null,null,null,null,null,null,null,null,null,null,null,null,null,null,null,null,null,null,null,null,null,null,null,null,null,null,null,null,null,null,null,null,null,null,null,null,null,null,null,null,null,null,null,null,null,null,null,null,null,null,null,null,null,null,null,null,null,null,null,null,null,null,null,null,"（税抜）"]
[]
[]
[null,null,null,null,null,null,"1.　出来高で請求する場合、【出来高調書】（※1）を必ず添付すること",null,null,null,null,null,null,null,null,null,null,null,null,null,null,null,null,null,null,null,null,null,null,null,null,null,null,null,null,null,null,null,null,null,null,null,null,null,null,null,null,null,null,null,null,null,null,null,null,null,null,null,null,null,null,null,null,null,null,null,null,null,null,null,null,null,null,"工　種",null,null,null,"工種コード",null,null,null,null,null,null,null,null,null,null,null,null,null,null,null,null,"工種が2種以上の場合　　　　　　　　　　　　　　　↓　内訳金額を入力"]
[]
[]
[]
[null,null,null,null,null,null,"2.　本書に明細書添付の上、一式請求可能（消費税区分ごとの請求にすること）"]
[]
[]
[]
[null,null,null,null,null,null,"3.　【交通費】【法定福利費】は税抜きとなるように逆算して入力（100/110）"]
[]
[]
[]
[]
[]
[]
[]
[null,null,null,null,null,null,"2023年（令和5年）10月より消費税課税事業者の場合は登録番号を必ず入力（※2）"]
[null,null,null,null,null,null,null,null,null,null,null,null,null,null,null,null,null,null,null,null,null,null,null,null,null,null,null,null,null,null,null,null,null,null,null,null,null,null,null,null,null,null,null,null,null,null,null,null,null,null,null,null,null,null,null,null,null,null,null,null,null,null,null,null,null,null,null,null,null,null,null,null,null,"承認印",null,null,null,null,null,null,null,null,null,null,"確認印",null,null,null,null,null,null,null,null,null,null,null,null,null,null,null,null,null,null,"担当者印"]
[null,null,null,null,null,null,"2023年（令和5年）10月より内訳１行ごとの消費税計算は不可（※2）"]
[]
[]
[null,null,null,null,null,null,"（※1）弊社ホームページでダウンロード可能"]
[]
[null,null,null,null,null,null,"（※2）適格請求書等保存方式「インボイス制度」　国税庁ホームページ参照"]
[]
[]
[]
[null,null,null,null,null,null,null,null,null,null,null,null,null,null,null,null,null,null,null,null,null,null,null,null,null,null,null,null,null,null,null,null,null,null,null,null,null,null,null,null,null,null,null,null,null,null,null,null,null,null,null,null,null,null,null,null,null,null,"/",null,null,null,null,null,null,null,null,null,null,null,null,null,null,null,null,null,null,null,null,null,null,null,null,null,null,null,null,null,null,null,null,null,{"$f":"'【始めに入力下さい】　基本情報入力'!$I$3","v":"(株)ミスタービルド埼玉Ver.1.0"}]
[]
[]
[]
[]
[]
[null,null,null,null,null,{"$f":"LEFT('【始めに入力下さい】　基本情報入力'!$C$25)","v":""},null,null,null,null,null,null,null,null,null,null,null,null,null,null,null,null,null,null,null,null,null,null,null,null,null,null,null,null,null,null,null,null,null,null,null,null,null,"請 求 書"]
[]
[]
[]
[null,null,null,null,null,null,null,null,null,null,null,null,null,null,null,null,null,null,null,null,null,null,null,null,null,null,null,null,null,null,null,null,null,null,null,null,null,null,null,null,null,null,null,null,null,null,null,null,null,null,null,null,null,null,null,null,null,null,null,null,null,null,null,null,null,null,null,null,null,null,null,null,null,null,null,null,null,null,null,null,null,"取引先コード"]
[null,null,null,null,null,null,null,null,null,null,null,null,null,null,null,null,null,null,null,null,null,null,null,null,null,null,null,null,null,null,null,null,null,null,null,null,null,null,null,null,null,null,null,null,null,null,null,null,null,null,null,"年",null,null,null,null,null,null,"月",null,null,null,null,null,null,"日"]
[null,null,null,null,null,null,"株式会社ミスタービルド埼玉 御中"]
[]
[null,null,null,null,null,null,null,null,null,null,null,null,null,null,null,null,null,null,null,null,null,null,null,null,null,null,null,null,null,null,null,null,null,null,null,null,null,null,null,null,null,null,null,null,null,null,null,null,null,null,null,null,null,null,null,null,null,null,null,null,null,null,null,null,null,null,null,null,null,null,null,null,null,null,null,null,null,null,null,null,null,"登録番号"]
[]
[]
[]
[]
[null,null,null,null,null,null,"工事件名",null,null,null,null,null,null,null,null,null,null,null,null,null,null,null,null,null,null,null,null,null,null,null,null,null,null,null,null,null,null,null,null,null,null,null,null,null,null,null,null,null,null,null,null,null,null,null,"会社名（氏名）"]
[]
[]
[]
[]
[]
[]
[null,null,null,null,null,null,null,null,null,null,null,null,null,null,null,null,null,null,null,null,null,null,null,null,null,null,null,null,null,null,null,null,null,null,null,null,null,null,null,null,null,null,null,"内訳明細"]
[]
[]
[]
[]
[null,null,null,null,null,null,"日付",null,null,null,null,null,null,null,null,null,"品目規格又は作業内容",null,null,null,null,null,null,null,null,null,null,null,null,null,null,null,null,null,null,null,null,null,null,null,null,null,null,null,null,null,null,null,null,null,null,null,"単位",null,null,null,null,null,null,null,null,null,"数量",null,null,null,null,null,null,null,null,null,"単価",null,null,null,null,null,null,null,null,null,"消費税区分",null,null,null,null,null,null,null,null,null,"税抜金額"]
[null,null,null,null,null,null,null,null,null,null,null,null,null,null,null,null,null,null,null,null,null,null,null,null,null,null,null,null,null,null,null,null,null,null,null,null,null,null,null,null,null,null,null,null,null,null,null,null,null,null,null,null,null,null,null,null,null,null,null,null,null,null,null,null,null,null,null,null,null,null,null,null,null,null,null,null,null,null,null,null,null,null,null,null,null,null,null,null,null,null,null,null,{"$f":"IF(BU137=\"\",\"\",IF(BK137=\"\",\"数量未入力\",IF(CE137=\"\",\"消費税区分未入力\",ROUNDDOWN(BK137*BU137,0))))","v":""}]
[null,null,null,null,null,null,null,null,null,null,null,null,null,null,null,null,null,null,null,null,null,null,null,null,null,null,null,null,null,null,null,null,null,null,null,null,null,null,null,null,null,null,null,null,null,null,null,null,null,null,null,null,null,null,null,null,null,null,null,null,null,null,null,null,null,null,null,null,null,null,null,null,null,null,null,null,null,null,null,null,null,null,null,null,null,null,null,null,null,null,null,null,""]
[null,null,null,null,null,null,null,null,null,null,null,null,null,null,null,null,null,null,null,null,null,null,null,null,null,null,null,null,null,null,null,null,null,null,null,null,null,null,null,null,null,null,null,null,null,null,null,null,null,null,null,null,null,null,null,null,null,null,null,null,null,null,null,null,null,null,null,null,null,null,null,null,null,null,null,null,null,null,null,null,null,null,null,null,null,null,null,null,null,null,null,null,""]
[null,null,null,null,null,null,null,null,null,null,null,null,null,null,null,null,null,null,null,null,null,null,null,null,null,null,null,null,null,null,null,null,null,null,null,null,null,null,null,null,null,null,null,null,null,null,null,null,null,null,null,null,null,null,null,null,null,null,null,null,null,null,null,null,null,null,null,null,null,null,null,null,null,null,null,null,null,null,null,null,null,null,null,null,null,null,null,null,null,null,null,null,""]
[null,null,null,null,null,null,null,null,null,null,null,null,null,null,null,null,null,null,null,null,null,null,null,null,null,null,null,null,null,null,null,null,null,null,null,null,null,null,null,null,null,null,null,null,null,null,null,null,null,null,null,null,null,null,null,null,null,null,null,null,null,null,null,null,null,null,null,null,null,null,null,null,null,null,null,null,null,null,null,null,null,null,null,null,null,null,null,null,null,null,null,null,""]
[null,null,null,null,null,null,null,null,null,null,null,null,null,null,null,null,null,null,null,null,null,null,null,null,null,null,null,null,null,null,null,null,null,null,null,null,null,null,null,null,null,null,null,null,null,null,null,null,null,null,null,null,null,null,null,null,null,null,null,null,null,null,null,null,null,null,null,null,null,null,null,null,null,null,null,null,null,null,null,null,null,null,null,null,null,null,null,null,null,null,null,null,""]
[null,null,null,null,null,null,null,null,null,null,null,null,null,null,null,null,null,null,null,null,null,null,null,null,null,null,null,null,null,null,null,null,null,null,null,null,null,null,null,null,null,null,null,null,null,null,null,null,null,null,null,null,null,null,null,null,null,null,null,null,null,null,null,null,null,null,null,null,null,null,null,null,null,null,null,null,null,null,null,null,null,null,null,null,null,null,null,null,null,null,null,null,""]
[null,null,null,null,null,null,null,null,null,null,null,null,null,null,null,null,null,null,null,null,null,null,null,null,null,null,null,null,null,null,null,null,null,null,null,null,null,null,null,null,null,null,null,null,null,null,null,null,null,null,null,null,null,null,null,null,null,null,null,null,null,null,null,null,null,null,null,null,null,null,null,null,null,null,null,null,null,null,null,null,null,null,null,null,null,null,null,null,null,null,null,null,""]
[null,null,null,null,null,null,null,null,null,null,null,null,null,null,null,null,null,null,null,null,null,null,null,null,null,null,null,null,null,null,null,null,null,null,null,null,null,null,null,null,null,null,null,null,null,null,null,null,null,null,null,null,null,null,null,null,null,null,null,null,null,null,null,null,null,null,null,null,null,null,null,null,null,null,null,null,null,null,null,null,null,null,null,null,null,null,null,null,null,null,null,null,""]
[null,null,null,null,null,null,null,null,null,null,null,null,null,null,null,null,null,null,null,null,null,null,null,null,null,null,null,null,null,null,null,null,null,null,null,null,null,null,null,null,null,null,null,null,null,null,null,null,null,null,null,null,null,null,null,null,null,null,null,null,null,null,null,null,null,null,null,null,null,null,null,null,null,null,null,null,null,null,null,null,null,null,null,null,null,null,null,null,null,null,null,null,""]
[null,null,null,null,null,null,null,null,null,null,null,null,null,null,null,null,null,null,null,null,null,null,null,null,null,null,null,null,null,null,null,null,null,null,null,null,null,null,null,null,null,null,null,null,null,null,null,null,null,null,null,null,null,null,null,null,null,null,null,null,null,null,null,null,null,null,null,null,null,null,null,null,null,null,null,null,null,null,null,null,null,null,null,null,null,null,null,null,null,null,null,null,""]
[null,null,null,null,null,null,null,null,null,null,null,null,null,null,null,null,null,null,null,null,null,null,null,null,null,null,null,null,null,null,null,null,null,null,null,null,null,null,null,null,null,null,null,null,null,null,null,null,null,null,null,null,null,null,null,null,null,null,null,null,null,null,null,null,null,null,null,null,null,null,null,null,null,null,null,null,null,null,null,null,null,null,null,null,null,null,null,null,null,null,null,null,""]
[null,null,null,null,null,null,null,null,null,null,null,null,null,null,null,null,null,null,null,null,null,null,null,null,null,null,null,null,null,null,null,null,null,null,null,null,null,null,null,null,null,null,null,null,null,null,null,null,null,null,null,null,null,null,null,null,null,null,null,null,null,null,null,null,null,null,null,null,null,null,null,null,null,null,null,null,null,null,null,null,null,null,null,null,null,null,null,null,null,null,null,null,""]
[null,null,null,null,null,null,null,null,null,null,null,null,null,null,null,null,null,null,null,null,null,null,null,null,null,null,null,null,null,null,null,null,null,null,null,null,null,null,null,null,null,null,null,null,null,null,null,null,null,null,null,null,null,null,null,null,null,null,null,null,null,null,null,null,null,null,null,null,null,null,null,null,null,null,null,null,null,null,null,null,null,null,null,null,null,null,null,null,null,null,null,null,""]
[null,null,null,null,null,null,null,null,null,null,null,null,null,null,null,null,null,null,null,null,null,null,null,null,null,null,null,null,null,null,null,null,null,null,null,null,null,null,null,null,null,null,null,null,null,null,null,null,null,null,null,null,null,null,null,null,null,null,null,null,null,null,null,null,null,null,null,null,null,null,null,null,null,null,null,null,null,null,null,null,null,null,null,null,null,null,null,null,null,null,null,null,""]
[null,null,null,null,null,null,null,null,null,null,null,null,null,null,null,null,null,null,null,null,null,null,null,null,null,null,null,null,null,null,null,null,null,null,null,null,null,null,null,null,null,null,null,null,null,null,null,null,null,null,null,null,null,null,null,null,null,null,null,null,null,null,null,null,null,null,null,null,null,null,null,null,null,null,null,null,null,null,null,null,null,null,null,null,null,null,null,null,null,null,null,null,""]
[null,null,null,null,null,null,null,null,null,null,null,null,null,null,null,null,null,null,null,null,null,null,null,null,null,null,null,null,null,null,null,null,null,null,null,null,null,null,null,null,null,null,null,null,null,null,null,null,null,null,null,null,null,null,null,null,null,null,null,null,null,null,null,null,null,null,null,null,null,null,null,null,null,null,null,null,null,null,null,null,null,null,null,null,null,null,null,null,null,null,null,null,""]
[null,null,null,null,null,null,null,null,null,null,null,null,null,null,null,null,null,null,null,null,null,null,null,null,null,null,null,null,null,null,null,null,null,null,null,null,null,null,null,null,null,null,null,null,null,null,null,null,null,null,null,null,null,null,null,null,null,null,null,null,null,null,null,null,null,null,null,null,null,null,null,null,null,null,null,null,null,null,null,null,null,null,null,null,null,null,null,null,null,null,null,null,""]
[null,null,null,null,null,null,null,null,null,null,null,null,null,null,null,null,null,null,null,null,null,null,null,null,null,null,null,null,null,null,null,null,null,null,null,null,null,null,null,null,null,null,null,null,null,null,null,null,null,null,null,null,null,null,null,null,null,null,null,null,null,null,null,null,null,null,null,null,null,null,null,null,null,null,null,null,null,null,null,null,null,null,null,null,null,null,null,null,null,null,null,null,""]
[null,null,null,null,null,null,null,null,null,null,null,null,null,null,null,null,null,null,null,null,null,null,null,null,null,null,null,null,null,null,null,null,null,null,null,null,null,null,null,null,null,null,null,null,null,null,null,null,null,null,null,null,null,null,null,null,null,null,null,null,null,null,null,null,null,null,null,null,null,null,null,null,null,null,null,null,null,null,null,null,null,null,null,null,null,null,null,null,null,null,null,null,""]
[null,null,null,null,null,null,null,null,null,null,null,null,null,null,null,null,null,null,null,null,null,null,null,null,null,null,null,null,null,null,null,null,null,null,null,null,null,null,null,null,null,null,null,null,null,null,null,null,null,null,null,null,null,null,null,null,null,null,null,null,null,null,null,null,null,null,null,null,null,null,null,null,null,null,null,null,null,null,null,null,null,null,null,null,null,null,null,null,null,null,null,null,""]
[null,null,null,null,null,null,null,null,null,null,null,null,null,null,null,null,null,null,null,null,null,null,null,null,null,null,null,null,null,null,null,null,null,null,null,null,null,null,null,null,null,null,null,null,null,null,null,null,null,null,null,null,null,null,null,null,null,null,null,null,null,null,null,null,null,null,null,null,null,null,null,null,null,null,null,null,null,null,null,null,null,null,null,null,null,null,null,null,null,null,null,null,""]
[null,null,null,null,null,null,null,null,null,null,null,null,null,null,null,null,null,null,null,null,null,null,null,null,null,null,null,null,null,null,null,null,null,null,null,null,null,null,null,null,null,null,null,null,null,null,null,null,null,null,null,null,null,null,null,null,null,null,null,null,null,null,null,null,null,null,null,null,null,null,null,null,null,null,null,null,null,null,null,null,null,null,null,null,null,null,null,null,null,null,null,null,""]
[null,null,null,null,null,null,null,null,null,null,null,null,null,null,null,null,null,null,null,null,null,null,null,null,null,null,null,null,null,null,null,null,null,null,null,null,null,null,null,null,null,null,null,null,null,null,null,null,null,null,null,null,null,null,null,null,null,null,null,null,null,null,null,null,null,null,null,null,null,null,null,null,null,null,null,null,null,null,null,null,null,null,null,null,null,null,null,null,null,null,null,null,""]
[null,null,null,null,null,null,null,null,null,null,null,null,null,null,null,null,null,null,null,null,null,null,null,null,null,null,null,null,null,null,null,null,null,null,null,null,null,null,null,null,null,null,null,null,null,null,null,null,null,null,null,null,null,null,null,null,null,null,null,null,null,null,null,null,null,null,null,null,null,null,null,null,null,null,null,null,null,null,null,null,null,null,null,null,null,null,null,null,null,null,null,null,""]
[null,null,null,null,null,null,null,null,null,null,null,null,null,null,null,null,null,null,null,null,null,null,null,null,null,null,null,null,null,null,null,null,null,null,null,null,null,null,null,null,null,null,null,null,null,null,null,null,null,null,null,null,null,null,null,null,null,null,null,null,null,null,null,null,null,null,null,null,null,null,null,null,null,null,null,null,null,null,null,null,null,null,null,null,null,null,null,null,null,null,null,null,""]
[null,null,null,null,null,null,"頁計"]
[]
[]
[]
[null,null,null,null,null,null,null,null,null,null,null,null,null,null,null,null,null,null,null,null,null,null,null,null,null,null,null,null,null,null,null,null,null,null,null,null,null,null,null,null,null,null,null,null,null,null,null,null,null,null,null,null,null,null,null,null,null,null,"/",null,null,null,null,null,null,null,null,null,null,null,null,null,null,null,null,null,null,null,null,null,null,null,null,null,null,null,null,null,null,null,null,null,{"$f":"$CO$105","v":"(株)ミスタービルド埼玉Ver.1.0"}]

{"sheet":"その他","index":4,"n_rows":38,"n_cols":4,"rows_kept":38,"cut":false,"hidden":false,"merged":[[17,2,17,10],[18,2,18,10],[1,2,1,10],[9,2,9,10],[3,2,3,10],[4,2,4,10],[5,2,5,10],[6,2,6,10],[11,2,11,10],[12,2,12,10],[13,2,13,10],[15,2,15,10],[16,2,16,10]]}
[]
[null,"Ｑ１.","入力欄に自社のExcel等からコピー＆ペーストをしようとしたらエラーがでてしまった。"]
[]
[null,"Ａ１.","ペースト先のセルが結合セルのため、そのままペーストはできません。"]
[null,null,"ペースト時に「形式を選択して貼付」→「数式」を選択してください。"]
[null,null,"コピー元が数式の場合は一度値に変換してから上記の処理を行ってください。"]
[null,null,"また、コピー＆ペースト作業は１列ずつ行ってください（複数列同時にはできません）。"]
[]
[]
[null,"Ｑ２.","ページ数を指定してPDFに変換することは可能か。"]
[]
[null,"Ａ２.","予め印刷プリンターに「Microsoft Print to PDF」を選択し、「請求書」シート内の"]
[null,null,"用紙右側にある「印刷」ボタンを押すことで変換可能です。"]
[null,null,"（「Microsoft Print to PDF」・・・Windows10以降のパソコンに標準搭載の仮想プリンター。）"]
[]
[null,null,"「Microsoft Print to PDF」を使用しない場合は以下の手順で変換可能です。"]
[null,null,"※パソコン環境によって細部が異なる可能性があります。予めご了承ください。"]
[null,null,"名前を付けて保存　→　ファイルの種類「PDF」を選択　→　「オプション」押下"]
[null,null,"→「ページ指定」開始ページと終了ページを指定し、「OK」押下　→　「保存」押下"]
[]
[null,null,"「名前を付けて保存」ウインドウ"]
[]
[]
[]
[]
[]
[]
[]
[]
[]
[]
[]
[]
[]
[]
[null,null,null,"↓"]
[]
[null,null,"「オプション」ウインドウ"]

{"sheet":"請求書(入力例)","index":5,"n_rows":241,"n_cols":112,"rows_kept":241,"cut":false,"hidden":false,"merged":[[108,92,108,113],[109,6,109,91],[108,6,108,91],[113,96,115,113],[113,78,115,95],[113,60,115,77],[113,42,115,59],[113,24,115,41],[113,6,115,23],[110,6,112,34],[110,92,112,113],[109,92,109,113],[122,96,124,113],[122,78,124,95],[122,60,124,77],[122,42,124,59],[122,24,124,41],[122,6,124,23],[134,6,137,17],[134,18,137,37],[134,43,137,54],[134,55,137,75],[116,96,118,113],[116,78,118,95],[116,60,118,77],[116,42,118,59],[116,24,118,41],[116,6,118,23],[119,96,121,113],[119,78,121,95],[119,60,121,77],[119,42,121,59],[119,24,121,41],[119,6,121,23],[93,6,94,69],[104,54,106,57],[104,58,106,61],[104,62,106,65],[104,92,106,115],[94,73,101,75],[94,84,101,86],[94,103,101,105],[95,6,96,68],[98,6,99,69],[100,6,101,68],[73,6,76,69],[73,85,75,102],[74,107,76,113],[77,6,80,69],[77,73,92,76],[77,77,80,93],[77,94,80,113],[81,77,84,83],[81,84,84,88],[81,89,84,93],[81,94,84,113],[85,6,88,69],[85,77,88,83],[85,84,88,88],[85,89,88,93],[85,94,88,113],[89,77,92,83],[89,84,92,88],[89,89,92,93],[89,94,92,113],[81,6,84,68],[66,6,68,23],[66,24,68,41],[66,42,68,59],[66,60,68,77],[66,78,68,95],[66,96,68,113],[69,6,71,23],[69,24,71,41],[69,42,71,59],[69,60,71,77],[69,78,71,95],[69,96,71,113],[58,6,58,91],[58,92,58,113],[60,6,62,23],[60,24,62,41],[60,42,62,59],[60,60,62,77],[60,78,62,95],[60,96,62,113],[63,6,65,23],[63,24,65,41],[63,42,65,59],[63,60,65,77],[63,78,65,95],[63,96,65,113],[56,6,56,15],[56,16,56,51],[56,52,56,61],[56,62,56,71],[56,72,56,81],[56,82,56,91],[56,92,56,113],[57,6,57,91],[57,92,57,113],[54,6,54,15],[54,16,54,51],[54,52,54,61],[54,62,54,71],[54,72,54,81],[54,82,54,91],[54,92,54,113],[55,6,55,15],[55,16,55,51],[55,52,55,61],[55,62,55,71],[55,72,55,81],[55,82,55,91],[55,92,55,113],[52,6,52,15],[52,16,52,51],[52,52,52,61],[52,62,52,71],[52,72,52,81],[52,82,52,91],[52,92,52,113],[53,6,53,15],[53,16,53,51],[53,52,53,61],[53,62,53,71],[53,72,53,81],[53,82,53,91],[53,92,53,113],[14,9,16,40],[16,55,18,62],[16,66,18,111],[50,72,50,81],[50,82,50,91],[50,92,50,113],[51,6,51,15],[51,16,51,51],[51,52,51,61],[51,62,51,71],[51,72,51,81],[51,82,51,91],[51,92,51,113],[50,6,50,15],[50,16,50,51],[50,52,50,61],[50,62,50,71],[2,5,4,7],[2,43,5,67],[6,81,9,95],[6,96,9,98],[6,99,9,101],[6,102,9,104],[8,6,12,33],[8,34,12,40],[10,96,13,113],[6,105,9,107],[6,108,9,110],[6,111,9,113],[7,43,11,50],[7,51,11,53],[7,54,11,57],[7,58,11,60],[7,61,11,64],[7,65,11,67],[10,81,13,95],[17,6,20,23],[17,24,20,51],[20,55,24,62],[20,66,24,111],[21,6,24,23],[21,24,24,51],[35,6,38,23],[35,24,38,41],[35,54,38,65],[35,66,38,113],[45,92,45,113],[25,6,29,23],[25,24,29,51],[25,105,28,110],[26,55,28,62],[26,66,28,104],[31,6,34,23],[31,24,34,41],[31,54,34,65],[31,66,34,113],[47,52,47,61],[47,62,47,71],[47,72,47,81],[47,82,47,91],[40,43,43,67],[45,6,45,15],[45,16,45,51],[45,52,45,61],[45,62,45,71],[45,72,45,81],[45,82,45,91],[46,6,46,15],[46,16,46,51],[46,52,46,61],[46,62,46,71],[46,72,46,81],[46,82,46,91],[46,92,46,113],[49,92,49,113],[49,6,49,15],[49,16,49,51],[49,52,49,61],[49,62,49,71],[49,72,49,81],[49,82,49,91],[47,92,47,113],[48,6,48,15],[48,16,48,51],[48,52,48,61],[48,62,48,71],[48,72,48,81],[48,82,48,91],[48,92,48,113],[47,6,47,15],[47,16,47,51],[127,5,129,22],[127,43,129,71],[127,81,129,109],[130,6,133,17],[130,18,133,37],[130,43,133,54],[130,55,133,75],[130,81,133,92],[130,93,133,113],[178,54,180,57],[178,58,180,61],[178,62,180,65],[178,92,180,115],[184,5,186,7],[184,43,187,67],[138,6,141,17],[138,18,141,37],[138,43,141,54],[138,55,141,75],[169,102,176,105],[169,52,176,55],[156,62,159,91],[156,92,159,113],[160,62,163,91],[160,92,163,113],[164,92,166,101],[169,6,176,9],[169,30,176,33],[144,6,163,9],[144,10,147,25],[144,26,147,37],[144,38,147,59],[144,62,146,91],[144,92,146,113],[147,62,149,91],[147,92,149,113],[150,62,153,91],[150,92,153,113],[210,6,210,15],[210,16,210,51],[210,52,210,61],[210,62,210,71],[210,72,210,81],[210,82,210,91],[210,92,210,113],[204,43,207,67],[209,6,209,15],[209,16,209,51],[209,52,209,61],[209,62,209,71],[209,72,209,81],[192,81,195,95],[209,82,209,91],[209,92,209,113],[192,96,195,113],[197,6,200,17],[197,18,200,51],[197,54,200,67],[197,68,200,113],[188,111,191,113],[189,43,193,50],[189,51,193,53],[189,54,193,57],[189,58,193,60],[189,61,193,64],[189,65,193,67],[188,81,191,95],[188,96,191,98],[188,99,191,101],[188,102,191,104],[188,105,191,107],[188,108,191,110],[190,6,194,33],[190,34,194,40],[213,92,213,113],[211,92,211,113],[214,6,214,15],[214,16,214,51],[214,52,214,61],[214,62,214,71],[214,72,214,81],[214,82,214,91],[214,92,214,113],[213,6,213,15],[213,16,213,51],[213,52,213,61],[213,62,213,71],[213,72,213,81],[213,82,213,91],[212,6,212,15],[212,16,212,51],[212,52,212,61],[212,62,212,71],[212,72,212,81],[212,82,212,91],[212,92,212,113],[211,6,211,15],[211,16,211,51],[211,52,211,61],[211,62,211,71],[211,72,211,81],[211,82,211,91],[217,92,217,113],[218,6,218,15],[218,16,218,51],[218,52,218,61],[218,62,218,71],[218,72,218,81],[218,82,218,91],[218,92,218,113],[217,6,217,15],[217,16,217,51],[217,52,217,61],[217,62,217,71],[217,72,217,81],[217,82,217,91],[215,92,215,113],[216,6,216,15],[216,16,216,51],[216,52,216,61],[216,62,216,71],[216,72,216,81],[216,82,216,91],[216,92,216,113],[215,6,215,15],[215,16,215,51],[215,52,215,61],[215,62,215,71],[215,72,215,81],[215,82,215,91],[221,92,221,113],[219,92,219,113],[220,6,220,15],[220,16,220,51],[220,52,220,61],[220,62,220,71],[220,72,220,81],[220,82,220,91],[220,92,220,113],[219,6,219,15],[219,16,219,51],[219,52,219,61],[219,62,219,71],[219,72,219,81],[219,82,219,91],[222,6,222,15],[222,16,222,51],[222,52,222,61],[222,62,222,71],[222,72,222,81],[222,82,222,91],[222,92,222,113],[221,6,221,15],[221,16,221,51],[221,52,221,61],[221,62,221,71],[221,72,221,81],[221,82,221,91],[225,92,225,113],[226,6,226,15],[226,16,226,51],[226,52,226,61],[226,62,226,71],[226,72,226,81],[226,82,226,91],[226,92,226,113],[225,6,225,15],[225,16,225,51],[225,52,225,61],[225,62,225,71],[225,72,225,81],[225,82,225,91],[223,92,223,113],[224,6,224,15],[224,16,224,51],[224,52,224,61],[224,62,224,71],[224,72,224,81],[224,82,224,91],[224,92,224,113],[223,6,223,15],[223,16,223,51],[223,52,223,61],[223,62,223,71],[223,72,223,81],[223,82,223,91],[229,92,229,113],[230,6,230,15],[230,16,230,51],[230,52,230,61],[230,62,230,71],[230,72,230,81],[230,82,230,91],[230,92,230,113],[229,6,229,15],[229,16,229,51],[229,52,229,61],[229,62,229,71],[229,72,229,81],[229,82,229,91],[227,92,227,113],[228,6,228,15],[228,16,228,51],[228,52,228,61],[228,62,228,71],[228,72,228,81],[228,82,228,91],[228,92,228,113],[227,6,227,15],[227,16,227,51],[227,52,227,61],[227,62,227,71],[227,72,227,81],[227,82,227,91],[233,92,233,113],[234,6,234,15],[234,16,234,51],[234,52,234,61],[234,62,234,71],[234,72,234,81],[234,82,234,91],[234,92,234,113],[233,6,233,15],[233,16,233,51],[233,52,233,61],[233,62,233,71],[233,72,233,81],[233,82,233,91],[231,92,231,113],[232,6,232,15],[232,16,232,51],[232,52,232,61],[232,62,232,71],[232,72,232,81],[232,82,232,91],[232,92,232,113],[231,6,231,15],[231,16,231,51],[231,52,231,61],[231,62,231,71],[231,72,231,81],[231,82,231,91],[235,92,235,113],[236,6,236,91],[236,92,236,113],[237,92,239,113],[240,54,242,57],[240,58,242,61],[240,62,242,65],[240,92,242,115],[235,6,235,15],[235,16,235,51],[235,52,235,61],[235,62,235,71],[235,72,235,81],[235,82,235,91]]}
[]
[]
[null,null,null,null,null,"マ",null,null,null,null,null,null,null,null,null,null,null,null,null,null,null,null,null,null,null,null,null,null,null,null,null,null,null,null,null,null,null,null,null,null,null,null,null,"請 求 書"]
[]
[]
[]
[null,null,null,null,null,null,null,null,null,null,null,null,null,null,null,null,null,null,null,null,null,null,null,null,null,null,null,null,null,null,null,null,null,null,null,null,null,null,null,null,null,null,null,null,null,null,null,null,null,null,null,null,null,null,null,null,null,null,null,null,null,null,null,null,null,null,null,null,null,null,null,null,null,null,null,null,null,null,null,null,null,"取引先コード",null,null,null,null,null,null,null,null,null,null,null,null,null,null,"0",null,null,"0",null,null,"1",null,null,"7",null,null,"3",null,null,"2"]
[null,null,null,null,null,null,null,null,null,null,null,null,null,null,null,null,null,null,null,null,null,null,null,null,null,null,null,null,null,null,null,null,null,null,null,null,null,null,null,null,null,null,null,2022,null,null,null,null,null,null,null,"年",null,null,11,null,null,null,"月",null,null,30,null,null,null,"日"]
[null,null,null,null,null,null,"株式会社ミスタービルド埼玉",null,null,null,null,null,null,null,null,null,null,null,null,null,null,null,null,null,null,null,null,null,null,null,null,null,null,null,"御中"]
[]
[null,null,null,null,null,null,null,null,null,null,null,null,null,null,null,null,null,null,null,null,null,null,null,null,null,null,null,null,null,null,null,null,null,null,null,null,null,null,null,null,null,null,null,null,null,null,null,null,null,null,null,null,null,null,null,null,null,null,null,null,null,null,null,null,null,null,null,null,null,null,null,null,null,null,null,null,null,null,null,null,null,"登録番号",null,null,null,null,null,null,null,null,null,null,null,null,null,null,"T1234567890123"]
[]
[]
[]
[null,null,null,null,null,null,null,null,null,"下記のとおり御請求申し上げます。"]
[]
[null,null,null,null,null,null,null,null,null,null,null,null,null,null,null,null,null,null,null,null,null,null,null,null,null,null,null,null,null,null,null,null,null,null,null,null,null,null,null,null,null,null,null,null,null,null,null,null,null,null,null,null,null,null,null,"住所",null,null,null,null,null,null,null,null,null,null,"○○県○○市1-2-3"]
[null,null,null,null,null,null,"当月請求額（税込）",null,null,null,null,null,null,null,null,null,null,null,null,null,null,null,null,null,12115400]
[]
[]
[null,null,null,null,null,null,null,null,null,null,null,null,null,null,null,null,null,null,null,null,null,null,null,null,null,null,null,null,null,null,null,null,null,null,null,null,null,null,null,null,null,null,null,null,null,null,null,null,null,null,null,null,null,null,null,"会社名\n（氏名）",null,null,null,null,null,null,null,null,null,null,"○□建設　株式会社"]
[null,null,null,null,null,null,"立替控除額（税込）",null,null,null,null,null,null,null,null,null,null,null,null,null,null,null,null,null,-110000]
[]
[]
[]
[null,null,null,null,null,null,"当月請求額（税込）\n（立替控除後）",null,null,null,null,null,null,null,null,null,null,null,null,null,null,null,null,null,{"$f":"Y18+Y22","v":12005400},null,null,null,null,null,null,null,null,null,null,null,null,null,null,null,null,null,null,null,null,null,null,null,null,null,null,null,null,null,null,null,null,null,null,null,null,null,null,null,null,null,null,null,null,null,null,null,null,null,null,null,null,null,null,null,null,null,null,null,null,null,null,null,null,null,null,null,null,null,null,null,null,null,null,null,null,null,null,null,null,"印"]
[null,null,null,null,null,null,null,null,null,null,null,null,null,null,null,null,null,null,null,null,null,null,null,null,null,null,null,null,null,null,null,null,null,null,null,null,null,null,null,null,null,null,null,null,null,null,null,null,null,null,null,null,null,null,null,"TEL",null,null,null,null,null,null,null,null,null,null,"048 - 222 - 3333"]
[]
[]
[]
[]
[null,null,null,null,null,null,"所長名\n（ミスタービルド埼玉）",null,null,null,null,null,null,null,null,null,null,null,null,null,null,null,null,null,"○○　○○",null,null,null,null,null,null,null,null,null,null,null,null,null,null,null,null,null,null,null,null,null,null,null,null,null,null,null,null,null,"工事件名",null,null,null,null,null,null,null,null,null,null,null,"□□マンション新築工事"]
[]
[]
[]
[null,null,null,null,null,null,"注文番号",null,null,null,null,null,null,null,null,null,null,null,null,null,null,null,null,null,12345,null,null,null,null,null,null,null,null,null,null,null,null,null,null,null,null,null,null,null,null,null,null,null,null,null,null,null,null,null,"品目及内容",null,null,null,null,null,null,null,null,null,null,null,"○○工事"]
[]
[]
[]
[]
[null,null,null,null,null,null,null,null,null,null,null,null,null,null,null,null,null,null,null,null,null,null,null,null,null,null,null,null,null,null,null,null,null,null,null,null,null,null,null,null,null,null,null,"内訳明細"]
[]
[]
[]
[]
[null,null,null,null,null,null,"日付",null,null,null,null,null,null,null,null,null,"品目規格又は作業内容",null,null,null,null,null,null,null,null,null,null,null,null,null,null,null,null,null,null,null,null,null,null,null,null,null,null,null,null,null,null,null,null,null,null,null,"単位",null,null,null,null,null,null,null,null,null,"数量",null,null,null,null,null,null,null,null,null,"単価",null,null,null,null,null,null,null,null,null,"消費税区分",null,null,null,null,null,null,null,null,null,"税抜金額"]
[null,null,null,null,null,null,"2021-04-30",null,null,null,null,null,null,null,null,null,"○○工事",null,null,null,null,null,null,null,null,null,null,null,null,null,null,null,null,null,null,null,null,null,null,null,null,null,null,null,null,null,null,null,null,null,null,null,"式",null,null,null,null,null,null,null,null,null,1,null,null,null,null,null,null,null,null,null,10000000,null,null,null,null,null,null,null,null,null,"１０％",null,null,null,null,null,null,null,null,null,10000000]
[null,null,null,null,null,null,"2021-04-15",null,null,null,null,null,null,null,null,null,"飲料代",null,null,null,null,null,null,null,null,null,null,null,null,null,null,null,null,null,null,null,null,null,null,null,null,null,null,null,null,null,null,null,null,null,null,null,"個",null,null,null,null,null,null,null,null,null,50,null,null,null,null,null,null,null,null,null,100,null,null,null,null,null,null,null,null,null,"８％(軽)",null,null,null,null,null,null,null,null,null,5000]
[null,null,null,null,null,null,"2021-04-30",null,null,null,null,null,null,null,null,null,"□□工事（経過措置）",null,null,null,null,null,null,null,null,null,null,null,null,null,null,null,null,null,null,null,null,null,null,null,null,null,null,null,null,null,null,null,null,null,null,null,"式",null,null,null,null,null,null,null,null,null,1,null,null,null,null,null,null,null,null,null,500000,null,null,null,null,null,null,null,null,null,"８％",null,null,null,null,null,null,null,null,null,500000]
[null,null,null,null,null,null,"2021-04-30",null,null,null,null,null,null,null,null,null,"△△（非課税対象）",null,null,null,null,null,null,null,null,null,null,null,null,null,null,null,null,null,null,null,null,null,null,null,null,null,null,null,null,null,null,null,null,null,null,null,"個",null,null,null,null,null,null,null,null,null,1,null,null,null,null,null,null,null,null,null,20000,null,null,null,null,null,null,null,null,null,"対象外",null,null,null,null,null,null,null,null,null,20000]
[null,null,null,null,null,null,null,null,null,null,null,null,null,null,null,null,null,null,null,null,null,null,null,null,null,null,null,null,null,null,null,null,null,null,null,null,null,null,null,null,null,null,null,null,null,null,null,null,null,null,null,null,null,null,null,null,null,null,null,null,null,null,null,null,null,null,null,null,null,null,null,null,null,null,null,null,null,null,null,null,null,null,null,null,null,null,null,null,null,null,null,null,{"$f":"IF(BU51=\"\",\"\",IF(BK51=\"\",\"数量未入力\",IF(CE51=\"\",\"消費税区分未入力\",ROUNDDOWN(BK51*BU51,0))))","v":""}]
[null,null,null,null,null,null,null,null,null,null,null,null,null,null,null,null,null,null,null,null,null,null,null,null,null,null,null,null,null,null,null,null,null,null,null,null,null,null,null,null,null,null,null,null,null,null,null,null,null,null,null,null,null,null,null,null,null,null,null,null,null,null,null,null,null,null,null,null,null,null,null,null,null,null,null,null,null,null,null,null,null,null,null,null,null,null,null,null,null,null,null,null,{"$f":"IF(BU52=\"\",\"\",IF(BK52=\"\",\"数量未入力\",IF(CE52=\"\",\"消費税区分未入力\",ROUNDDOWN(BK52*BU52,0))))","v":""}]
[null,null,null,null,null,null,null,null,null,null,null,null,null,null,null,null,null,null,null,null,null,null,null,null,null,null,null,null,null,null,null,null,null,null,null,null,null,null,null,null,null,null,null,null,null,null,null,null,null,null,null,null,null,null,null,null,null,null,null,null,null,null,null,null,null,null,null,null,null,null,null,null,null,null,null,null,null,null,null,null,null,null,null,null,null,null,null,null,null,null,null,null,{"$f":"IF(BU53=\"\",\"\",IF(BK53=\"\",\"数量未入力\",IF(CE53=\"\",\"消費税区分未入力\",ROUNDDOWN(BK53*BU53,0))))","v":""}]
[null,null,null,null,null,null,null,null,null,null,null,null,null,null,null,null,null,null,null,null,null,null,null,null,null,null,null,null,null,null,null,null,null,null,null,null,null,null,null,null,null,null,null,null,null,null,null,null,null,null,null,null,null,null,null,null,null,null,null,null,null,null,null,null,null,null,null,null,null,null,null,null,null,null,null,null,null,null,null,null,null,null,null,null,null,null,null,null,null,null,null,null,""]
[null,null,null,null,null,null,null,null,null,null,null,null,null,null,null,null,null,null,null,null,null,null,null,null,null,null,null,null,null,null,null,null,null,null,null,null,null,null,null,null,null,null,null,null,null,null,null,null,null,null,null,null,null,null,null,null,null,null,null,null,null,null,null,null,null,null,null,null,null,null,null,null,null,null,null,null,null,null,null,null,null,null,null,null,null,null,null,null,null,null,null,null,{"$f":"IF(BU55=\"\",\"\",IF(BK55=\"\",\"数量未入力\",IF(CE55=\"\",\"消費税区分未入力\",ROUNDDOWN(BK55*BU55,0))))","v":""}]
[null,null,null,null,null,null,null,null,null,null,null,null,null,null,null,null,null,null,null,null,null,null,null,null,null,null,null,null,null,null,null,null,null,null,null,null,null,null,null,null,null,null,null,null,null,null,null,null,null,null,null,null,null,null,null,null,null,null,null,null,null,null,null,null,null,null,null,null,null,null,null,null,null,null,null,null,null,null,null,null,null,null,null,null,null,null,null,null,null,null,null,null,{"$f":"IF(BU56=\"\",\"\",IF(BK56=\"\",\"数量未入力\",IF(CE56=\"\",\"消費税区分未入力\",ROUNDDOWN(BK56*BU56,0))))","v":""}]
[null,null,null,null,null,null,null,null,null,null,null,null,null,null,null,null,null,null,null,null,null,null,null,null,null,null,null,null,null,null,null,null,null,null,null,null,null,null,null,null,null,null,null,null,null,null,null,null,null,null,null,null,null,null,null,null,null,null,null,null,null,null,null,null,null,null,null,null,null,null,null,null,null,null,null,null,null,null,null,null,null,null,null,null,null,null,null,null,null,null,null,null,{"$f":"IF(BU57=\"\",\"\",IF(BK57=\"\",\"数量未入力\",IF(CE57=\"\",\"消費税区分未入力\",ROUNDDOWN(BK57*BU57,0))))","v":""}]
[null,null,null,null,null,null,"頁計",null,null,null,null,null,null,null,null,null,null,null,null,null,null,null,null,null,null,null,null,null,null,null,null,null,null,null,null,null,null,null,null,null,null,null,null,null,null,null,null,null,null,null,null,null,null,null,null,null,null,null,null,null,null,null,null,null,null,null,null,null,null,null,null,null,null,null,null,null,null,null,null,null,null,null,null,null,null,null,null,null,null,null,null,null,{"$f":"SUMIF($CE$47:$CN$57,\"<>*税端数*\",$CO$47:$DJ$57)","v":10525000}]
[null,null,null,null,null,null,"総合計",null,null,null,null,null,null,null,null,null,null,null,null,null,null,null,null,null,null,null,null,null,null,null,null,null,null,null,null,null,null,null,null,null,null,null,null,null,null,null,null,null,null,null,null,null,null,null,null,null,null,null,null,null,null,null,null,null,null,null,null,null,null,null,null,null,null,null,null,null,null,null,null,null,null,null,null,null,null,null,null,null,null,null,null,null,{"$f":"SUM($CO$58,$CO$163,$CO$237,$CO$287,$CO$349)","v":11025000}]
[]
[null,null,null,null,null,null,"消費税区分",null,null,null,null,null,null,null,null,null,null,null,null,null,null,null,null,null,"１０％",null,null,null,null,null,null,null,null,null,null,null,null,null,null,null,null,null,"８％（軽）",null,null,null,null,null,null,null,null,null,null,null,null,null,null,null,null,null,"８％",null,null,null,null,null,null,null,null,null,null,null,null,null,null,null,null,null,"対象外",null,null,null,null,null,null,null,null,null,null,null,null,null,null,null,null,null,"総合計"]
[]
[]
[null,null,null,null,null,null,"税抜金額",null,null,null,null,null,null,null,null,null,null,null,null,100000000,null,null,null,null,{"$f":"SUM(SUMIF($CE$47:$CN$57,\"１０％\",$CO$47:$DJ$57),SUMIF($CE$137:$CN$162,\"１０％\",$CO$137:$DJ$162),SUMIF($CE$199:$CN$224,\"１０％\",$CO$199:$DJ$224),SUMIF($CE$261:$CN$286,\"１０％\",$CO$261:$DJ$286),SUMIF($CE$323:$CN$348,\"１０％\",$CO$323:$DJ$348))","v":10500000},null,null,null,null,null,null,null,null,null,null,null,null,null,null,null,null,null,{"$f":"SUM(SUMIF($CE$47:$CN$57,\"８％(軽)\",$CO$47:$DJ$57),SUMIF($CE$137:$CN$162,\"８％(軽)\",$CO$137:$DJ$162),SUMIF($CE$199:$CN$224,\"８％(軽)\",$CO$199:$DJ$224),SUMIF($CE$261:$CN$286,\"８％(軽)\",$CO$261:$DJ$286),SUMIF($CE$323:$CN$348,\"８％(軽)\",$CO$323:$DJ$348))","v":5000},null,null,null,null,null,null,null,null,null,null,null,null,null,null,null,null,null,{"$f":"SUM(SUMIF($CE$47:$CN$57,\"８％\",$CO$47:$DJ$57),SUMIF($CE$137:$CN$162,\"８％\",$CO$137:$DJ$162),SUMIF($CE$199:$CN$224,\"８％\",$CO$199:$DJ$224),SUMIF($CE$261:$CN$286,\"８％\",$CO$261:$DJ$286),SUMIF($CE$323:$CN$348,\"８％\",$CO$323:$DJ$348))","v":500000},null,null,null,null,null,null,null,null,null,null,null,null,null,null,null,null,null,{"$f":"SUM(SUMIF($CE$47:$CN$57,\"対象外\",$CO$47:$DJ$57),SUMIF($CE$137:$CN$162,\"対象外\",$CO$137:$DJ$162),SUMIF($CE$199:$CN$224,\"対象外\",$CO$199:$DJ$224),SUMIF($CE$261:$CN$286,\"対象外\",$CO$261:$DJ$286),SUMIF($CE$323:$CN$348,\"対象外\",$CO$323:$DJ$348))","v":20000},null,null,null,null,null,null,null,null,null,null,null,null,null,null,null,null,null,{"$f":"SUM(Y64:CR66)","v":11025000}]
[]
[]
[null,null,null,null,null,null,"消費税額",null,null,null,null,null,null,null,null,null,null,null,null,10000000,null,null,null,null,{"$f":"IF(Y64=\"\",\"\",SUM(ROUNDDOWN(Y64*10%,0),SUM(SUMIF($CE$47:$CN$57,\"税端数１０％\",$CO$47:$DJ$57),SUMIF($CE$137:$CN$162,\"税端数１０％\",$CO$137:$DJ$162),SUMIF($CE$199:$CN$224,\"税端数１０％\",$CO$199:$DJ$224),SUMIF($CE$261:$CN$286,\"税端数１０％\",$CO$261:$DJ$286),SUMIF($CE$323:$CN$348,\"税端数１０％\",$CO$323:$DJ$348))))","v":1050000},null,null,null,null,null,null,null,null,null,null,null,null,null,null,null,null,null,{"$f":"IF(AQ64=\"\",\"\",SUM(ROUNDDOWN(AQ64*8%,0),SUM(SUMIF($CE$47:$CN$57,\"税端数８％(軽)\",$CO$47:$DJ$57),SUMIF($CE$137:$CN$162,\"税端数８％(軽)\",$CO$137:$DJ$162),SUMIF($CE$199:$CN$224,\"税端数８％(軽)\",$CO$199:$DJ$224),SUMIF($CE$261:$CN$286,\"税端数８％(軽)\",$CO$261:$DJ$286),SUMIF($CE$323:$CN$348,\"税端数８％(軽)\",$CO$323:$DJ$348))))","v":400},null,null,null,null,null,null,null,null,null,null,null,null,null,null,null,null,null,{"$f":"IF(BI64=\"\",\"\",SUM(ROUNDDOWN(BI64*8%,0),SUM(SUMIF($CE$47:$CN$57,\"税端数８％\",$CO$47:$DJ$57),SUMIF($CE$137:$CN$162,\"税端数８％\",$CO$137:$DJ$162),SUMIF($CE$199:$CN$224,\"税端数８％\",$CO$199:$DJ$224),SUMIF($CE$261:$CN$286,\"税端数８％\",$CO$261:$DJ$286),SUMIF($CE$323:$CN$348,\"税端数８％\",$CO$323:$DJ$348))))","v":40000},null,null,null,null,null,null,null,null,null,null,null,null,null,null,null,null,null,{"$f":"IF(CA64=\"\",\"\",ROUNDDOWN(CA64*0,0))","v":0},null,null,null,null,null,null,null,null,null,null,null,null,null,null,null,null,null,{"$f":"SUM(Y67:CR69)","v":1090400}]
[]
[]
[null,null,null,null,null,null,"税込金額",null,null,null,null,null,null,null,null,null,null,null,null,110000000,null,null,null,null,{"$f":"IF(Y64=\"\",\"\",SUM(Y64:AP69))","v":11550000},null,null,null,null,null,null,null,null,null,null,null,null,null,null,null,null,null,{"$f":"IF(AQ64=\"\",\"\",SUM(AQ64:BH69))","v":5400},null,null,null,null,null,null,null,null,null,null,null,null,null,null,null,null,null,{"$f":"IF(BI64=\"\",\"\",SUM(BI64:BZ69))","v":540000},null,null,null,null,null,null,null,null,null,null,null,null,null,null,null,null,null,{"$f":"IF(CA64=\"\",\"\",SUM(CA64:CR69))","v":20000},null,null,null,null,null,null,null,null,null,null,null,null,null,null,null,null,null,{"$f":"IF(CS64=\"\",\"\",SUM(CS64:DJ69))","v":12115400}]
[]
[]
[]
[null,null,null,null,null,null,"【請求書作成　注意事項】",null,null,null,null,null,null,null,null,null,null,null,null,null,null,null,null,null,null,null,null,null,null,null,null,null,null,null,null,null,null,null,null,null,null,null,null,null,null,null,null,null,null,null,null,null,null,null,null,null,null,null,null,null,null,null,null,null,null,null,null,null,null,null,null,null,null,null,null,null,null,null,null,null,null,null,null,null,null,"※担当者記入欄"]
[null,null,null,null,null,null,null,null,null,null,null,null,null,null,null,null,null,null,null,null,null,null,null,null,null,null,null,null,null,null,null,null,null,null,null,null,null,null,null,null,null,null,null,null,null,null,null,null,null,null,null,null,null,null,null,null,null,null,null,null,null,null,null,null,null,null,null,null,null,null,null,null,null,null,null,null,null,null,null,null,null,null,null,null,null,null,null,null,null,null,null,null,null,null,null,null,null,null,null,null,null,null,null,null,null,null,null,"（税抜）"]
[]
[]
[null,null,null,null,null,null,"1.　出来高で請求する場合、【出来高調書】（※1）を必ず添付すること",null,null,null,null,null,null,null,null,null,null,null,null,null,null,null,null,null,null,null,null,null,null,null,null,null,null,null,null,null,null,null,null,null,null,null,null,null,null,null,null,null,null,null,null,null,null,null,null,null,null,null,null,null,null,null,null,null,null,null,null,null,null,null,null,null,null,"工　種",null,null,null,"工種コード",null,null,null,null,null,null,null,null,null,null,null,null,null,null,null,null,"工種が2種以上の場合　　　　　　　　　　　　　　　↓　内訳金額を入力"]
[]
[]
[]
[null,null,null,null,null,null,"2.　本書に明細書添付の上、一式請求可能（消費税区分ごとの請求にすること）"]
[]
[]
[]
[null,null,null,null,null,null,"3.　【交通費】【法定福利費】は税抜きとなるように逆算して入力（100/110）"]
[]
[]
[]
[]
[]
[]
[]
[null,null,null,null,null,null,"2023年（令和5年）10月より消費税課税事業者の場合は登録番号を必ず入力（※2）"]
[null,null,null,null,null,null,null,null,null,null,null,null,null,null,null,null,null,null,null,null,null,null,null,null,null,null,null,null,null,null,null,null,null,null,null,null,null,null,null,null,null,null,null,null,null,null,null,null,null,null,null,null,null,null,null,null,null,null,null,null,null,null,null,null,null,null,null,null,null,null,null,null,null,"承認印",null,null,null,null,null,null,null,null,null,null,"確認印",null,null,null,null,null,null,null,null,null,null,null,null,null,null,null,null,null,null,"担当者印"]
[null,null,null,null,null,null,"2023年（令和5年）10月より内訳１行ごとの消費税計算は不可（※2）"]
[]
[]
[null,null,null,null,null,null,"（※1）弊社ホームページでダウンロード可能"]
[]
[null,null,null,null,null,null,"（※2）適格請求書等保存方式「インボイス制度」　国税庁ホームページ参照"]
[]
[]
[]
[null,null,null,null,null,null,null,null,null,null,null,null,null,null,null,null,null,null,null,null,null,null,null,null,null,null,null,null,null,null,null,null,null,null,null,null,null,null,null,null,null,null,null,null,null,null,null,null,null,null,null,null,null,null,1,null,null,null,"/",null,null,null,2,null,null,null,null,null,null,null,null,null,null,null,null,null,null,null,null,null,null,null,null,null,null,null,null,null,null,null,null,null,{"$f":"'【始めに入力下さい】　基本情報入力'!$I$3","v":"(株)ミスタービルド埼玉Ver.1.0"}]
[]
[]
[]
[null,null,null,null,null,null,"頁計",null,null,null,null,null,null,null,null,null,null,null,null,null,null,null,null,null,null,null,null,null,null,null,null,null,null,null,null,null,null,null,null,null,null,null,null,null,null,null,null,null,null,null,null,null,null,null,null,null,null,null,null,null,null,null,null,null,null,null,null,null,null,null,null,null,null,null,null,null,null,null,null,null,null,null,null,null,null,null,null,null,null,null,null,null,10525000]
[null,null,null,null,null,null,"総合計",null,null,null,null,null,null,null,null,null,null,null,null,null,null,null,null,null,null,null,null,null,null,null,null,null,null,null,null,null,null,null,null,null,null,null,null,null,null,null,null,null,null,null,null,null,null,null,null,null,null,null,null,null,null,null,null,null,null,null,null,null,null,null,null,null,null,null,null,null,null,null,null,null,null,null,null,null,null,null,null,null,null,null,null,null,11025000]
[null,null,null,null,null,null,"消費税率別内訳",null,null,null,null,null,null,null,null,null,null,null,null,null,null,null,null,null,null,null,null,null,null,null,null,null,null,null,null,null,null,null,null,null,null,null,null,null,null,null,null,null,null,null,null,null,null,null,null,null,null,null,null,null,null,null,null,null,null,null,null,null,null,null,null,null,null,null,null,null,null,null,null,null,null,null,null,null,null,null,null,null,null,null,null,null,"※次頁有"]
[]
[]
[null,null,null,null,null,null,"消費税区分",null,null,null,null,null,null,null,null,null,null,null,null,null,null,null,null,null,"１０％",null,null,null,null,null,null,null,null,null,null,null,null,null,null,null,null,null,"８％（軽）",null,null,null,null,null,null,null,null,null,null,null,null,null,null,null,null,null,"８％",null,null,null,null,null,null,null,null,null,null,null,null,null,null,null,null,null,"対象外",null,null,null,null,null,null,null,null,null,null,null,null,null,null,null,null,null,"総合計"]
[]
[]
[null,null,null,null,null,null,"税抜金額",null,null,null,null,null,null,null,null,null,null,null,null,100000000,null,null,null,null,10500000,null,null,null,null,null,null,null,null,null,null,null,null,null,null,null,null,null,5000,null,null,null,null,null,null,null,null,null,null,null,null,null,null,null,null,null,500000,null,null,null,null,null,null,null,null,null,null,null,null,null,null,null,null,null,20000,null,null,null,null,null,null,null,null,null,null,null,null,null,null,null,null,null,11025000]
[]
[]
[null,null,null,null,null,null,"消費税額",null,null,null,null,null,null,null,null,null,null,null,null,10000000,null,null,null,null,1050000,null,null,null,null,null,null,null,null,null,null,null,null,null,null,null,null,null,400,null,null,null,null,null,null,null,null,null,null,null,null,null,null,null,null,null,40000,null,null,null,null,null,null,null,null,null,null,null,null,null,null,null,null,null,0,null,null,null,null,null,null,null,null,null,null,null,null,null,null,null,null,null,1090400]
[]
[]
[null,null,null,null,null,null,"税込金額",null,null,null,null,null,null,null,null,null,null,null,null,110000000,null,null,null,null,11550000,null,null,null,null,null,null,null,null,null,null,null,null,null,null,null,null,null,5400,null,null,null,null,null,null,null,null,null,null,null,null,null,null,null,null,null,540000,null,null,null,null,null,null,null,null,null,null,null,null,null,null,null,null,null,20000,null,null,null,null,null,null,null,null,null,null,null,null,null,null,null,null,null,12115400]
[]
[]
[]
[]
[null,null,null,null,null,"※担当者記入欄",null,null,null,null,null,null,null,null,null,null,null,null,null,null,null,null,null,null,null,null,null,null,null,null,null,null,null,null,null,null,null,null,null,null,null,null,null,"注文金額（税抜）",null,null,null,null,null,null,null,null,null,null,null,null,null,null,null,null,null,null,null,null,null,null,null,null,null,null,null,null,null,null,null,null,null,null,null,null,null,"既出来高金額（税抜）"]
[]
[]
[null,null,null,null,null,null,"部門コード\n工事番号",null,null,null,null,null,null,null,null,null,null,null,null,null,null,null,null,null,null,null,null,null,null,null,null,null,null,null,null,null,null,null,null,null,null,null,null,"当初金額",null,null,null,null,null,null,null,null,null,null,null,null,null,null,null,null,null,null,null,null,null,null,null,null,null,null,null,null,null,null,null,null,null,null,null,null,null,"請求済額"]
[]
[]
[]
[null,null,null,null,null,null,"注文番号",null,null,null,null,null,null,null,null,null,null,null,12345,null,null,null,null,null,null,null,null,null,null,null,null,null,null,null,null,null,null,null,null,null,null,null,null,"増減金額"]
[]
[]
[]
[null,null,null,null,null,null,"決裁番号",null,null,null,null,null,null,null,null,null,null,null,null,null,null,null,null,null,null,null,null,null,null,null,null,null,null,null,null,null,null,null,null,null,null,null,null,"合計"]
[]
[]
[]
[]
[]
[null,null,null,null,null,null,"工種及要素 内訳",null,null,null,"経理科目コード",null,null,null,null,null,null,null,null,null,null,null,null,null,null,null,"工種コード",null,null,null,null,null,null,null,null,null,null,null,"税抜金額",null,null,null,null,null,null,null,null,null,null,null,null,null,null,null,null,null,null,null,null,null,null,null,"当月請求額（税込）",null,null,null,null,null,null,null,null,null,null,null,null,null,null,null,null,null,null,null,null,null,null,null,null,null,null,null,null,null,12115400]
[]
[]
[null,null,null,null,null,null,null,null,null,null,null,null,null,null,null,null,null,null,null,null,null,null,null,null,null,null,null,null,null,null,null,null,null,null,null,null,null,null,null,null,null,null,null,null,null,null,null,null,null,null,null,null,null,null,null,null,null,null,null,null,null,null,"立替控除額（税込）",null,null,null,null,null,null,null,null,null,null,null,null,null,null,null,null,null,null,null,null,null,null,null,null,null,null,null,null,null,-100000]
[]
[]
[null,null,null,null,null,null,null,null,null,null,null,null,null,null,null,null,null,null,null,null,null,null,null,null,null,null,null,null,null,null,null,null,null,null,null,null,null,null,null,null,null,null,null,null,null,null,null,null,null,null,null,null,null,null,null,null,null,null,null,null,null,null,"当月支払額（税込）",null,null,null,null,null,null,null,null,null,null,null,null,null,null,null,null,null,null,null,null,null,null,null,null,null,null,null,null,null,12015400]
[]
[]
[]
[]
[]
[null,null,null,null,null,null,null,null,null,null,null,null,null,null,null,null,null,null,null,null,null,null,null,null,null,null,null,null,null,null,null,null,null,null,null,null,null,null,null,null,null,null,null,null,null,null,null,null,null,null,null,null,null,null,null,null,null,null,null,null,null,null,"当月出来高（税抜）\n（立替振替を除く額）"]
[]
[]
[]
[null,null,null,null,null,null,null,null,null,null,null,null,null,null,null,null,null,null,null,null,null,null,null,null,null,null,null,null,null,null,null,null,null,null,null,null,null,null,null,null,null,null,null,null,null,null,null,null,null,null,null,null,null,null,null,null,null,null,null,null,null,null,"取極残金（税抜）"]
[]
[]
[]
[null,null,null,null,null,null,null,null,null,null,null,null,null,null,null,null,null,null,null,null,null,null,null,null,null,null,null,null,null,null,null,null,null,null,null,null,null,null,null,null,null,null,null,null,null,null,null,null,null,null,null,null,null,null,null,null,null,null,null,null,null,null,null,null,null,null,null,null,null,null,null,null,null,null,null,null,null,null,null,null,null,null,null,null,null,null,null,null,null,null,null,null,"整理No."]
[]
[]
[]
[]
[null,null,null,null,null,null,"照合印",null,null,null,null,null,null,null,null,null,null,null,null,null,null,null,null,null,null,null,null,null,null,null,"決裁印",null,null,null,null,null,null,null,null,null,null,null,null,null,null,null,null,null,null,null,null,null,"確認印",null,null,null,null,null,null,null,null,null,null,null,null,null,null,null,null,null,null,null,null,null,null,null,null,null,null,null,null,null,null,null,null,null,null,null,null,null,null,null,null,null,null,null,null,null,null,null,null,null,"担当者印"]
[]
[]
[]
[]
[]
[]
[]
[]
[null,null,null,null,null,null,null,null,null,null,null,null,null,null,null,null,null,null,null,null,null,null,null,null,null,null,null,null,null,null,null,null,null,null,null,null,null,null,null,null,null,null,null,null,null,null,null,null,null,null,null,null,null,null,1,null,null,null,"/",null,null,null,2,null,null,null,null,null,null,null,null,null,null,null,null,null,null,null,null,null,null,null,null,null,null,null,null,null,null,null,null,null,"(株)ミスタービルド埼玉Ver.1.0"]
[]
[]
[]
[]
[]
[null,null,null,null,null,"マ",null,null,null,null,null,null,null,null,null,null,null,null,null,null,null,null,null,null,null,null,null,null,null,null,null,null,null,null,null,null,null,null,null,null,null,null,null,"請 求 書 ②"]
[]
[]
[]
[null,null,null,null,null,null,null,null,null,null,null,null,null,null,null,null,null,null,null,null,null,null,null,null,null,null,null,null,null,null,null,null,null,null,null,null,null,null,null,null,null,null,null,null,null,null,null,null,null,null,null,null,null,null,null,null,null,null,null,null,null,null,null,null,null,null,null,null,null,null,null,null,null,null,null,null,null,null,null,null,null,"取引先コード",null,null,null,null,null,null,null,null,null,null,null,null,null,null,"0",null,null,"0",null,null,"1",null,null,"7",null,null,"3",null,null,"2"]
[null,null,null,null,null,null,null,null,null,null,null,null,null,null,null,null,null,null,null,null,null,null,null,null,null,null,null,null,null,null,null,null,null,null,null,null,null,null,null,null,null,null,null,2022,null,null,null,null,null,null,null,"年",null,null,11,null,null,null,"月",null,null,30,null,null,null,"日"]
[null,null,null,null,null,null,"株式会社ミスタービルド埼玉",null,null,null,null,null,null,null,null,null,null,null,null,null,null,null,null,null,null,null,null,null,null,null,null,null,null,null,"御中"]
[]
[null,null,null,null,null,null,null,null,null,null,null,null,null,null,null,null,null,null,null,null,null,null,null,null,null,null,null,null,null,null,null,null,null,null,null,null,null,null,null,null,null,null,null,null,null,null,null,null,null,null,null,null,null,null,null,null,null,null,null,null,null,null,null,null,null,null,null,null,null,null,null,null,null,null,null,null,null,null,null,null,null,"登録番号",null,null,null,null,null,null,null,null,null,null,null,null,null,null,"T1234567890123"]
[]
[]
[]
[]
[null,null,null,null,null,null,"工事件名",null,null,null,null,null,null,null,null,null,null,null,"□□マンション新築工事",null,null,null,null,null,null,null,null,null,null,null,null,null,null,null,null,null,null,null,null,null,null,null,null,null,null,null,null,null,null,null,null,null,null,null,"会社名（氏名）",null,null,null,null,null,null,null,null,null,null,null,null,null,"○□建設　株式会社"]
[]
[]
[]
[]
[]
[]
[null,null,null,null,null,null,null,null,null,null,null,null,null,null,null,null,null,null,null,null,null,null,null,null,null,null,null,null,null,null,null,null,null,null,null,null,null,null,null,null,null,null,null,"内訳明細②"]
[]
[]
[]
[]
[null,null,null,null,null,null,"日付",null,null,null,null,null,null,null,null,null,"品目規格又は作業内容",null,null,null,null,null,null,null,null,null,null,null,null,null,null,null,null,null,null,null,null,null,null,null,null,null,null,null,null,null,null,null,null,null,null,null,"単位",null,null,null,null,null,null,null,null,null,"数量",null,null,null,null,null,null,null,null,null,"単価",null,null,null,null,null,null,null,null,null,"消費税区分",null,null,null,null,null,null,null,null,null,"税抜金額"]
[null,null,null,null,null,null,"2022-11-30",null,null,null,null,null,null,null,null,null,"○○工事",null,null,null,null,null,null,null,null,null,null,null,null,null,null,null,null,null,null,null,null,null,null,null,null,null,null,null,null,null,null,null,null,null,null,null,"式",null,null,null,null,null,null,null,null,null,1,null,null,null,null,null,null,null,null,null,500000,null,null,null,null,null,null,null,null,null,"１０％",null,null,null,null,null,null,null,null,null,500000]
[null,null,null,null,null,null,null,null,null,null,null,null,null,null,null,null,null,null,null,null,null,null,null,null,null,null,null,null,null,null,null,null,null,null,null,null,null,null,null,null,null,null,null,null,null,null,null,null,null,null,null,null,null,null,null,null,null,null,null,null,null,null,null,null,null,null,null,null,null,null,null,null,null,null,null,null,null,null,null,null,null,null,null,null,null,null,null,null,null,null,null,null,""]
[null,null,null,null,null,null,null,null,null,null,null,null,null,null,null,null,null,null,null,null,null,null,null,null,null,null,null,null,null,null,null,null,null,null,null,null,null,null,null,null,null,null,null,null,null,null,null,null,null,null,null,null,null,null,null,null,null,null,null,null,null,null,null,null,null,null,null,null,null,null,null,null,null,null,null,null,null,null,null,null,null,null,null,null,null,null,null,null,null,null,null,null,""]
[null,null,null,null,null,null,null,null,null,null,null,null,null,null,null,null,null,null,null,null,null,null,null,null,null,null,null,null,null,null,null,null,null,null,null,null,null,null,null,null,null,null,null,null,null,null,null,null,null,null,null,null,null,null,null,null,null,null,null,null,null,null,null,null,null,null,null,null,null,null,null,null,null,null,null,null,null,null,null,null,null,null,null,null,null,null,null,null,null,null,null,null,""]
[null,null,null,null,null,null,null,null,null,null,null,null,null,null,null,null,null,null,null,null,null,null,null,null,null,null,null,null,null,null,null,null,null,null,null,null,null,null,null,null,null,null,null,null,null,null,null,null,null,null,null,null,null,null,null,null,null,null,null,null,null,null,null,null,null,null,null,null,null,null,null,null,null,null,null,null,null,null,null,null,null,null,null,null,null,null,null,null,null,null,null,null,""]
[null,null,null,null,null,null,null,null,null,null,null,null,null,null,null,null,null,null,null,null,null,null,null,null,null,null,null,null,null,null,null,null,null,null,null,null,null,null,null,null,null,null,null,null,null,null,null,null,null,null,null,null,null,null,null,null,null,null,null,null,null,null,null,null,null,null,null,null,null,null,null,null,null,null,null,null,null,null,null,null,null,null,null,null,null,null,null,null,null,null,null,null,""]
[null,null,null,null,null,null,null,null,null,null,null,null,null,null,null,null,null,null,null,null,null,null,null,null,null,null,null,null,null,null,null,null,null,null,null,null,null,null,null,null,null,null,null,null,null,null,null,null,null,null,null,null,null,null,null,null,null,null,null,null,null,null,null,null,null,null,null,null,null,null,null,null,null,null,null,null,null,null,null,null,null,null,null,null,null,null,null,null,null,null,null,null,""]
[null,null,null,null,null,null,null,null,null,null,null,null,null,null,null,null,null,null,null,null,null,null,null,null,null,null,null,null,null,null,null,null,null,null,null,null,null,null,null,null,null,null,null,null,null,null,null,null,null,null,null,null,null,null,null,null,null,null,null,null,null,null,null,null,null,null,null,null,null,null,null,null,null,null,null,null,null,null,null,null,null,null,null,null,null,null,null,null,null,null,null,null,""]
[null,null,null,null,null,null,null,null,null,null,null,null,null,null,null,null,null,null,null,null,null,null,null,null,null,null,null,null,null,null,null,null,null,null,null,null,null,null,null,null,null,null,null,null,null,null,null,null,null,null,null,null,null,null,null,null,null,null,null,null,null,null,null,null,null,null,null,null,null,null,null,null,null,null,null,null,null,null,null,null,null,null,null,null,null,null,null,null,null,null,null,null,""]
[null,null,null,null,null,null,null,null,null,null,null,null,null,null,null,null,null,null,null,null,null,null,null,null,null,null,null,null,null,null,null,null,null,null,null,null,null,null,null,null,null,null,null,null,null,null,null,null,null,null,null,null,null,null,null,null,null,null,null,null,null,null,null,null,null,null,null,null,null,null,null,null,null,null,null,null,null,null,null,null,null,null,null,null,null,null,null,null,null,null,null,null,""]
[null,null,null,null,null,null,null,null,null,null,null,null,null,null,null,null,null,null,null,null,null,null,null,null,null,null,null,null,null,null,null,null,null,null,null,null,null,null,null,null,null,null,null,null,null,null,null,null,null,null,null,null,null,null,null,null,null,null,null,null,null,null,null,null,null,null,null,null,null,null,null,null,null,null,null,null,null,null,null,null,null,null,null,null,null,null,null,null,null,null,null,null,""]
[null,null,null,null,null,null,null,null,null,null,null,null,null,null,null,null,null,null,null,null,null,null,null,null,null,null,null,null,null,null,null,null,null,null,null,null,null,null,null,null,null,null,null,null,null,null,null,null,null,null,null,null,null,null,null,null,null,null,null,null,null,null,null,null,null,null,null,null,null,null,null,null,null,null,null,null,null,null,null,null,null,null,null,null,null,null,null,null,null,null,null,null,""]
[null,null,null,null,null,null,null,null,null,null,null,null,null,null,null,null,null,null,null,null,null,null,null,null,null,null,null,null,null,null,null,null,null,null,null,null,null,null,null,null,null,null,null,null,null,null,null,null,null,null,null,null,null,null,null,null,null,null,null,null,null,null,null,null,null,null,null,null,null,null,null,null,null,null,null,null,null,null,null,null,null,null,null,null,null,null,null,null,null,null,null,null,""]
[null,null,null,null,null,null,null,null,null,null,null,null,null,null,null,null,null,null,null,null,null,null,null,null,null,null,null,null,null,null,null,null,null,null,null,null,null,null,null,null,null,null,null,null,null,null,null,null,null,null,null,null,null,null,null,null,null,null,null,null,null,null,null,null,null,null,null,null,null,null,null,null,null,null,null,null,null,null,null,null,null,null,null,null,null,null,null,null,null,null,null,null,""]
[null,null,null,null,null,null,null,null,null,null,null,null,null,null,null,null,null,null,null,null,null,null,null,null,null,null,null,null,null,null,null,null,null,null,null,null,null,null,null,null,null,null,null,null,null,null,null,null,null,null,null,null,null,null,null,null,null,null,null,null,null,null,null,null,null,null,null,null,null,null,null,null,null,null,null,null,null,null,null,null,null,null,null,null,null,null,null,null,null,null,null,null,""]
[null,null,null,null,null,null,null,null,null,null,null,null,null,null,null,null,null,null,null,null,null,null,null,null,null,null,null,null,null,null,null,null,null,null,null,null,null,null,null,null,null,null,null,null,null,null,null,null,null,null,null,null,null,null,null,null,null,null,null,null,null,null,null,null,null,null,null,null,null,null,null,null,null,null,null,null,null,null,null,null,null,null,null,null,null,null,null,null,null,null,null,null,""]
[null,null,null,null,null,null,null,null,null,null,null,null,null,null,null,null,null,null,null,null,null,null,null,null,null,null,null,null,null,null,null,null,null,null,null,null,null,null,null,null,null,null,null,null,null,null,null,null,null,null,null,null,null,null,null,null,null,null,null,null,null,null,null,null,null,null,null,null,null,null,null,null,null,null,null,null,null,null,null,null,null,null,null,null,null,null,null,null,null,null,null,null,""]
[null,null,null,null,null,null,null,null,null,null,null,null,null,null,null,null,null,null,null,null,null,null,null,null,null,null,null,null,null,null,null,null,null,null,null,null,null,null,null,null,null,null,null,null,null,null,null,null,null,null,null,null,null,null,null,null,null,null,null,null,null,null,null,null,null,null,null,null,null,null,null,null,null,null,null,null,null,null,null,null,null,null,null,null,null,null,null,null,null,null,null,null,""]
[null,null,null,null,null,null,null,null,null,null,null,null,null,null,null,null,null,null,null,null,null,null,null,null,null,null,null,null,null,null,null,null,null,null,null,null,null,null,null,null,null,null,null,null,null,null,null,null,null,null,null,null,null,null,null,null,null,null,null,null,null,null,null,null,null,null,null,null,null,null,null,null,null,null,null,null,null,null,null,null,null,null,null,null,null,null,null,null,null,null,null,null,""]
[null,null,null,null,null,null,null,null,null,null,null,null,null,null,null,null,null,null,null,null,null,null,null,null,null,null,null,null,null,null,null,null,null,null,null,null,null,null,null,null,null,null,null,null,null,null,null,null,null,null,null,null,null,null,null,null,null,null,null,null,null,null,null,null,null,null,null,null,null,null,null,null,null,null,null,null,null,null,null,null,null,null,null,null,null,null,null,null,null,null,null,null,""]
[null,null,null,null,null,null,null,null,null,null,null,null,null,null,null,null,null,null,null,null,null,null,null,null,null,null,null,null,null,null,null,null,null,null,null,null,null,null,null,null,null,null,null,null,null,null,null,null,null,null,null,null,null,null,null,null,null,null,null,null,null,null,null,null,null,null,null,null,null,null,null,null,null,null,null,null,null,null,null,null,null,null,null,null,null,null,null,null,null,null,null,null,""]
[null,null,null,null,null,null,null,null,null,null,null,null,null,null,null,null,null,null,null,null,null,null,null,null,null,null,null,null,null,null,null,null,null,null,null,null,null,null,null,null,null,null,null,null,null,null,null,null,null,null,null,null,null,null,null,null,null,null,null,null,null,null,null,null,null,null,null,null,null,null,null,null,null,null,null,null,null,null,null,null,null,null,null,null,null,null,null,null,null,null,null,null,""]
[null,null,null,null,null,null,null,null,null,null,null,null,null,null,null,null,null,null,null,null,null,null,null,null,null,null,null,null,null,null,null,null,null,null,null,null,null,null,null,null,null,null,null,null,null,null,null,null,null,null,null,null,null,null,null,null,null,null,null,null,null,null,null,null,null,null,null,null,null,null,null,null,null,null,null,null,null,null,null,null,null,null,null,null,null,null,null,null,null,null,null,null,""]
[null,null,null,null,null,null,null,null,null,null,null,null,null,null,null,null,null,null,null,null,null,null,null,null,null,null,null,null,null,null,null,null,null,null,null,null,null,null,null,null,null,null,null,null,null,null,null,null,null,null,null,null,null,null,null,null,null,null,null,null,null,null,null,null,null,null,null,null,null,null,null,null,null,null,null,null,null,null,null,null,null,null,null,null,null,null,null,null,null,null,null,null,""]
[null,null,null,null,null,null,null,null,null,null,null,null,null,null,null,null,null,null,null,null,null,null,null,null,null,null,null,null,null,null,null,null,null,null,null,null,null,null,null,null,null,null,null,null,null,null,null,null,null,null,null,null,null,null,null,null,null,null,null,null,null,null,null,null,null,null,null,null,null,null,null,null,null,null,null,null,null,null,null,null,null,null,null,null,null,null,null,null,null,null,null,null,""]
[null,null,null,null,null,null,null,null,null,null,null,null,null,null,null,null,null,null,null,null,null,null,null,null,null,null,null,null,null,null,null,null,null,null,null,null,null,null,null,null,null,null,null,null,null,null,null,null,null,null,null,null,null,null,null,null,null,null,null,null,null,null,null,null,null,null,null,null,null,null,null,null,null,null,null,null,null,null,null,null,null,null,null,null,null,null,null,null,null,null,null,null,""]
[null,null,null,null,null,null,"頁計",null,null,null,null,null,null,null,null,null,null,null,null,null,null,null,null,null,null,null,null,null,null,null,null,null,null,null,null,null,null,null,null,null,null,null,null,null,null,null,null,null,null,null,null,null,null,null,null,null,null,null,null,null,null,null,null,null,null,null,null,null,null,null,null,null,null,null,null,null,null,null,null,null,null,null,null,null,null,null,null,null,null,null,null,null,500000]
[null,null,null,null,null,null,null,null,null,null,null,null,null,null,null,null,null,null,null,null,null,null,null,null,null,null,null,null,null,null,null,null,null,null,null,null,null,null,null,null,null,null,null,null,null,null,null,null,null,null,null,null,null,null,null,null,null,null,null,null,null,null,null,null,null,null,null,null,null,null,null,null,null,null,null,null,null,null,null,null,null,null,null,null,null,null,null,null,null,null,null,null,""]
[]
[]
[null,null,null,null,null,null,null,null,null,null,null,null,null,null,null,null,null,null,null,null,null,null,null,null,null,null,null,null,null,null,null,null,null,null,null,null,null,null,null,null,null,null,null,null,null,null,null,null,null,null,null,null,null,null,2,null,null,null,"/",null,null,null,2,null,null,null,null,null,null,null,null,null,null,null,null,null,null,null,null,null,null,null,null,null,null,null,null,null,null,null,null,null,"(株)ミスタービルド埼玉Ver.1.0"]